{"text_format":"1","workbook":"xlsx","n_sheets":5,"sheets":["Диаграмма","Исходные данные","1С","Расчётные сроки окончания","Инструменты и нормы упаковки"],"not_rendered":{"charts":1,"images":0,"macros":1,"external_links":0,"defined_names":7,"comments":0,"pivot_tables":0},"unopened":[],"bounds":{"document_bytes":16777216,"sheet_cells":100000,"rows_first":2000,"rows_last":500,"rows_between":2000,"halvings":0,"cell_chars":16384,"cell_head_chars":4096},"cells_cut":0,"cells_raw":0,"read":"whole","date_system":"1900"}

{"sheet":"Диаграмма","index":0,"n_rows":1,"n_cols":1,"rows_kept":1,"cut":false,"hidden":false,"merged":[]}
[{"$f":"'Расчётные сроки окончания'!Сейчас","v":"2024-08-06T08:00:00"}]

{"sheet":"Исходные данные","index":1,"n_rows":7,"n_cols":45,"rows_kept":7,"cut":false,"hidden":false,"merged":[]}
[null,null,null,"Текущий",null,null,null,null,null,null,null,null,2,null,null,null,null,null,null,null,null,3,null,null,null,null,null,null,null,null,4,null,null,null,null,null,null,null,null,5]
["Отдых, мин","Сон, мин","Линия","Заказ","Артикул","Инструмент","Количество","Штук в минуту","Общее время в минутах","Отдых, мин","Сон, мин","Линия","Заказ","Артикул","Инструмент","Штук в минуту","Количество","Общее время в минутах","Отдых, мин","Сон, мин","Линия","Заказ","Артикул","Инструмент","Штук в минуту","Количество","Общее время в минутах","Отдых, мин","Сон, мин","Линия","Заказ","Артикул","Инструмент","Штук в минуту","Количество","Общее время в минутах","Отдых, мин","Сон, мин","Линия","Заказ","Артикул","Инструмент","Штук в минуту","Количество","Общее время в минутах"]
[240,480,"1",123,{"$f":"INDEX('1С'!$B:$B,MATCH('Исходные данные'!D:D,'1С'!$A:$A,0))","v":"трава"},{"$f":"INDEX('1С'!$D:$D,MATCH('Исходные данные'!D:D,'1С'!$A:$A,0))","v":"корова"},{"$f":"INDEX('1С'!$G:$G,MATCH('Исходные данные'!D:D,'1С'!$A:$A,0))","v":80000},{"$f":"INDEX('Инструменты и нормы упаковки'!$B:$B,MATCH('Исходные данные'!F:F,'Инструменты и нормы упаковки'!$A:$A,0))","v":500},{"$f":"G3/H3","v":160},null,null,"1",143,{"$f":"INDEX('1С'!$B:$B,MATCH('Исходные данные'!M:M,'1С'!$A:$A,0))","v":"трава"},{"$f":"INDEX('1С'!$D:$D,MATCH('Исходные данные'!M:M,'1С'!$A:$A,0))","v":"корова"},{"$f":"INDEX('Инструменты и нормы упаковки'!$B:$B,MATCH('Исходные данные'!O:O,'Инструменты и нормы упаковки'!$A:$A,0))","v":500},{"$f":"INDEX('1С'!$G:$G,MATCH('Исходные данные'!M:M,'1С'!$A:$A,0))","v":90000},{"$f":"Q3/P3","v":180},null,null,"1",138,{"$f":"INDEX('1С'!$B:$B,MATCH('Исходные данные'!V:V,'1С'!$A:$A,0))","v":"трава"},{"$f":"INDEX('1С'!$D:$D,MATCH('Исходные данные'!V:V,'1С'!$A:$A,0))","v":"корова"},{"$f":"INDEX('Инструменты и нормы упаковки'!$B:$B,MATCH('Исходные данные'!X:X,'Инструменты и нормы упаковки'!$A:$A,0))","v":500},{"$f":"INDEX('1С'!$G:$G,MATCH('Исходные данные'!V:V,'1С'!$A:$A,0))","v":90000},{"$f":"Z3/Y3","v":180},240,480,"1",133,{"$f":"INDEX('1С'!$B:$B,MATCH('Исходные данные'!AE:AE,'1С'!$A:$A,0))","v":"трава"},{"$f":"INDEX('1С'!$D:$D,MATCH('Исходные данные'!AE:AE,'1С'!$A:$A,0))","v":"корова"},{"$f":"INDEX('Инструменты и нормы упаковки'!$B:$B,MATCH('Исходные данные'!AG:AG,'Инструменты и нормы упаковки'!$A:$A,0))","v":500},{"$f":"INDEX('1С'!$G:$G,MATCH('Исходные данные'!AE:AE,'1С'!$A:$A,0))","v":30000},{"$f":"AI3/AH3","v":60},null,null,"1",148,{"$f":"INDEX('1С'!$B:$B,MATCH('Исходные данные'!AN:AN,'1С'!$A:$A,0))","v":"трава"},{"$f":"INDEX('1С'!$D:$D,MATCH('Исходные данные'!AN:AN,'1С'!$A:$A,0))","v":"корова"},{"$f":"INDEX('Инструменты и нормы упаковки'!$B:$B,MATCH('Исходные данные'!AP:AP,'Инструменты и нормы упаковки'!$A:$A,0))","v":500},{"$f":"INDEX('1С'!$G:$G,MATCH('Исходные данные'!AN:AN,'1С'!$A:$A,0))","v":90000},{"$f":"AR3/AQ3","v":180}]
[null,null,"2",124,{"$f":"INDEX('1С'!$B:$B,MATCH('Исходные данные'!D:D,'1С'!$A:$A,0))","v":"морковь"},{"$f":"INDEX('1С'!$D:$D,MATCH('Исходные данные'!D:D,'1С'!$A:$A,0))","v":"лошадь"},{"$f":"INDEX('1С'!$G:$G,MATCH('Исходные данные'!D:D,'1С'!$A:$A,0))","v":4000},{"$f":"INDEX('Инструменты и нормы упаковки'!$B:$B,MATCH('Исходные данные'!F:F,'Инструменты и нормы упаковки'!$A:$A,0))","v":20},{"$f":"G4/H4","v":200},240,480,"2",144,{"$f":"INDEX('1С'!$B:$B,MATCH('Исходные данные'!M:M,'1С'!$A:$A,0))","v":"морковь"},{"$f":"INDEX('1С'!$D:$D,MATCH('Исходные данные'!M:M,'1С'!$A:$A,0))","v":"лошадь"},{"$f":"INDEX('Инструменты и нормы упаковки'!$B:$B,MATCH('Исходные данные'!O:O,'Инструменты и нормы упаковки'!$A:$A,0))","v":20},{"$f":"INDEX('1С'!$G:$G,MATCH('Исходные данные'!M:M,'1С'!$A:$A,0))","v":5000},{"$f":"Q4/P4","v":250},null,null,"2",134,{"$f":"INDEX('1С'!$B:$B,MATCH('Исходные данные'!V:V,'1С'!$A:$A,0))","v":"морковь"},{"$f":"INDEX('1С'!$D:$D,MATCH('Исходные данные'!V:V,'1С'!$A:$A,0))","v":"лошадь"},{"$f":"INDEX('Инструменты и нормы упаковки'!$B:$B,MATCH('Исходные данные'!X:X,'Инструменты и нормы упаковки'!$A:$A,0))","v":20},{"$f":"INDEX('1С'!$G:$G,MATCH('Исходные данные'!V:V,'1С'!$A:$A,0))","v":4500},{"$f":"Z4/Y4","v":225},null,null,"2",154,{"$f":"INDEX('1С'!$B:$B,MATCH('Исходные данные'!AE:AE,'1С'!$A:$A,0))","v":"морковь"},{"$f":"INDEX('1С'!$D:$D,MATCH('Исходные данные'!AE:AE,'1С'!$A:$A,0))","v":"лошадь"},{"$f":"INDEX('Инструменты и нормы упаковки'!$B:$B,MATCH('Исходные данные'!AG:AG,'Инструменты и нормы упаковки'!$A:$A,0))","v":20},{"$f":"INDEX('1С'!$G:$G,MATCH('Исходные данные'!AE:AE,'1С'!$A:$A,0))","v":5000},{"$f":"AI4/AH4","v":250},240,480,"2",149,{"$f":"INDEX('1С'!$B:$B,MATCH('Исходные данные'!AN:AN,'1С'!$A:$A,0))","v":"морковь"},{"$f":"INDEX('1С'!$D:$D,MATCH('Исходные данные'!AN:AN,'1С'!$A:$A,0))","v":"лошадь"},{"$f":"INDEX('Инструменты и нормы упаковки'!$B:$B,MATCH('Исходные данные'!AP:AP,'Инструменты и нормы упаковки'!$A:$A,0))","v":20},{"$f":"INDEX('1С'!$G:$G,MATCH('Исходные данные'!AN:AN,'1С'!$A:$A,0))","v":5000},{"$f":"AR4/AQ4","v":250}]
[null,null,"3",125,{"$f":"INDEX('1С'!$B:$B,MATCH('Исходные данные'!D:D,'1С'!$A:$A,0))","v":"брюква"},{"$f":"INDEX('1С'!$D:$D,MATCH('Исходные данные'!D:D,'1С'!$A:$A,0))","v":"кролик"},{"$f":"INDEX('1С'!$G:$G,MATCH('Исходные данные'!D:D,'1С'!$A:$A,0))","v":1500},{"$f":"INDEX('Инструменты и нормы упаковки'!$B:$B,MATCH('Исходные данные'!F:F,'Инструменты и нормы упаковки'!$A:$A,0))","v":5},300,null,null,"3",135,{"$f":"INDEX('1С'!$B:$B,MATCH('Исходные данные'!M:M,'1С'!$A:$A,0))","v":"брюква"},{"$f":"INDEX('1С'!$D:$D,MATCH('Исходные данные'!M:M,'1С'!$A:$A,0))","v":"кролик"},{"$f":"INDEX('Инструменты и нормы упаковки'!$B:$B,MATCH('Исходные данные'!O:O,'Инструменты и нормы упаковки'!$A:$A,0))","v":5},{"$f":"INDEX('1С'!$G:$G,MATCH('Исходные данные'!M:M,'1С'!$A:$A,0))","v":500},100,240,480,"3",150,{"$f":"INDEX('1С'!$B:$B,MATCH('Исходные данные'!V:V,'1С'!$A:$A,0))","v":"брюква"},{"$f":"INDEX('1С'!$D:$D,MATCH('Исходные данные'!V:V,'1С'!$A:$A,0))","v":"кролик"},{"$f":"INDEX('Инструменты и нормы упаковки'!$B:$B,MATCH('Исходные данные'!X:X,'Инструменты и нормы упаковки'!$A:$A,0))","v":5},{"$f":"INDEX('1С'!$G:$G,MATCH('Исходные данные'!V:V,'1С'!$A:$A,0))","v":2000},400,null,null,"3",145,{"$f":"INDEX('1С'!$B:$B,MATCH('Исходные данные'!AE:AE,'1С'!$A:$A,0))","v":"брюква"},{"$f":"INDEX('1С'!$D:$D,MATCH('Исходные данные'!AE:AE,'1С'!$A:$A,0))","v":"кролик"},{"$f":"INDEX('Инструменты и нормы упаковки'!$B:$B,MATCH('Исходные данные'!AG:AG,'Инструменты и нормы упаковки'!$A:$A,0))","v":5},{"$f":"INDEX('1С'!$G:$G,MATCH('Исходные данные'!AE:AE,'1С'!$A:$A,0))","v":2000},400,null,null,"3",140,{"$f":"INDEX('1С'!$B:$B,MATCH('Исходные данные'!AN:AN,'1С'!$A:$A,0))","v":"брюква"},{"$f":"INDEX('1С'!$D:$D,MATCH('Исходные данные'!AN:AN,'1С'!$A:$A,0))","v":"кролик"},{"$f":"INDEX('Инструменты и нормы упаковки'!$B:$B,MATCH('Исходные данные'!AP:AP,'Инструменты и нормы упаковки'!$A:$A,0))","v":5},{"$f":"INDEX('1С'!$G:$G,MATCH('Исходные данные'!AN:AN,'1С'!$A:$A,0))","v":2000},400]
[null,null,"4",126,{"$f":"INDEX('1С'!$B:$B,MATCH('Исходные данные'!D:D,'1С'!$A:$A,0))","v":"капуста"},{"$f":"INDEX('1С'!$D:$D,MATCH('Исходные данные'!D:D,'1С'!$A:$A,0))","v":"баран"},{"$f":"INDEX('1С'!$G:$G,MATCH('Исходные данные'!D:D,'1С'!$A:$A,0))","v":100},{"$f":"INDEX('Инструменты и нормы упаковки'!$B:$B,MATCH('Исходные данные'!F:F,'Инструменты и нормы упаковки'!$A:$A,0))","v":2},50,null,null,"4",156,{"$f":"INDEX('1С'!$B:$B,MATCH('Исходные данные'!M:M,'1С'!$A:$A,0))","v":"капуста"},{"$f":"INDEX('1С'!$D:$D,MATCH('Исходные данные'!M:M,'1С'!$A:$A,0))","v":"баран"},{"$f":"INDEX('Инструменты и нормы упаковки'!$B:$B,MATCH('Исходные данные'!O:O,'Инструменты и нормы упаковки'!$A:$A,0))","v":2},{"$f":"INDEX('1С'!$G:$G,MATCH('Исходные данные'!M:M,'1С'!$A:$A,0))","v":1800},900,null,null,"4",136,{"$f":"INDEX('1С'!$B:$B,MATCH('Исходные данные'!V:V,'1С'!$A:$A,0))","v":"капуста"},{"$f":"INDEX('1С'!$D:$D,MATCH('Исходные данные'!V:V,'1С'!$A:$A,0))","v":"баран"},{"$f":"INDEX('Инструменты и нормы упаковки'!$B:$B,MATCH('Исходные данные'!X:X,'Инструменты и нормы упаковки'!$A:$A,0))","v":2},{"$f":"INDEX('1С'!$G:$G,MATCH('Исходные данные'!V:V,'1С'!$A:$A,0))","v":600},300,240,480,"4",166,{"$f":"INDEX('1С'!$B:$B,MATCH('Исходные данные'!AE:AE,'1С'!$A:$A,0))","v":"капуста"},{"$f":"INDEX('1С'!$D:$D,MATCH('Исходные данные'!AE:AE,'1С'!$A:$A,0))","v":"баран"},{"$f":"INDEX('Инструменты и нормы упаковки'!$B:$B,MATCH('Исходные данные'!AG:AG,'Инструменты и нормы упаковки'!$A:$A,0))","v":2},{"$f":"INDEX('1С'!$G:$G,MATCH('Исходные данные'!AE:AE,'1С'!$A:$A,0))","v":1800},900,null,null,"4",151,{"$f":"INDEX('1С'!$B:$B,MATCH('Исходные данные'!AN:AN,'1С'!$A:$A,0))","v":"капуста"},{"$f":"INDEX('1С'!$D:$D,MATCH('Исходные данные'!AN:AN,'1С'!$A:$A,0))","v":"баран"},{"$f":"INDEX('Инструменты и нормы упаковки'!$B:$B,MATCH('Исходные данные'!AP:AP,'Инструменты и нормы упаковки'!$A:$A,0))","v":2},{"$f":"INDEX('1С'!$G:$G,MATCH('Исходные данные'!AN:AN,'1С'!$A:$A,0))","v":1800},900]
[null,null,"5",127,{"$f":"INDEX('1С'!$B:$B,MATCH('Исходные данные'!D:D,'1С'!$A:$A,0))","v":"картофель"},{"$f":"INDEX('1С'!$D:$D,MATCH('Исходные данные'!D:D,'1С'!$A:$A,0))","v":"козёл"},{"$f":"INDEX('1С'!$G:$G,MATCH('Исходные данные'!D:D,'1С'!$A:$A,0))","v":1600},{"$f":"INDEX('Инструменты и нормы упаковки'!$B:$B,MATCH('Исходные данные'!F:F,'Инструменты и нормы упаковки'!$A:$A,0))","v":10},160,240,480,"5",137,{"$f":"INDEX('1С'!$B:$B,MATCH('Исходные данные'!M:M,'1С'!$A:$A,0))","v":"картофель"},{"$f":"INDEX('1С'!$D:$D,MATCH('Исходные данные'!M:M,'1С'!$A:$A,0))","v":"козёл"},{"$f":"INDEX('Инструменты и нормы упаковки'!$B:$B,MATCH('Исходные данные'!O:O,'Инструменты и нормы упаковки'!$A:$A,0))","v":10},{"$f":"INDEX('1С'!$G:$G,MATCH('Исходные данные'!M:M,'1С'!$A:$A,0))","v":1300},130,null,null,"5",157,{"$f":"INDEX('1С'!$B:$B,MATCH('Исходные данные'!V:V,'1С'!$A:$A,0))","v":"картофель"},{"$f":"INDEX('1С'!$D:$D,MATCH('Исходные данные'!V:V,'1С'!$A:$A,0))","v":"козёл"},{"$f":"INDEX('Инструменты и нормы упаковки'!$B:$B,MATCH('Исходные данные'!X:X,'Инструменты и нормы упаковки'!$A:$A,0))","v":10},{"$f":"INDEX('1С'!$G:$G,MATCH('Исходные данные'!V:V,'1С'!$A:$A,0))","v":1600},160,null,null,"5",142,{"$f":"INDEX('1С'!$B:$B,MATCH('Исходные данные'!AE:AE,'1С'!$A:$A,0))","v":"картофель"},{"$f":"INDEX('1С'!$D:$D,MATCH('Исходные данные'!AE:AE,'1С'!$A:$A,0))","v":"козёл"},{"$f":"INDEX('Инструменты и нормы упаковки'!$B:$B,MATCH('Исходные данные'!AG:AG,'Инструменты и нормы упаковки'!$A:$A,0))","v":10},{"$f":"INDEX('1С'!$G:$G,MATCH('Исходные данные'!AE:AE,'1С'!$A:$A,0))","v":1600},160,240,480,"5",132,{"$f":"INDEX('1С'!$B:$B,MATCH('Исходные данные'!AN:AN,'1С'!$A:$A,0))","v":"картофель"},{"$f":"INDEX('1С'!$D:$D,MATCH('Исходные данные'!AN:AN,'1С'!$A:$A,0))","v":"козёл"},{"$f":"INDEX('Инструменты и нормы упаковки'!$B:$B,MATCH('Исходные данные'!AP:AP,'Инструменты и нормы упаковки'!$A:$A,0))","v":10},{"$f":"INDEX('1С'!$G:$G,MATCH('Исходные данные'!AN:AN,'1С'!$A:$A,0))","v":1600},160]

{"sheet":"1С","index":2,"n_rows":300,"n_cols":16,"rows_kept":300,"cut":false,"hidden":false,"merged":[]}
["Заказ","Артикул","пастбище","животное","Кол-во","съедено","Осталось","0","1",null,8,{"$f":"INDEX('Исходные данные'!C:C,K1)","v":0},null,null,null,3]
[123,"трава","1","корова",90000,10000,{"$f":"Таблица2[[#This Row],[Кол-во]]-F2","v":80000},{"$f":"IF(Таблица2[[#This Row],[пастбище]]=L$1,IF(ISNA(MATCH(Таблица2[[#This Row],[Заказ]],INDEX('Исходные данные'!$1:$1048576,K$1,),)),H1+1,H1),H1)","v":"0"},{"$f":"IFERROR(INDEX(Таблица2[Заказ],MATCH(ROW(I1),Таблица2[0],))&\" | \"&INDEX(Таблица2[Артикул],MATCH(ROW(I1),Таблица2[0],)),\"|\")","v":" | "}]
[124,"морковь","2","лошадь",5000,1000,{"$f":"Таблица2[[#This Row],[Кол-во]]-F3","v":4000},{"$f":"IF(Таблица2[[#This Row],[пастбище]]=L$1,IF(ISNA(MATCH(Таблица2[[#This Row],[Заказ]],INDEX('Исходные данные'!$1:$1048576,K$1,),)),H2+1,H2),H2)","v":"0"},{"$f":"IFERROR(INDEX(Таблица2[Заказ],MATCH(ROW(I2),Таблица2[0],))&\" | \"&INDEX(Таблица2[Артикул],MATCH(ROW(I2),Таблица2[0],)),\"|\")","v":" | "},null,{"$f":"IF(I2=\"|\",\"|\",\"I2:I\"&MATCH(\"|\",Таблица2[1],))","v":"I2:I239"}]
[125,"брюква","3","кролик",2000,500,{"$f":"Таблица2[[#This Row],[Кол-во]]-F4","v":1500},{"$f":"IF(Таблица2[[#This Row],[пастбище]]=L$1,IF(ISNA(MATCH(Таблица2[[#This Row],[Заказ]],INDEX('Исходные данные'!$1:$1048576,K$1,),)),H3+1,H3),H3)","v":"0"},{"$f":"IFERROR(INDEX(Таблица2[Заказ],MATCH(ROW(I3),Таблица2[0],))&\" | \"&INDEX(Таблица2[Артикул],MATCH(ROW(I3),Таблица2[0],)),\"|\")","v":" | "},null,{"$f":"CELL(\"filename\",L5)","v":"C:\\Users\\Michael\\Downloads\\[raschjot_vremeni.xlsm]1С"}]
[126,"капуста","4","баран",900,800,{"$f":"Таблица2[[#This Row],[Кол-во]]-F5","v":100},{"$f":"IF(Таблица2[[#This Row],[пастбище]]=L$1,IF(ISNA(MATCH(Таблица2[[#This Row],[Заказ]],INDEX('Исходные данные'!$1:$1048576,K$1,),)),H4+1,H4),H4)","v":"0"},{"$f":"IFERROR(INDEX(Таблица2[Заказ],MATCH(ROW(I4),Таблица2[0],))&\" | \"&INDEX(Таблица2[Артикул],MATCH(ROW(I4),Таблица2[0],)),\"|\")","v":" | "},null,{"$f":"\"'\"&MID(K4,SEARCH(\"]\",K4)+1,31)&\"'!\"&K3","v":"'1С'!I2:I239"}]
[127,"картофель","5","козёл",1600,null,{"$f":"Таблица2[[#This Row],[Кол-во]]-F6","v":1600},{"$f":"IF(Таблица2[[#This Row],[пастбище]]=L$1,IF(ISNA(MATCH(Таблица2[[#This Row],[Заказ]],INDEX('Исходные данные'!$1:$1048576,K$1,),)),H5+1,H5),H5)","v":"0"},{"$f":"IFERROR(INDEX(Таблица2[Заказ],MATCH(ROW(I5),Таблица2[0],))&\" | \"&INDEX(Таблица2[Артикул],MATCH(ROW(I5),Таблица2[0],)),\"|\")","v":" | "}]
[128,"трава","1","корова",90000,30000,{"$f":"Таблица2[[#This Row],[Кол-во]]-F7","v":60000},{"$f":"IF(Таблица2[[#This Row],[пастбище]]=L$1,IF(ISNA(MATCH(Таблица2[[#This Row],[Заказ]],INDEX('Исходные данные'!$1:$1048576,K$1,),)),H6+1,H6),H6)","v":"0"},{"$f":"IFERROR(INDEX(Таблица2[Заказ],MATCH(ROW(I6),Таблица2[0],))&\" | \"&INDEX(Таблица2[Артикул],MATCH(ROW(I6),Таблица2[0],)),\"|\")","v":" | "}]
[129,"морковь","2","лошадь",5000,3000,{"$f":"Таблица2[[#This Row],[Кол-во]]-F8","v":2000},{"$f":"IF(Таблица2[[#This Row],[пастбище]]=L$1,IF(ISNA(MATCH(Таблица2[[#This Row],[Заказ]],INDEX('Исходные данные'!$1:$1048576,K$1,),)),H7+1,H7),H7)","v":"0"},{"$f":"IFERROR(INDEX(Таблица2[Заказ],MATCH(ROW(I7),Таблица2[0],))&\" | \"&INDEX(Таблица2[Артикул],MATCH(ROW(I7),Таблица2[0],)),\"|\")","v":" | "}]
[130,"брюква","3","кролик",2000,1000,{"$f":"Таблица2[[#This Row],[Кол-во]]-F9","v":1000},{"$f":"IF(Таблица2[[#This Row],[пастбище]]=L$1,IF(ISNA(MATCH(Таблица2[[#This Row],[Заказ]],INDEX('Исходные данные'!$1:$1048576,K$1,),)),H8+1,H8),H8)","v":"0"},{"$f":"IFERROR(INDEX(Таблица2[Заказ],MATCH(ROW(I8),Таблица2[0],))&\" | \"&INDEX(Таблица2[Артикул],MATCH(ROW(I8),Таблица2[0],)),\"|\")","v":" | "}]
[131,"капуста","4","баран",2400,1800,{"$f":"Таблица2[[#This Row],[Кол-во]]-F10","v":600},{"$f":"IF(Таблица2[[#This Row],[пастбище]]=L$1,IF(ISNA(MATCH(Таблица2[[#This Row],[Заказ]],INDEX('Исходные данные'!$1:$1048576,K$1,),)),H9+1,H9),H9)","v":"0"},{"$f":"IFERROR(INDEX(Таблица2[Заказ],MATCH(ROW(I9),Таблица2[0],))&\" | \"&INDEX(Таблица2[Артикул],MATCH(ROW(I9),Таблица2[0],)),\"|\")","v":" | "}]
[132,"картофель","5","козёл",1600,null,{"$f":"Таблица2[[#This Row],[Кол-во]]-F11","v":1600},{"$f":"IF(Таблица2[[#This Row],[пастбище]]=L$1,IF(ISNA(MATCH(Таблица2[[#This Row],[Заказ]],INDEX('Исходные данные'!$1:$1048576,K$1,),)),H10+1,H10),H10)","v":"0"},{"$f":"IFERROR(INDEX(Таблица2[Заказ],MATCH(ROW(I10),Таблица2[0],))&\" | \"&INDEX(Таблица2[Артикул],MATCH(ROW(I10),Таблица2[0],)),\"|\")","v":" | "}]
[133,"трава","1","корова",90000,60000,{"$f":"Таблица2[[#This Row],[Кол-во]]-F12","v":30000},{"$f":"IF(Таблица2[[#This Row],[пастбище]]=L$1,IF(ISNA(MATCH(Таблица2[[#This Row],[Заказ]],INDEX('Исходные данные'!$1:$1048576,K$1,),)),H11+1,H11),H11)","v":"0"},{"$f":"IFERROR(INDEX(Таблица2[Заказ],MATCH(ROW(I11),Таблица2[0],))&\" | \"&INDEX(Таблица2[Артикул],MATCH(ROW(I11),Таблица2[0],)),\"|\")","v":" | "}]
[134,"морковь","2","лошадь",5000,500,{"$f":"Таблица2[[#This Row],[Кол-во]]-F13","v":4500},{"$f":"IF(Таблица2[[#This Row],[пастбище]]=L$1,IF(ISNA(MATCH(Таблица2[[#This Row],[Заказ]],INDEX('Исходные данные'!$1:$1048576,K$1,),)),H12+1,H12),H12)","v":"0"},{"$f":"IFERROR(INDEX(Таблица2[Заказ],MATCH(ROW(I12),Таблица2[0],))&\" | \"&INDEX(Таблица2[Артикул],MATCH(ROW(I12),Таблица2[0],)),\"|\")","v":" | "}]
[135,"брюква","3","кролик",2000,1500,{"$f":"Таблица2[[#This Row],[Кол-во]]-F14","v":500},{"$f":"IF(Таблица2[[#This Row],[пастбище]]=L$1,IF(ISNA(MATCH(Таблица2[[#This Row],[Заказ]],INDEX('Исходные данные'!$1:$1048576,K$1,),)),H13+1,H13),H13)","v":"0"},{"$f":"IFERROR(INDEX(Таблица2[Заказ],MATCH(ROW(I13),Таблица2[0],))&\" | \"&INDEX(Таблица2[Артикул],MATCH(ROW(I13),Таблица2[0],)),\"|\")","v":" | "}]
[136,"капуста","4","баран",1800,1200,{"$f":"Таблица2[[#This Row],[Кол-во]]-F15","v":600},{"$f":"IF(Таблица2[[#This Row],[пастбище]]=L$1,IF(ISNA(MATCH(Таблица2[[#This Row],[Заказ]],INDEX('Исходные данные'!$1:$1048576,K$1,),)),H14+1,H14),H14)","v":"0"},{"$f":"IFERROR(INDEX(Таблица2[Заказ],MATCH(ROW(I14),Таблица2[0],))&\" | \"&INDEX(Таблица2[Артикул],MATCH(ROW(I14),Таблица2[0],)),\"|\")","v":" | "}]
[137,"картофель","5","козёл",1600,300,{"$f":"Таблица2[[#This Row],[Кол-во]]-F16","v":1300},{"$f":"IF(Таблица2[[#This Row],[пастбище]]=L$1,IF(ISNA(MATCH(Таблица2[[#This Row],[Заказ]],INDEX('Исходные данные'!$1:$1048576,K$1,),)),H15+1,H15),H15)","v":"0"},{"$f":"IFERROR(INDEX(Таблица2[Заказ],MATCH(ROW(I15),Таблица2[0],))&\" | \"&INDEX(Таблица2[Артикул],MATCH(ROW(I15),Таблица2[0],)),\"|\")","v":" | "}]
[138,"трава","1","корова",90000,null,{"$f":"Таблица2[[#This Row],[Кол-во]]-F17","v":90000},{"$f":"IF(Таблица2[[#This Row],[пастбище]]=L$1,IF(ISNA(MATCH(Таблица2[[#This Row],[Заказ]],INDEX('Исходные данные'!$1:$1048576,K$1,),)),H16+1,H16),H16)","v":"0"},{"$f":"IFERROR(INDEX(Таблица2[Заказ],MATCH(ROW(I16),Таблица2[0],))&\" | \"&INDEX(Таблица2[Артикул],MATCH(ROW(I16),Таблица2[0],)),\"|\")","v":" | "}]
[139,"морковь","2","лошадь",5000,null,{"$f":"Таблица2[[#This Row],[Кол-во]]-F18","v":5000},{"$f":"IF(Таблица2[[#This Row],[пастбище]]=L$1,IF(ISNA(MATCH(Таблица2[[#This Row],[Заказ]],INDEX('Исходные данные'!$1:$1048576,K$1,),)),H17+1,H17),H17)","v":"0"},{"$f":"IFERROR(INDEX(Таблица2[Заказ],MATCH(ROW(I17),Таблица2[0],))&\" | \"&INDEX(Таблица2[Артикул],MATCH(ROW(I17),Таблица2[0],)),\"|\")","v":" | "}]
[140,"брюква","3","кролик",2000,null,{"$f":"Таблица2[[#This Row],[Кол-во]]-F19","v":2000},{"$f":"IF(Таблица2[[#This Row],[пастбище]]=L$1,IF(ISNA(MATCH(Таблица2[[#This Row],[Заказ]],INDEX('Исходные данные'!$1:$1048576,K$1,),)),H18+1,H18),H18)","v":"0"},{"$f":"IFERROR(INDEX(Таблица2[Заказ],MATCH(ROW(I18),Таблица2[0],))&\" | \"&INDEX(Таблица2[Артикул],MATCH(ROW(I18),Таблица2[0],)),\"|\")","v":" | "}]
[141,"капуста","4","баран",1800,null,{"$f":"Таблица2[[#This Row],[Кол-во]]-F20","v":1800},{"$f":"IF(Таблица2[[#This Row],[пастбище]]=L$1,IF(ISNA(MATCH(Таблица2[[#This Row],[Заказ]],INDEX('Исходные данные'!$1:$1048576,K$1,),)),H19+1,H19),H19)","v":"0"},{"$f":"IFERROR(INDEX(Таблица2[Заказ],MATCH(ROW(I19),Таблица2[0],))&\" | \"&INDEX(Таблица2[Артикул],MATCH(ROW(I19),Таблица2[0],)),\"|\")","v":" | "}]
[142,"картофель","5","козёл",1600,null,{"$f":"Таблица2[[#This Row],[Кол-во]]-F21","v":1600},{"$f":"IF(Таблица2[[#This Row],[пастбище]]=L$1,IF(ISNA(MATCH(Таблица2[[#This Row],[Заказ]],INDEX('Исходные данные'!$1:$1048576,K$1,),)),H20+1,H20),H20)","v":"0"},{"$f":"IFERROR(INDEX(Таблица2[Заказ],MATCH(ROW(I20),Таблица2[0],))&\" | \"&INDEX(Таблица2[Артикул],MATCH(ROW(I20),Таблица2[0],)),\"|\")","v":" | "}]
[143,"трава","1","корова",90000,null,{"$f":"Таблица2[[#This Row],[Кол-во]]-F22","v":90000},{"$f":"IF(Таблица2[[#This Row],[пастбище]]=L$1,IF(ISNA(MATCH(Таблица2[[#This Row],[Заказ]],INDEX('Исходные данные'!$1:$1048576,K$1,),)),H21+1,H21),H21)","v":"0"},{"$f":"IFERROR(INDEX(Таблица2[Заказ],MATCH(ROW(I21),Таблица2[0],))&\" | \"&INDEX(Таблица2[Артикул],MATCH(ROW(I21),Таблица2[0],)),\"|\")","v":" | "}]
[144,"морковь","2","лошадь",5000,null,{"$f":"Таблица2[[#This Row],[Кол-во]]-F23","v":5000},{"$f":"IF(Таблица2[[#This Row],[пастбище]]=L$1,IF(ISNA(MATCH(Таблица2[[#This Row],[Заказ]],INDEX('Исходные данные'!$1:$1048576,K$1,),)),H22+1,H22),H22)","v":"0"},{"$f":"IFERROR(INDEX(Таблица2[Заказ],MATCH(ROW(I22),Таблица2[0],))&\" | \"&INDEX(Таблица2[Артикул],MATCH(ROW(I22),Таблица2[0],)),\"|\")","v":" | "}]
[145,"брюква","3","кролик",2000,null,{"$f":"Таблица2[[#This Row],[Кол-во]]-F24","v":2000},{"$f":"IF(Таблица2[[#This Row],[пастбище]]=L$1,IF(ISNA(MATCH(Таблица2[[#This Row],[Заказ]],INDEX('Исходные данные'!$1:$1048576,K$1,),)),H23+1,H23),H23)","v":"0"},{"$f":"IFERROR(INDEX(Таблица2[Заказ],MATCH(ROW(I23),Таблица2[0],))&\" | \"&INDEX(Таблица2[Артикул],MATCH(ROW(I23),Таблица2[0],)),\"|\")","v":" | "}]
[146,"капуста","4","баран",1800,null,{"$f":"Таблица2[[#This Row],[Кол-во]]-F25","v":1800},{"$f":"IF(Таблица2[[#This Row],[пастбище]]=L$1,IF(ISNA(MATCH(Таблица2[[#This Row],[Заказ]],INDEX('Исходные данные'!$1:$1048576,K$1,),)),H24+1,H24),H24)","v":"0"},{"$f":"IFERROR(INDEX(Таблица2[Заказ],MATCH(ROW(I24),Таблица2[0],))&\" | \"&INDEX(Таблица2[Артикул],MATCH(ROW(I24),Таблица2[0],)),\"|\")","v":" | "}]
[147,"картофель","5","козёл",1600,null,{"$f":"Таблица2[[#This Row],[Кол-во]]-F26","v":1600},{"$f":"IF(Таблица2[[#This Row],[пастбище]]=L$1,IF(ISNA(MATCH(Таблица2[[#This Row],[Заказ]],INDEX('Исходные данные'!$1:$1048576,K$1,),)),H25+1,H25),H25)","v":"0"},{"$f":"IFERROR(INDEX(Таблица2[Заказ],MATCH(ROW(I25),Таблица2[0],))&\" | \"&INDEX(Таблица2[Артикул],MATCH(ROW(I25),Таблица2[0],)),\"|\")","v":" | "}]
[148,"трава","1","корова",90000,null,{"$f":"Таблица2[[#This Row],[Кол-во]]-F27","v":90000},{"$f":"IF(Таблица2[[#This Row],[пастбище]]=L$1,IF(ISNA(MATCH(Таблица2[[#This Row],[Заказ]],INDEX('Исходные данные'!$1:$1048576,K$1,),)),H26+1,H26),H26)","v":"0"},{"$f":"IFERROR(INDEX(Таблица2[Заказ],MATCH(ROW(I26),Таблица2[0],))&\" | \"&INDEX(Таблица2[Артикул],MATCH(ROW(I26),Таблица2[0],)),\"|\")","v":" | "}]
[149,"морковь","2","лошадь",5000,null,{"$f":"Таблица2[[#This Row],[Кол-во]]-F28","v":5000},{"$f":"IF(Таблица2[[#This Row],[пастбище]]=L$1,IF(ISNA(MATCH(Таблица2[[#This Row],[Заказ]],INDEX('Исходные данные'!$1:$1048576,K$1,),)),H27+1,H27),H27)","v":"0"},{"$f":"IFERROR(INDEX(Таблица2[Заказ],MATCH(ROW(I27),Таблица2[0],))&\" | \"&INDEX(Таблица2[Артикул],MATCH(ROW(I27),Таблица2[0],)),\"|\")","v":" | "}]
[150,"брюква","3","кролик",2000,null,{"$f":"Таблица2[[#This Row],[Кол-во]]-F29","v":2000},{"$f":"IF(Таблица2[[#This Row],[пастбище]]=L$1,IF(ISNA(MATCH(Таблица2[[#This Row],[Заказ]],INDEX('Исходные данные'!$1:$1048576,K$1,),)),H28+1,H28),H28)","v":"0"},{"$f":"IFERROR(INDEX(Таблица2[Заказ],MATCH(ROW(I28),Таблица2[0],))&\" | \"&INDEX(Таблица2[Артикул],MATCH(ROW(I28),Таблица2[0],)),\"|\")","v":" | "}]
[151,"капуста","4","баран",1800,null,{"$f":"Таблица2[[#This Row],[Кол-во]]-F30","v":1800},{"$f":"IF(Таблица2[[#This Row],[пастбище]]=L$1,IF(ISNA(MATCH(Таблица2[[#This Row],[Заказ]],INDEX('Исходные данные'!$1:$1048576,K$1,),)),H29+1,H29),H29)","v":"0"},{"$f":"IFERROR(INDEX(Таблица2[Заказ],MATCH(ROW(I29),Таблица2[0],))&\" | \"&INDEX(Таблица2[Артикул],MATCH(ROW(I29),Таблица2[0],)),\"|\")","v":" | "}]
[152,"картофель","5","козёл",1600,null,{"$f":"Таблица2[[#This Row],[Кол-во]]-F31","v":1600},{"$f":"IF(Таблица2[[#This Row],[пастбище]]=L$1,IF(ISNA(MATCH(Таблица2[[#This Row],[Заказ]],INDEX('Исходные данные'!$1:$1048576,K$1,),)),H30+1,H30),H30)","v":"0"},{"$f":"IFERROR(INDEX(Таблица2[Заказ],MATCH(ROW(I30),Таблица2[0],))&\" | \"&INDEX(Таблица2[Артикул],MATCH(ROW(I30),Таблица2[0],)),\"|\")","v":" | "}]
[153,"трава","1","корова",90000,null,{"$f":"Таблица2[[#This Row],[Кол-во]]-F32","v":90000},{"$f":"IF(Таблица2[[#This Row],[пастбище]]=L$1,IF(ISNA(MATCH(Таблица2[[#This Row],[Заказ]],INDEX('Исходные данные'!$1:$1048576,K$1,),)),H31+1,H31),H31)","v":"0"},{"$f":"IFERROR(INDEX(Таблица2[Заказ],MATCH(ROW(I31),Таблица2[0],))&\" | \"&INDEX(Таблица2[Артикул],MATCH(ROW(I31),Таблица2[0],)),\"|\")","v":" | "}]
[154,"морковь","2","лошадь",5000,null,{"$f":"Таблица2[[#This Row],[Кол-во]]-F33","v":5000},{"$f":"IF(Таблица2[[#This Row],[пастбище]]=L$1,IF(ISNA(MATCH(Таблица2[[#This Row],[Заказ]],INDEX('Исходные данные'!$1:$1048576,K$1,),)),H32+1,H32),H32)","v":"0"},{"$f":"IFERROR(INDEX(Таблица2[Заказ],MATCH(ROW(I32),Таблица2[0],))&\" | \"&INDEX(Таблица2[Артикул],MATCH(ROW(I32),Таблица2[0],)),\"|\")","v":" | "}]
[155,"брюква","3","кролик",2000,null,{"$f":"Таблица2[[#This Row],[Кол-во]]-F34","v":2000},{"$f":"IF(Таблица2[[#This Row],[пастбище]]=L$1,IF(ISNA(MATCH(Таблица2[[#This Row],[Заказ]],INDEX('Исходные данные'!$1:$1048576,K$1,),)),H33+1,H33),H33)","v":"0"},{"$f":"IFERROR(INDEX(Таблица2[Заказ],MATCH(ROW(I33),Таблица2[0],))&\" | \"&INDEX(Таблица2[Артикул],MATCH(ROW(I33),Таблица2[0],)),\"|\")","v":" | "}]
[156,"капуста","4","баран",1800,null,{"$f":"Таблица2[[#This Row],[Кол-во]]-F35","v":1800},{"$f":"IF(Таблица2[[#This Row],[пастбище]]=L$1,IF(ISNA(MATCH(Таблица2[[#This Row],[Заказ]],INDEX('Исходные данные'!$1:$1048576,K$1,),)),H34+1,H34),H34)","v":"0"},{"$f":"IFERROR(INDEX(Таблица2[Заказ],MATCH(ROW(I34),Таблица2[0],))&\" | \"&INDEX(Таблица2[Артикул],MATCH(ROW(I34),Таблица2[0],)),\"|\")","v":" | "}]
[157,"картофель","5","козёл",1600,null,{"$f":"Таблица2[[#This Row],[Кол-во]]-F36","v":1600},{"$f":"IF(Таблица2[[#This Row],[пастбище]]=L$1,IF(ISNA(MATCH(Таблица2[[#This Row],[Заказ]],INDEX('Исходные данные'!$1:$1048576,K$1,),)),H35+1,H35),H35)","v":"0"},{"$f":"IFERROR(INDEX(Таблица2[Заказ],MATCH(ROW(I35),Таблица2[0],))&\" | \"&INDEX(Таблица2[Артикул],MATCH(ROW(I35),Таблица2[0],)),\"|\")","v":" | "}]
[158,"трава","1","корова",90000,null,{"$f":"Таблица2[[#This Row],[Кол-во]]-F37","v":90000},{"$f":"IF(Таблица2[[#This Row],[пастбище]]=L$1,IF(ISNA(MATCH(Таблица2[[#This Row],[Заказ]],INDEX('Исходные данные'!$1:$1048576,K$1,),)),H36+1,H36),H36)","v":"0"},{"$f":"IFERROR(INDEX(Таблица2[Заказ],MATCH(ROW(I36),Таблица2[0],))&\" | \"&INDEX(Таблица2[Артикул],MATCH(ROW(I36),Таблица2[0],)),\"|\")","v":" | "}]
[159,"морковь","2","лошадь",5000,null,{"$f":"Таблица2[[#This Row],[Кол-во]]-F38","v":5000},{"$f":"IF(Таблица2[[#This Row],[пастбище]]=L$1,IF(ISNA(MATCH(Таблица2[[#This Row],[Заказ]],INDEX('Исходные данные'!$1:$1048576,K$1,),)),H37+1,H37),H37)","v":"0"},{"$f":"IFERROR(INDEX(Таблица2[Заказ],MATCH(ROW(I37),Таблица2[0],))&\" | \"&INDEX(Таблица2[Артикул],MATCH(ROW(I37),Таблица2[0],)),\"|\")","v":" | "}]
[160,"брюква","3","кролик",2000,null,{"$f":"Таблица2[[#This Row],[Кол-во]]-F39","v":2000},{"$f":"IF(Таблица2[[#This Row],[пастбище]]=L$1,IF(ISNA(MATCH(Таблица2[[#This Row],[Заказ]],INDEX('Исходные данные'!$1:$1048576,K$1,),)),H38+1,H38),H38)","v":"0"},{"$f":"IFERROR(INDEX(Таблица2[Заказ],MATCH(ROW(I38),Таблица2[0],))&\" | \"&INDEX(Таблица2[Артикул],MATCH(ROW(I38),Таблица2[0],)),\"|\")","v":" | "}]
[161,"капуста","4","баран",1800,null,{"$f":"Таблица2[[#This Row],[Кол-во]]-F40","v":1800},{"$f":"IF(Таблица2[[#This Row],[пастбище]]=L$1,IF(ISNA(MATCH(Таблица2[[#This Row],[Заказ]],INDEX('Исходные данные'!$1:$1048576,K$1,),)),H39+1,H39),H39)","v":"0"},{"$f":"IFERROR(INDEX(Таблица2[Заказ],MATCH(ROW(I39),Таблица2[0],))&\" | \"&INDEX(Таблица2[Артикул],MATCH(ROW(I39),Таблица2[0],)),\"|\")","v":" | "}]
[162,"картофель","5","козёл",1600,null,{"$f":"Таблица2[[#This Row],[Кол-во]]-F41","v":1600},{"$f":"IF(Таблица2[[#This Row],[пастбище]]=L$1,IF(ISNA(MATCH(Таблица2[[#This Row],[Заказ]],INDEX('Исходные данные'!$1:$1048576,K$1,),)),H40+1,H40),H40)","v":"0"},{"$f":"IFERROR(INDEX(Таблица2[Заказ],MATCH(ROW(I40),Таблица2[0],))&\" | \"&INDEX(Таблица2[Артикул],MATCH(ROW(I40),Таблица2[0],)),\"|\")","v":" | "}]
[163,"трава","1","корова",90000,null,{"$f":"Таблица2[[#This Row],[Кол-во]]-F42","v":90000},{"$f":"IF(Таблица2[[#This Row],[пастбище]]=L$1,IF(ISNA(MATCH(Таблица2[[#This Row],[Заказ]],INDEX('Исходные данные'!$1:$1048576,K$1,),)),H41+1,H41),H41)","v":"0"},{"$f":"IFERROR(INDEX(Таблица2[Заказ],MATCH(ROW(I41),Таблица2[0],))&\" | \"&INDEX(Таблица2[Артикул],MATCH(ROW(I41),Таблица2[0],)),\"|\")","v":" | "}]
[164,"морковь","2","лошадь",5000,null,{"$f":"Таблица2[[#This Row],[Кол-во]]-F43","v":5000},{"$f":"IF(Таблица2[[#This Row],[пастбище]]=L$1,IF(ISNA(MATCH(Таблица2[[#This Row],[Заказ]],INDEX('Исходные данные'!$1:$1048576,K$1,),)),H42+1,H42),H42)","v":"0"},{"$f":"IFERROR(INDEX(Таблица2[Заказ],MATCH(ROW(I42),Таблица2[0],))&\" | \"&INDEX(Таблица2[Артикул],MATCH(ROW(I42),Таблица2[0],)),\"|\")","v":" | "}]
[165,"брюква","3","кролик",2000,null,{"$f":"Таблица2[[#This Row],[Кол-во]]-F44","v":2000},{"$f":"IF(Таблица2[[#This Row],[пастбище]]=L$1,IF(ISNA(MATCH(Таблица2[[#This Row],[Заказ]],INDEX('Исходные данные'!$1:$1048576,K$1,),)),H43+1,H43),H43)","v":"0"},{"$f":"IFERROR(INDEX(Таблица2[Заказ],MATCH(ROW(I43),Таблица2[0],))&\" | \"&INDEX(Таблица2[Артикул],MATCH(ROW(I43),Таблица2[0],)),\"|\")","v":" | "}]
[166,"капуста","4","баран",1800,null,{"$f":"Таблица2[[#This Row],[Кол-во]]-F45","v":1800},{"$f":"IF(Таблица2[[#This Row],[пастбище]]=L$1,IF(ISNA(MATCH(Таблица2[[#This Row],[Заказ]],INDEX('Исходные данные'!$1:$1048576,K$1,),)),H44+1,H44),H44)","v":"0"},{"$f":"IFERROR(INDEX(Таблица2[Заказ],MATCH(ROW(I44),Таблица2[0],))&\" | \"&INDEX(Таблица2[Артикул],MATCH(ROW(I44),Таблица2[0],)),\"|\")","v":" | "}]
[167,"картофель","5","козёл",1600,null,{"$f":"Таблица2[[#This Row],[Кол-во]]-F46","v":1600},{"$f":"IF(Таблица2[[#This Row],[пастбище]]=L$1,IF(ISNA(MATCH(Таблица2[[#This Row],[Заказ]],INDEX('Исходные данные'!$1:$1048576,K$1,),)),H45+1,H45),H45)","v":"0"},{"$f":"IFERROR(INDEX(Таблица2[Заказ],MATCH(ROW(I45),Таблица2[0],))&\" | \"&INDEX(Таблица2[Артикул],MATCH(ROW(I45),Таблица2[0],)),\"|\")","v":" | "}]
[168,"трава","1","корова",90000,null,{"$f":"Таблица2[[#This Row],[Кол-во]]-F47","v":90000},{"$f":"IF(Таблица2[[#This Row],[пастбище]]=L$1,IF(ISNA(MATCH(Таблица2[[#This Row],[Заказ]],INDEX('Исходные данные'!$1:$1048576,K$1,),)),H46+1,H46),H46)","v":"0"},{"$f":"IFERROR(INDEX(Таблица2[Заказ],MATCH(ROW(I46),Таблица2[0],))&\" | \"&INDEX(Таблица2[Артикул],MATCH(ROW(I46),Таблица2[0],)),\"|\")","v":" | "}]
[169,"морковь","2","лошадь",5000,null,{"$f":"Таблица2[[#This Row],[Кол-во]]-F48","v":5000},{"$f":"IF(Таблица2[[#This Row],[пастбище]]=L$1,IF(ISNA(MATCH(Таблица2[[#This Row],[Заказ]],INDEX('Исходные данные'!$1:$1048576,K$1,),)),H47+1,H47),H47)","v":"0"},{"$f":"IFERROR(INDEX(Таблица2[Заказ],MATCH(ROW(I47),Таблица2[0],))&\" | \"&INDEX(Таблица2[Артикул],MATCH(ROW(I47),Таблица2[0],)),\"|\")","v":" | "}]
[170,"брюква","3","кролик",2000,null,{"$f":"Таблица2[[#This Row],[Кол-во]]-F49","v":2000},{"$f":"IF(Таблица2[[#This Row],[пастбище]]=L$1,IF(ISNA(MATCH(Таблица2[[#This Row],[Заказ]],INDEX('Исходные данные'!$1:$1048576,K$1,),)),H48+1,H48),H48)","v":"0"},{"$f":"IFERROR(INDEX(Таблица2[Заказ],MATCH(ROW(I48),Таблица2[0],))&\" | \"&INDEX(Таблица2[Артикул],MATCH(ROW(I48),Таблица2[0],)),\"|\")","v":" | "}]
[171,"капуста","4","баран",1800,null,{"$f":"Таблица2[[#This Row],[Кол-во]]-F50","v":1800},{"$f":"IF(Таблица2[[#This Row],[пастбище]]=L$1,IF(ISNA(MATCH(Таблица2[[#This Row],[Заказ]],INDEX('Исходные данные'!$1:$1048576,K$1,),)),H49+1,H49),H49)","v":"0"},{"$f":"IFERROR(INDEX(Таблица2[Заказ],MATCH(ROW(I49),Таблица2[0],))&\" | \"&INDEX(Таблица2[Артикул],MATCH(ROW(I49),Таблица2[0],)),\"|\")","v":" | "}]
[172,"картофель","5","козёл",1600,null,{"$f":"Таблица2[[#This Row],[Кол-во]]-F51","v":1600},{"$f":"IF(Таблица2[[#This Row],[пастбище]]=L$1,IF(ISNA(MATCH(Таблица2[[#This Row],[Заказ]],INDEX('Исходные данные'!$1:$1048576,K$1,),)),H50+1,H50),H50)","v":"0"},{"$f":"IFERROR(INDEX(Таблица2[Заказ],MATCH(ROW(I50),Таблица2[0],))&\" | \"&INDEX(Таблица2[Артикул],MATCH(ROW(I50),Таблица2[0],)),\"|\")","v":" | "}]
[null,null,null,null,null,null,{"$f":"Таблица2[[#This Row],[Кол-во]]-F52","v":0},{"$f":"IF(Таблица2[[#This Row],[пастбище]]=L$1,IF(ISNA(MATCH(Таблица2[[#This Row],[Заказ]],INDEX('Исходные данные'!$1:$1048576,K$1,),)),H51+1,H51),H51)","v":1},{"$f":"IFERROR(INDEX(Таблица2[Заказ],MATCH(ROW(I51),Таблица2[0],))&\" | \"&INDEX(Таблица2[Артикул],MATCH(ROW(I51),Таблица2[0],)),\"|\")","v":" | "}]
[null,null,null,null,null,null,{"$f":"Таблица2[[#This Row],[Кол-во]]-F53","v":0},{"$f":"IF(Таблица2[[#This Row],[пастбище]]=L$1,IF(ISNA(MATCH(Таблица2[[#This Row],[Заказ]],INDEX('Исходные данные'!$1:$1048576,K$1,),)),H52+1,H52),H52)","v":2},{"$f":"IFERROR(INDEX(Таблица2[Заказ],MATCH(ROW(I52),Таблица2[0],))&\" | \"&INDEX(Таблица2[Артикул],MATCH(ROW(I52),Таблица2[0],)),\"|\")","v":" | "}]
[null,null,null,null,null,null,{"$f":"Таблица2[[#This Row],[Кол-во]]-F54","v":0},{"$f":"IF(Таблица2[[#This Row],[пастбище]]=L$1,IF(ISNA(MATCH(Таблица2[[#This Row],[Заказ]],INDEX('Исходные данные'!$1:$1048576,K$1,),)),H53+1,H53),H53)","v":3},{"$f":"IFERROR(INDEX(Таблица2[Заказ],MATCH(ROW(I53),Таблица2[0],))&\" | \"&INDEX(Таблица2[Артикул],MATCH(ROW(I53),Таблица2[0],)),\"|\")","v":" | "}]
[null,null,null,null,null,null,{"$f":"Таблица2[[#This Row],[Кол-во]]-F55","v":0},{"$f":"IF(Таблица2[[#This Row],[пастбище]]=L$1,IF(ISNA(MATCH(Таблица2[[#This Row],[Заказ]],INDEX('Исходные данные'!$1:$1048576,K$1,),)),H54+1,H54),H54)","v":4},{"$f":"IFERROR(INDEX(Таблица2[Заказ],MATCH(ROW(I54),Таблица2[0],))&\" | \"&INDEX(Таблица2[Артикул],MATCH(ROW(I54),Таблица2[0],)),\"|\")","v":" | "}]
[null,null,null,null,null,null,{"$f":"Таблица2[[#This Row],[Кол-во]]-F56","v":0},{"$f":"IF(Таблица2[[#This Row],[пастбище]]=L$1,IF(ISNA(MATCH(Таблица2[[#This Row],[Заказ]],INDEX('Исходные данные'!$1:$1048576,K$1,),)),H55+1,H55),H55)","v":5},{"$f":"IFERROR(INDEX(Таблица2[Заказ],MATCH(ROW(I55),Таблица2[0],))&\" | \"&INDEX(Таблица2[Артикул],MATCH(ROW(I55),Таблица2[0],)),\"|\")","v":" | "}]
[null,null,null,null,null,null,{"$f":"Таблица2[[#This Row],[Кол-во]]-F57","v":0},{"$f":"IF(Таблица2[[#This Row],[пастбище]]=L$1,IF(ISNA(MATCH(Таблица2[[#This Row],[Заказ]],INDEX('Исходные данные'!$1:$1048576,K$1,),)),H56+1,H56),H56)","v":6},{"$f":"IFERROR(INDEX(Таблица2[Заказ],MATCH(ROW(I56),Таблица2[0],))&\" | \"&INDEX(Таблица2[Артикул],MATCH(ROW(I56),Таблица2[0],)),\"|\")","v":" | "}]
[null,null,null,null,null,null,{"$f":"Таблица2[[#This Row],[Кол-во]]-F58","v":0},{"$f":"IF(Таблица2[[#This Row],[пастбище]]=L$1,IF(ISNA(MATCH(Таблица2[[#This Row],[Заказ]],INDEX('Исходные данные'!$1:$1048576,K$1,),)),H57+1,H57),H57)","v":7},{"$f":"IFERROR(INDEX(Таблица2[Заказ],MATCH(ROW(I57),Таблица2[0],))&\" | \"&INDEX(Таблица2[Артикул],MATCH(ROW(I57),Таблица2[0],)),\"|\")","v":" | "}]
[null,null,null,null,null,null,{"$f":"Таблица2[[#This Row],[Кол-во]]-F59","v":0},{"$f":"IF(Таблица2[[#This Row],[пастбище]]=L$1,IF(ISNA(MATCH(Таблица2[[#This Row],[Заказ]],INDEX('Исходные данные'!$1:$1048576,K$1,),)),H58+1,H58),H58)","v":8},{"$f":"IFERROR(INDEX(Таблица2[Заказ],MATCH(ROW(I58),Таблица2[0],))&\" | \"&INDEX(Таблица2[Артикул],MATCH(ROW(I58),Таблица2[0],)),\"|\")","v":" | "}]
[null,null,null,null,null,null,{"$f":"Таблица2[[#This Row],[Кол-во]]-F60","v":0},{"$f":"IF(Таблица2[[#This Row],[пастбище]]=L$1,IF(ISNA(MATCH(Таблица2[[#This Row],[Заказ]],INDEX('Исходные данные'!$1:$1048576,K$1,),)),H59+1,H59),H59)","v":9},{"$f":"IFERROR(INDEX(Таблица2[Заказ],MATCH(ROW(I59),Таблица2[0],))&\" | \"&INDEX(Таблица2[Артикул],MATCH(ROW(I59),Таблица2[0],)),\"|\")","v":" | "}]
[null,null,null,null,null,null,{"$f":"Таблица2[[#This Row],[Кол-во]]-F61","v":0},{"$f":"IF(Таблица2[[#This Row],[пастбище]]=L$1,IF(ISNA(MATCH(Таблица2[[#This Row],[Заказ]],INDEX('Исходные данные'!$1:$1048576,K$1,),)),H60+1,H60),H60)","v":10},{"$f":"IFERROR(INDEX(Таблица2[Заказ],MATCH(ROW(I60),Таблица2[0],))&\" | \"&INDEX(Таблица2[Артикул],MATCH(ROW(I60),Таблица2[0],)),\"|\")","v":" | "}]
[null,null,null,null,null,null,{"$f":"Таблица2[[#This Row],[Кол-во]]-F62","v":0},{"$f":"IF(Таблица2[[#This Row],[пастбище]]=L$1,IF(ISNA(MATCH(Таблица2[[#This Row],[Заказ]],INDEX('Исходные данные'!$1:$1048576,K$1,),)),H61+1,H61),H61)","v":11},{"$f":"IFERROR(INDEX(Таблица2[Заказ],MATCH(ROW(I61),Таблица2[0],))&\" | \"&INDEX(Таблица2[Артикул],MATCH(ROW(I61),Таблица2[0],)),\"|\")","v":" | "}]
[null,null,null,null,null,null,{"$f":"Таблица2[[#This Row],[Кол-во]]-F63","v":0},{"$f":"IF(Таблица2[[#This Row],[пастбище]]=L$1,IF(ISNA(MATCH(Таблица2[[#This Row],[Заказ]],INDEX('Исходные данные'!$1:$1048576,K$1,),)),H62+1,H62),H62)","v":12},{"$f":"IFERROR(INDEX(Таблица2[Заказ],MATCH(ROW(I62),Таблица2[0],))&\" | \"&INDEX(Таблица2[Артикул],MATCH(ROW(I62),Таблица2[0],)),\"|\")","v":" | "}]
[null,null,null,null,null,null,{"$f":"Таблица2[[#This Row],[Кол-во]]-F64","v":0},{"$f":"IF(Таблица2[[#This Row],[пастбище]]=L$1,IF(ISNA(MATCH(Таблица2[[#This Row],[Заказ]],INDEX('Исходные данные'!$1:$1048576,K$1,),)),H63+1,H63),H63)","v":13},{"$f":"IFERROR(INDEX(Таблица2[Заказ],MATCH(ROW(I63),Таблица2[0],))&\" | \"&INDEX(Таблица2[Артикул],MATCH(ROW(I63),Таблица2[0],)),\"|\")","v":" | "}]
[null,null,null,null,null,null,{"$f":"Таблица2[[#This Row],[Кол-во]]-F65","v":0},{"$f":"IF(Таблица2[[#This Row],[пастбище]]=L$1,IF(ISNA(MATCH(Таблица2[[#This Row],[Заказ]],INDEX('Исходные данные'!$1:$1048576,K$1,),)),H64+1,H64),H64)","v":14},{"$f":"IFERROR(INDEX(Таблица2[Заказ],MATCH(ROW(I64),Таблица2[0],))&\" | \"&INDEX(Таблица2[Артикул],MATCH(ROW(I64),Таблица2[0],)),\"|\")","v":" | "}]
[null,null,null,null,null,null,{"$f":"Таблица2[[#This Row],[Кол-во]]-F66","v":0},{"$f":"IF(Таблица2[[#This Row],[пастбище]]=L$1,IF(ISNA(MATCH(Таблица2[[#This Row],[Заказ]],INDEX('Исходные данные'!$1:$1048576,K$1,),)),H65+1,H65),H65)","v":15},{"$f":"IFERROR(INDEX(Таблица2[Заказ],MATCH(ROW(I65),Таблица2[0],))&\" | \"&INDEX(Таблица2[Артикул],MATCH(ROW(I65),Таблица2[0],)),\"|\")","v":" | "}]
[null,null,null,null,null,null,{"$f":"Таблица2[[#This Row],[Кол-во]]-F67","v":0},{"$f":"IF(Таблица2[[#This Row],[пастбище]]=L$1,IF(ISNA(MATCH(Таблица2[[#This Row],[Заказ]],INDEX('Исходные данные'!$1:$1048576,K$1,),)),H66+1,H66),H66)","v":16},{"$f":"IFERROR(INDEX(Таблица2[Заказ],MATCH(ROW(I66),Таблица2[0],))&\" | \"&INDEX(Таблица2[Артикул],MATCH(ROW(I66),Таблица2[0],)),\"|\")","v":" | "}]
[null,null,null,null,null,null,{"$f":"Таблица2[[#This Row],[Кол-во]]-F68","v":0},{"$f":"IF(Таблица2[[#This Row],[пастбище]]=L$1,IF(ISNA(MATCH(Таблица2[[#This Row],[Заказ]],INDEX('Исходные данные'!$1:$1048576,K$1,),)),H67+1,H67),H67)","v":17},{"$f":"IFERROR(INDEX(Таблица2[Заказ],MATCH(ROW(I67),Таблица2[0],))&\" | \"&INDEX(Таблица2[Артикул],MATCH(ROW(I67),Таблица2[0],)),\"|\")","v":" | "}]
[null,null,null,null,null,null,{"$f":"Таблица2[[#This Row],[Кол-во]]-F69","v":0},{"$f":"IF(Таблица2[[#This Row],[пастбище]]=L$1,IF(ISNA(MATCH(Таблица2[[#This Row],[Заказ]],INDEX('Исходные данные'!$1:$1048576,K$1,),)),H68+1,H68),H68)","v":18},{"$f":"IFERROR(INDEX(Таблица2[Заказ],MATCH(ROW(I68),Таблица2[0],))&\" | \"&INDEX(Таблица2[Артикул],MATCH(ROW(I68),Таблица2[0],)),\"|\")","v":" | "}]
[null,null,null,null,null,null,{"$f":"Таблица2[[#This Row],[Кол-во]]-F70","v":0},{"$f":"IF(Таблица2[[#This Row],[пастбище]]=L$1,IF(ISNA(MATCH(Таблица2[[#This Row],[Заказ]],INDEX('Исходные данные'!$1:$1048576,K$1,),)),H69+1,H69),H69)","v":19},{"$f":"IFERROR(INDEX(Таблица2[Заказ],MATCH(ROW(I69),Таблица2[0],))&\" | \"&INDEX(Таблица2[Артикул],MATCH(ROW(I69),Таблица2[0],)),\"|\")","v":" | "}]
[null,null,null,null,null,null,{"$f":"Таблица2[[#This Row],[Кол-во]]-F71","v":0},{"$f":"IF(Таблица2[[#This Row],[пастбище]]=L$1,IF(ISNA(MATCH(Таблица2[[#This Row],[Заказ]],INDEX('Исходные данные'!$1:$1048576,K$1,),)),H70+1,H70),H70)","v":20},{"$f":"IFERROR(INDEX(Таблица2[Заказ],MATCH(ROW(I70),Таблица2[0],))&\" | \"&INDEX(Таблица2[Артикул],MATCH(ROW(I70),Таблица2[0],)),\"|\")","v":" | "}]
[null,null,null,null,null,null,{"$f":"Таблица2[[#This Row],[Кол-во]]-F72","v":0},{"$f":"IF(Таблица2[[#This Row],[пастбище]]=L$1,IF(ISNA(MATCH(Таблица2[[#This Row],[Заказ]],INDEX('Исходные данные'!$1:$1048576,K$1,),)),H71+1,H71),H71)","v":21},{"$f":"IFERROR(INDEX(Таблица2[Заказ],MATCH(ROW(I71),Таблица2[0],))&\" | \"&INDEX(Таблица2[Артикул],MATCH(ROW(I71),Таблица2[0],)),\"|\")","v":" | "}]
[null,null,null,null,null,null,{"$f":"Таблица2[[#This Row],[Кол-во]]-F73","v":0},{"$f":"IF(Таблица2[[#This Row],[пастбище]]=L$1,IF(ISNA(MATCH(Таблица2[[#This Row],[Заказ]],INDEX('Исходные данные'!$1:$1048576,K$1,),)),H72+1,H72),H72)","v":22},{"$f":"IFERROR(INDEX(Таблица2[Заказ],MATCH(ROW(I72),Таблица2[0],))&\" | \"&INDEX(Таблица2[Артикул],MATCH(ROW(I72),Таблица2[0],)),\"|\")","v":" | "}]
[null,null,null,null,null,null,{"$f":"Таблица2[[#This Row],[Кол-во]]-F74","v":0},{"$f":"IF(Таблица2[[#This Row],[пастбище]]=L$1,IF(ISNA(MATCH(Таблица2[[#This Row],[Заказ]],INDEX('Исходные данные'!$1:$1048576,K$1,),)),H73+1,H73),H73)","v":23},{"$f":"IFERROR(INDEX(Таблица2[Заказ],MATCH(ROW(I73),Таблица2[0],))&\" | \"&INDEX(Таблица2[Артикул],MATCH(ROW(I73),Таблица2[0],)),\"|\")","v":" | "}]
[null,null,null,null,null,null,{"$f":"Таблица2[[#This Row],[Кол-во]]-F75","v":0},{"$f":"IF(Таблица2[[#This Row],[пастбище]]=L$1,IF(ISNA(MATCH(Таблица2[[#This Row],[Заказ]],INDEX('Исходные данные'!$1:$1048576,K$1,),)),H74+1,H74),H74)","v":24},{"$f":"IFERROR(INDEX(Таблица2[Заказ],MATCH(ROW(I74),Таблица2[0],))&\" | \"&INDEX(Таблица2[Артикул],MATCH(ROW(I74),Таблица2[0],)),\"|\")","v":" | "}]
[null,null,null,null,null,null,{"$f":"Таблица2[[#This Row],[Кол-во]]-F76","v":0},{"$f":"IF(Таблица2[[#This Row],[пастбище]]=L$1,IF(ISNA(MATCH(Таблица2[[#This Row],[Заказ]],INDEX('Исходные данные'!$1:$1048576,K$1,),)),H75+1,H75),H75)","v":25},{"$f":"IFERROR(INDEX(Таблица2[Заказ],MATCH(ROW(I75),Таблица2[0],))&\" | \"&INDEX(Таблица2[Артикул],MATCH(ROW(I75),Таблица2[0],)),\"|\")","v":" | "}]
[null,null,null,null,null,null,{"$f":"Таблица2[[#This Row],[Кол-во]]-F77","v":0},{"$f":"IF(Таблица2[[#This Row],[пастбище]]=L$1,IF(ISNA(MATCH(Таблица2[[#This Row],[Заказ]],INDEX('Исходные данные'!$1:$1048576,K$1,),)),H76+1,H76),H76)","v":26},{"$f":"IFERROR(INDEX(Таблица2[Заказ],MATCH(ROW(I76),Таблица2[0],))&\" | \"&INDEX(Таблица2[Артикул],MATCH(ROW(I76),Таблица2[0],)),\"|\")","v":" | "}]
[null,null,null,null,null,null,{"$f":"Таблица2[[#This Row],[Кол-во]]-F78","v":0},{"$f":"IF(Таблица2[[#This Row],[пастбище]]=L$1,IF(ISNA(MATCH(Таблица2[[#This Row],[Заказ]],INDEX('Исходные данные'!$1:$1048576,K$1,),)),H77+1,H77),H77)","v":27},{"$f":"IFERROR(INDEX(Таблица2[Заказ],MATCH(ROW(I77),Таблица2[0],))&\" | \"&INDEX(Таблица2[Артикул],MATCH(ROW(I77),Таблица2[0],)),\"|\")","v":" | "}]
[null,null,null,null,null,null,{"$f":"Таблица2[[#This Row],[Кол-во]]-F79","v":0},{"$f":"IF(Таблица2[[#This Row],[пастбище]]=L$1,IF(ISNA(MATCH(Таблица2[[#This Row],[Заказ]],INDEX('Исходные данные'!$1:$1048576,K$1,),)),H78+1,H78),H78)","v":28},{"$f":"IFERROR(INDEX(Таблица2[Заказ],MATCH(ROW(I78),Таблица2[0],))&\" | \"&INDEX(Таблица2[Артикул],MATCH(ROW(I78),Таблица2[0],)),\"|\")","v":" | "}]
[null,null,null,null,null,null,{"$f":"Таблица2[[#This Row],[Кол-во]]-F80","v":0},{"$f":"IF(Таблица2[[#This Row],[пастбище]]=L$1,IF(ISNA(MATCH(Таблица2[[#This Row],[Заказ]],INDEX('Исходные данные'!$1:$1048576,K$1,),)),H79+1,H79),H79)","v":29},{"$f":"IFERROR(INDEX(Таблица2[Заказ],MATCH(ROW(I79),Таблица2[0],))&\" | \"&INDEX(Таблица2[Артикул],MATCH(ROW(I79),Таблица2[0],)),\"|\")","v":" | "}]
[null,null,null,null,null,null,{"$f":"Таблица2[[#This Row],[Кол-во]]-F81","v":0},{"$f":"IF(Таблица2[[#This Row],[пастбище]]=L$1,IF(ISNA(MATCH(Таблица2[[#This Row],[Заказ]],INDEX('Исходные данные'!$1:$1048576,K$1,),)),H80+1,H80),H80)","v":30},{"$f":"IFERROR(INDEX(Таблица2[Заказ],MATCH(ROW(I80),Таблица2[0],))&\" | \"&INDEX(Таблица2[Артикул],MATCH(ROW(I80),Таблица2[0],)),\"|\")","v":" | "}]
[null,null,null,null,null,null,{"$f":"Таблица2[[#This Row],[Кол-во]]-F82","v":0},{"$f":"IF(Таблица2[[#This Row],[пастбище]]=L$1,IF(ISNA(MATCH(Таблица2[[#This Row],[Заказ]],INDEX('Исходные данные'!$1:$1048576,K$1,),)),H81+1,H81),H81)","v":31},{"$f":"IFERROR(INDEX(Таблица2[Заказ],MATCH(ROW(I81),Таблица2[0],))&\" | \"&INDEX(Таблица2[Артикул],MATCH(ROW(I81),Таблица2[0],)),\"|\")","v":" | "}]
[null,null,null,null,null,null,{"$f":"Таблица2[[#This Row],[Кол-во]]-F83","v":0},{"$f":"IF(Таблица2[[#This Row],[пастбище]]=L$1,IF(ISNA(MATCH(Таблица2[[#This Row],[Заказ]],INDEX('Исходные данные'!$1:$1048576,K$1,),)),H82+1,H82),H82)","v":32},{"$f":"IFERROR(INDEX(Таблица2[Заказ],MATCH(ROW(I82),Таблица2[0],))&\" | \"&INDEX(Таблица2[Артикул],MATCH(ROW(I82),Таблица2[0],)),\"|\")","v":" | "}]
[null,null,null,null,null,null,{"$f":"Таблица2[[#This Row],[Кол-во]]-F84","v":0},{"$f":"IF(Таблица2[[#This Row],[пастбище]]=L$1,IF(ISNA(MATCH(Таблица2[[#This Row],[Заказ]],INDEX('Исходные данные'!$1:$1048576,K$1,),)),H83+1,H83),H83)","v":33},{"$f":"IFERROR(INDEX(Таблица2[Заказ],MATCH(ROW(I83),Таблица2[0],))&\" | \"&INDEX(Таблица2[Артикул],MATCH(ROW(I83),Таблица2[0],)),\"|\")","v":" | "}]
[null,null,null,null,null,null,{"$f":"Таблица2[[#This Row],[Кол-во]]-F85","v":0},{"$f":"IF(Таблица2[[#This Row],[пастбище]]=L$1,IF(ISNA(MATCH(Таблица2[[#This Row],[Заказ]],INDEX('Исходные данные'!$1:$1048576,K$1,),)),H84+1,H84),H84)","v":34},{"$f":"IFERROR(INDEX(Таблица2[Заказ],MATCH(ROW(I84),Таблица2[0],))&\" | \"&INDEX(Таблица2[Артикул],MATCH(ROW(I84),Таблица2[0],)),\"|\")","v":" | "}]
[null,null,null,null,null,null,{"$f":"Таблица2[[#This Row],[Кол-во]]-F86","v":0},{"$f":"IF(Таблица2[[#This Row],[пастбище]]=L$1,IF(ISNA(MATCH(Таблица2[[#This Row],[Заказ]],INDEX('Исходные данные'!$1:$1048576,K$1,),)),H85+1,H85),H85)","v":35},{"$f":"IFERROR(INDEX(Таблица2[Заказ],MATCH(ROW(I85),Таблица2[0],))&\" | \"&INDEX(Таблица2[Артикул],MATCH(ROW(I85),Таблица2[0],)),\"|\")","v":" | "}]
[null,null,null,null,null,null,{"$f":"Таблица2[[#This Row],[Кол-во]]-F87","v":0},{"$f":"IF(Таблица2[[#This Row],[пастбище]]=L$1,IF(ISNA(MATCH(Таблица2[[#This Row],[Заказ]],INDEX('Исходные данные'!$1:$1048576,K$1,),)),H86+1,H86),H86)","v":36},{"$f":"IFERROR(INDEX(Таблица2[Заказ],MATCH(ROW(I86),Таблица2[0],))&\" | \"&INDEX(Таблица2[Артикул],MATCH(ROW(I86),Таблица2[0],)),\"|\")","v":" | "}]
[null,null,null,null,null,null,{"$f":"Таблица2[[#This Row],[Кол-во]]-F88","v":0},{"$f":"IF(Таблица2[[#This Row],[пастбище]]=L$1,IF(ISNA(MATCH(Таблица2[[#This Row],[Заказ]],INDEX('Исходные данные'!$1:$1048576,K$1,),)),H87+1,H87),H87)","v":37},{"$f":"IFERROR(INDEX(Таблица2[Заказ],MATCH(ROW(I87),Таблица2[0],))&\" | \"&INDEX(Таблица2[Артикул],MATCH(ROW(I87),Таблица2[0],)),\"|\")","v":" | "}]
[null,null,null,null,null,null,{"$f":"Таблица2[[#This Row],[Кол-во]]-F89","v":0},{"$f":"IF(Таблица2[[#This Row],[пастбище]]=L$1,IF(ISNA(MATCH(Таблица2[[#This Row],[Заказ]],INDEX('Исходные данные'!$1:$1048576,K$1,),)),H88+1,H88),H88)","v":38},{"$f":"IFERROR(INDEX(Таблица2[Заказ],MATCH(ROW(I88),Таблица2[0],))&\" | \"&INDEX(Таблица2[Артикул],MATCH(ROW(I88),Таблица2[0],)),\"|\")","v":" | "}]
[null,null,null,null,null,null,{"$f":"Таблица2[[#This Row],[Кол-во]]-F90","v":0},{"$f":"IF(Таблица2[[#This Row],[пастбище]]=L$1,IF(ISNA(MATCH(Таблица2[[#This Row],[Заказ]],INDEX('Исходные данные'!$1:$1048576,K$1,),)),H89+1,H89),H89)","v":39},{"$f":"IFERROR(INDEX(Таблица2[Заказ],MATCH(ROW(I89),Таблица2[0],))&\" | \"&INDEX(Таблица2[Артикул],MATCH(ROW(I89),Таблица2[0],)),\"|\")","v":" | "}]
[null,null,null,null,null,null,{"$f":"Таблица2[[#This Row],[Кол-во]]-F91","v":0},{"$f":"IF(Таблица2[[#This Row],[пастбище]]=L$1,IF(ISNA(MATCH(Таблица2[[#This Row],[Заказ]],INDEX('Исходные данные'!$1:$1048576,K$1,),)),H90+1,H90),H90)","v":40},{"$f":"IFERROR(INDEX(Таблица2[Заказ],MATCH(ROW(I90),Таблица2[0],))&\" | \"&INDEX(Таблица2[Артикул],MATCH(ROW(I90),Таблица2[0],)),\"|\")","v":" | "}]
[null,null,null,null,null,null,{"$f":"Таблица2[[#This Row],[Кол-во]]-F92","v":0},{"$f":"IF(Таблица2[[#This Row],[пастбище]]=L$1,IF(ISNA(MATCH(Таблица2[[#This Row],[Заказ]],INDEX('Исходные данные'!$1:$1048576,K$1,),)),H91+1,H91),H91)","v":41},{"$f":"IFERROR(INDEX(Таблица2[Заказ],MATCH(ROW(I91),Таблица2[0],))&\" | \"&INDEX(Таблица2[Артикул],MATCH(ROW(I91),Таблица2[0],)),\"|\")","v":" | "}]
[null,null,null,null,null,null,{"$f":"Таблица2[[#This Row],[Кол-во]]-F93","v":0},{"$f":"IF(Таблица2[[#This Row],[пастбище]]=L$1,IF(ISNA(MATCH(Таблица2[[#This Row],[Заказ]],INDEX('Исходные данные'!$1:$1048576,K$1,),)),H92+1,H92),H92)","v":42},{"$f":"IFERROR(INDEX(Таблица2[Заказ],MATCH(ROW(I92),Таблица2[0],))&\" | \"&INDEX(Таблица2[Артикул],MATCH(ROW(I92),Таблица2[0],)),\"|\")","v":" | "}]
[null,null,null,null,null,null,{"$f":"Таблица2[[#This Row],[Кол-во]]-F94","v":0},{"$f":"IF(Таблица2[[#This Row],[пастбище]]=L$1,IF(ISNA(MATCH(Таблица2[[#This Row],[Заказ]],INDEX('Исходные данные'!$1:$1048576,K$1,),)),H93+1,H93),H93)","v":43},{"$f":"IFERROR(INDEX(Таблица2[Заказ],MATCH(ROW(I93),Таблица2[0],))&\" | \"&INDEX(Таблица2[Артикул],MATCH(ROW(I93),Таблица2[0],)),\"|\")","v":" | "}]
[null,null,null,null,null,null,{"$f":"Таблица2[[#This Row],[Кол-во]]-F95","v":0},{"$f":"IF(Таблица2[[#This Row],[пастбище]]=L$1,IF(ISNA(MATCH(Таблица2[[#This Row],[Заказ]],INDEX('Исходные данные'!$1:$1048576,K$1,),)),H94+1,H94),H94)","v":44},{"$f":"IFERROR(INDEX(Таблица2[Заказ],MATCH(ROW(I94),Таблица2[0],))&\" | \"&INDEX(Таблица2[Артикул],MATCH(ROW(I94),Таблица2[0],)),\"|\")","v":" | "}]
[null,null,null,null,null,null,{"$f":"Таблица2[[#This Row],[Кол-во]]-F96","v":0},{"$f":"IF(Таблица2[[#This Row],[пастбище]]=L$1,IF(ISNA(MATCH(Таблица2[[#This Row],[Заказ]],INDEX('Исходные данные'!$1:$1048576,K$1,),)),H95+1,H95),H95)","v":45},{"$f":"IFERROR(INDEX(Таблица2[Заказ],MATCH(ROW(I95),Таблица2[0],))&\" | \"&INDEX(Таблица2[Артикул],MATCH(ROW(I95),Таблица2[0],)),\"|\")","v":" | "}]
[null,null,null,null,null,null,{"$f":"Таблица2[[#This Row],[Кол-во]]-F97","v":0},{"$f":"IF(Таблица2[[#This Row],[пастбище]]=L$1,IF(ISNA(MATCH(Таблица2[[#This Row],[Заказ]],INDEX('Исходные данные'!$1:$1048576,K$1,),)),H96+1,H96),H96)","v":46},{"$f":"IFERROR(INDEX(Таблица2[Заказ],MATCH(ROW(I96),Таблица2[0],))&\" | \"&INDEX(Таблица2[Артикул],MATCH(ROW(I96),Таблица2[0],)),\"|\")","v":" | "}]
[null,null,null,null,null,null,{"$f":"Таблица2[[#This Row],[Кол-во]]-F98","v":0},{"$f":"IF(Таблица2[[#This Row],[пастбище]]=L$1,IF(ISNA(MATCH(Таблица2[[#This Row],[Заказ]],INDEX('Исходные данные'!$1:$1048576,K$1,),)),H97+1,H97),H97)","v":47},{"$f":"IFERROR(INDEX(Таблица2[Заказ],MATCH(ROW(I97),Таблица2[0],))&\" | \"&INDEX(Таблица2[Артикул],MATCH(ROW(I97),Таблица2[0],)),\"|\")","v":" | "}]
[null,null,null,null,null,null,{"$f":"Таблица2[[#This Row],[Кол-во]]-F99","v":0},{"$f":"IF(Таблица2[[#This Row],[пастбище]]=L$1,IF(ISNA(MATCH(Таблица2[[#This Row],[Заказ]],INDEX('Исходные данные'!$1:$1048576,K$1,),)),H98+1,H98),H98)","v":48},{"$f":"IFERROR(INDEX(Таблица2[Заказ],MATCH(ROW(I98),Таблица2[0],))&\" | \"&INDEX(Таблица2[Артикул],MATCH(ROW(I98),Таблица2[0],)),\"|\")","v":" | "}]
[null,null,null,null,null,null,{"$f":"Таблица2[[#This Row],[Кол-во]]-F100","v":0},{"$f":"IF(Таблица2[[#This Row],[пастбище]]=L$1,IF(ISNA(MATCH(Таблица2[[#This Row],[Заказ]],INDEX('Исходные данные'!$1:$1048576,K$1,),)),H99+1,H99),H99)","v":49},{"$f":"IFERROR(INDEX(Таблица2[Заказ],MATCH(ROW(I99),Таблица2[0],))&\" | \"&INDEX(Таблица2[Артикул],MATCH(ROW(I99),Таблица2[0],)),\"|\")","v":" | "}]
[null,null,null,null,null,null,{"$f":"Таблица2[[#This Row],[Кол-во]]-F101","v":0},{"$f":"IF(Таблица2[[#This Row],[пастбище]]=L$1,IF(ISNA(MATCH(Таблица2[[#This Row],[Заказ]],INDEX('Исходные данные'!$1:$1048576,K$1,),)),H100+1,H100),H100)","v":50},{"$f":"IFERROR(INDEX(Таблица2[Заказ],MATCH(ROW(I100),Таблица2[0],))&\" | \"&INDEX(Таблица2[Артикул],MATCH(ROW(I100),Таблица2[0],)),\"|\")","v":" | "}]
[null,null,null,null,null,null,{"$f":"Таблица2[[#This Row],[Кол-во]]-F102","v":0},{"$f":"IF(Таблица2[[#This Row],[пастбище]]=L$1,IF(ISNA(MATCH(Таблица2[[#This Row],[Заказ]],INDEX('Исходные данные'!$1:$1048576,K$1,),)),H101+1,H101),H101)","v":51},{"$f":"IFERROR(INDEX(Таблица2[Заказ],MATCH(ROW(I101),Таблица2[0],))&\" | \"&INDEX(Таблица2[Артикул],MATCH(ROW(I101),Таблица2[0],)),\"|\")","v":" | "}]
[null,null,null,null,null,null,{"$f":"Таблица2[[#This Row],[Кол-во]]-F103","v":0},{"$f":"IF(Таблица2[[#This Row],[пастбище]]=L$1,IF(ISNA(MATCH(Таблица2[[#This Row],[Заказ]],INDEX('Исходные данные'!$1:$1048576,K$1,),)),H102+1,H102),H102)","v":52},{"$f":"IFERROR(INDEX(Таблица2[Заказ],MATCH(ROW(I102),Таблица2[0],))&\" | \"&INDEX(Таблица2[Артикул],MATCH(ROW(I102),Таблица2[0],)),\"|\")","v":" | "}]
[null,null,null,null,null,null,{"$f":"Таблица2[[#This Row],[Кол-во]]-F104","v":0},{"$f":"IF(Таблица2[[#This Row],[пастбище]]=L$1,IF(ISNA(MATCH(Таблица2[[#This Row],[Заказ]],INDEX('Исходные данные'!$1:$1048576,K$1,),)),H103+1,H103),H103)","v":53},{"$f":"IFERROR(INDEX(Таблица2[Заказ],MATCH(ROW(I103),Таблица2[0],))&\" | \"&INDEX(Таблица2[Артикул],MATCH(ROW(I103),Таблица2[0],)),\"|\")","v":" | "}]
[null,null,null,null,null,null,{"$f":"Таблица2[[#This Row],[Кол-во]]-F105","v":0},{"$f":"IF(Таблица2[[#This Row],[пастбище]]=L$1,IF(ISNA(MATCH(Таблица2[[#This Row],[Заказ]],INDEX('Исходные данные'!$1:$1048576,K$1,),)),H104+1,H104),H104)","v":54},{"$f":"IFERROR(INDEX(Таблица2[Заказ],MATCH(ROW(I104),Таблица2[0],))&\" | \"&INDEX(Таблица2[Артикул],MATCH(ROW(I104),Таблица2[0],)),\"|\")","v":" | "}]
[null,null,null,null,null,null,{"$f":"Таблица2[[#This Row],[Кол-во]]-F106","v":0},{"$f":"IF(Таблица2[[#This Row],[пастбище]]=L$1,IF(ISNA(MATCH(Таблица2[[#This Row],[Заказ]],INDEX('Исходные данные'!$1:$1048576,K$1,),)),H105+1,H105),H105)","v":55},{"$f":"IFERROR(INDEX(Таблица2[Заказ],MATCH(ROW(I105),Таблица2[0],))&\" | \"&INDEX(Таблица2[Артикул],MATCH(ROW(I105),Таблица2[0],)),\"|\")","v":" | "}]
[null,null,null,null,null,null,{"$f":"Таблица2[[#This Row],[Кол-во]]-F107","v":0},{"$f":"IF(Таблица2[[#This Row],[пастбище]]=L$1,IF(ISNA(MATCH(Таблица2[[#This Row],[Заказ]],INDEX('Исходные данные'!$1:$1048576,K$1,),)),H106+1,H106),H106)","v":56},{"$f":"IFERROR(INDEX(Таблица2[Заказ],MATCH(ROW(I106),Таблица2[0],))&\" | \"&INDEX(Таблица2[Артикул],MATCH(ROW(I106),Таблица2[0],)),\"|\")","v":" | "}]
[null,null,null,null,null,null,{"$f":"Таблица2[[#This Row],[Кол-во]]-F108","v":0},{"$f":"IF(Таблица2[[#This Row],[пастбище]]=L$1,IF(ISNA(MATCH(Таблица2[[#This Row],[Заказ]],INDEX('Исходные данные'!$1:$1048576,K$1,),)),H107+1,H107),H107)","v":57},{"$f":"IFERROR(INDEX(Таблица2[Заказ],MATCH(ROW(I107),Таблица2[0],))&\" | \"&INDEX(Таблица2[Артикул],MATCH(ROW(I107),Таблица2[0],)),\"|\")","v":" | "}]
[null,null,null,null,null,null,{"$f":"Таблица2[[#This Row],[Кол-во]]-F109","v":0},{"$f":"IF(Таблица2[[#This Row],[пастбище]]=L$1,IF(ISNA(MATCH(Таблица2[[#This Row],[Заказ]],INDEX('Исходные данные'!$1:$1048576,K$1,),)),H108+1,H108),H108)","v":58},{"$f":"IFERROR(INDEX(Таблица2[Заказ],MATCH(ROW(I108),Таблица2[0],))&\" | \"&INDEX(Таблица2[Артикул],MATCH(ROW(I108),Таблица2[0],)),\"|\")","v":" | "}]
[null,null,null,null,null,null,{"$f":"Таблица2[[#This Row],[Кол-во]]-F110","v":0},{"$f":"IF(Таблица2[[#This Row],[пастбище]]=L$1,IF(ISNA(MATCH(Таблица2[[#This Row],[Заказ]],INDEX('Исходные данные'!$1:$1048576,K$1,),)),H109+1,H109),H109)","v":59},{"$f":"IFERROR(INDEX(Таблица2[Заказ],MATCH(ROW(I109),Таблица2[0],))&\" | \"&INDEX(Таблица2[Артикул],MATCH(ROW(I109),Таблица2[0],)),\"|\")","v":" | "}]
[null,null,null,null,null,null,{"$f":"Таблица2[[#This Row],[Кол-во]]-F111","v":0},{"$f":"IF(Таблица2[[#This Row],[пастбище]]=L$1,IF(ISNA(MATCH(Таблица2[[#This Row],[Заказ]],INDEX('Исходные данные'!$1:$1048576,K$1,),)),H110+1,H110),H110)","v":60},{"$f":"IFERROR(INDEX(Таблица2[Заказ],MATCH(ROW(I110),Таблица2[0],))&\" | \"&INDEX(Таблица2[Артикул],MATCH(ROW(I110),Таблица2[0],)),\"|\")","v":" | "}]
[null,null,null,null,null,null,{"$f":"Таблица2[[#This Row],[Кол-во]]-F112","v":0},{"$f":"IF(Таблица2[[#This Row],[пастбище]]=L$1,IF(ISNA(MATCH(Таблица2[[#This Row],[Заказ]],INDEX('Исходные данные'!$1:$1048576,K$1,),)),H111+1,H111),H111)","v":61},{"$f":"IFERROR(INDEX(Таблица2[Заказ],MATCH(ROW(I111),Таблица2[0],))&\" | \"&INDEX(Таблица2[Артикул],MATCH(ROW(I111),Таблица2[0],)),\"|\")","v":" | "}]
[null,null,null,null,null,null,{"$f":"Таблица2[[#This Row],[Кол-во]]-F113","v":0},{"$f":"IF(Таблица2[[#This Row],[пастбище]]=L$1,IF(ISNA(MATCH(Таблица2[[#This Row],[Заказ]],INDEX('Исходные данные'!$1:$1048576,K$1,),)),H112+1,H112),H112)","v":62},{"$f":"IFERROR(INDEX(Таблица2[Заказ],MATCH(ROW(I112),Таблица2[0],))&\" | \"&INDEX(Таблица2[Артикул],MATCH(ROW(I112),Таблица2[0],)),\"|\")","v":" | "}]
[null,null,null,null,null,null,{"$f":"Таблица2[[#This Row],[Кол-во]]-F114","v":0},{"$f":"IF(Таблица2[[#This Row],[пастбище]]=L$1,IF(ISNA(MATCH(Таблица2[[#This Row],[Заказ]],INDEX('Исходные данные'!$1:$1048576,K$1,),)),H113+1,H113),H113)","v":63},{"$f":"IFERROR(INDEX(Таблица2[Заказ],MATCH(ROW(I113),Таблица2[0],))&\" | \"&INDEX(Таблица2[Артикул],MATCH(ROW(I113),Таблица2[0],)),\"|\")","v":" | "}]
[null,null,null,null,null,null,{"$f":"Таблица2[[#This Row],[Кол-во]]-F115","v":0},{"$f":"IF(Таблица2[[#This Row],[пастбище]]=L$1,IF(ISNA(MATCH(Таблица2[[#This Row],[Заказ]],INDEX('Исходные данные'!$1:$1048576,K$1,),)),H114+1,H114),H114)","v":64},{"$f":"IFERROR(INDEX(Таблица2[Заказ],MATCH(ROW(I114),Таблица2[0],))&\" | \"&INDEX(Таблица2[Артикул],MATCH(ROW(I114),Таблица2[0],)),\"|\")","v":" | "}]
[null,null,null,null,null,null,{"$f":"Таблица2[[#This Row],[Кол-во]]-F116","v":0},{"$f":"IF(Таблица2[[#This Row],[пастбище]]=L$1,IF(ISNA(MATCH(Таблица2[[#This Row],[Заказ]],INDEX('Исходные данные'!$1:$1048576,K$1,),)),H115+1,H115),H115)","v":65},{"$f":"IFERROR(INDEX(Таблица2[Заказ],MATCH(ROW(I115),Таблица2[0],))&\" | \"&INDEX(Таблица2[Артикул],MATCH(ROW(I115),Таблица2[0],)),\"|\")","v":" | "}]
[null,null,null,null,null,null,{"$f":"Таблица2[[#This Row],[Кол-во]]-F117","v":0},{"$f":"IF(Таблица2[[#This Row],[пастбище]]=L$1,IF(ISNA(MATCH(Таблица2[[#This Row],[Заказ]],INDEX('Исходные данные'!$1:$1048576,K$1,),)),H116+1,H116),H116)","v":66},{"$f":"IFERROR(INDEX(Таблица2[Заказ],MATCH(ROW(I116),Таблица2[0],))&\" | \"&INDEX(Таблица2[Артикул],MATCH(ROW(I116),Таблица2[0],)),\"|\")","v":" | "}]
[null,null,null,null,null,null,{"$f":"Таблица2[[#This Row],[Кол-во]]-F118","v":0},{"$f":"IF(Таблица2[[#This Row],[пастбище]]=L$1,IF(ISNA(MATCH(Таблица2[[#This Row],[Заказ]],INDEX('Исходные данные'!$1:$1048576,K$1,),)),H117+1,H117),H117)","v":67},{"$f":"IFERROR(INDEX(Таблица2[Заказ],MATCH(ROW(I117),Таблица2[0],))&\" | \"&INDEX(Таблица2[Артикул],MATCH(ROW(I117),Таблица2[0],)),\"|\")","v":" | "}]
[null,null,null,null,null,null,{"$f":"Таблица2[[#This Row],[Кол-во]]-F119","v":0},{"$f":"IF(Таблица2[[#This Row],[пастбище]]=L$1,IF(ISNA(MATCH(Таблица2[[#This Row],[Заказ]],INDEX('Исходные данные'!$1:$1048576,K$1,),)),H118+1,H118),H118)","v":68},{"$f":"IFERROR(INDEX(Таблица2[Заказ],MATCH(ROW(I118),Таблица2[0],))&\" | \"&INDEX(Таблица2[Артикул],MATCH(ROW(I118),Таблица2[0],)),\"|\")","v":" | "}]
[null,null,null,null,null,null,{"$f":"Таблица2[[#This Row],[Кол-во]]-F120","v":0},{"$f":"IF(Таблица2[[#This Row],[пастбище]]=L$1,IF(ISNA(MATCH(Таблица2[[#This Row],[Заказ]],INDEX('Исходные данные'!$1:$1048576,K$1,),)),H119+1,H119),H119)","v":69},{"$f":"IFERROR(INDEX(Таблица2[Заказ],MATCH(ROW(I119),Таблица2[0],))&\" | \"&INDEX(Таблица2[Артикул],MATCH(ROW(I119),Таблица2[0],)),\"|\")","v":" | "}]
[null,null,null,null,null,null,{"$f":"Таблица2[[#This Row],[Кол-во]]-F121","v":0},{"$f":"IF(Таблица2[[#This Row],[пастбище]]=L$1,IF(ISNA(MATCH(Таблица2[[#This Row],[Заказ]],INDEX('Исходные данные'!$1:$1048576,K$1,),)),H120+1,H120),H120)","v":70},{"$f":"IFERROR(INDEX(Таблица2[Заказ],MATCH(ROW(I120),Таблица2[0],))&\" | \"&INDEX(Таблица2[Артикул],MATCH(ROW(I120),Таблица2[0],)),\"|\")","v":" | "}]
[null,null,null,null,null,null,{"$f":"Таблица2[[#This Row],[Кол-во]]-F122","v":0},{"$f":"IF(Таблица2[[#This Row],[пастбище]]=L$1,IF(ISNA(MATCH(Таблица2[[#This Row],[Заказ]],INDEX('Исходные данные'!$1:$1048576,K$1,),)),H121+1,H121),H121)","v":71},{"$f":"IFERROR(INDEX(Таблица2[Заказ],MATCH(ROW(I121),Таблица2[0],))&\" | \"&INDEX(Таблица2[Артикул],MATCH(ROW(I121),Таблица2[0],)),\"|\")","v":" | "}]
[null,null,null,null,null,null,{"$f":"Таблица2[[#This Row],[Кол-во]]-F123","v":0},{"$f":"IF(Таблица2[[#This Row],[пастбище]]=L$1,IF(ISNA(MATCH(Таблица2[[#This Row],[Заказ]],INDEX('Исходные данные'!$1:$1048576,K$1,),)),H122+1,H122),H122)","v":72},{"$f":"IFERROR(INDEX(Таблица2[Заказ],MATCH(ROW(I122),Таблица2[0],))&\" | \"&INDEX(Таблица2[Артикул],MATCH(ROW(I122),Таблица2[0],)),\"|\")","v":" | "}]
[null,null,null,null,null,null,{"$f":"Таблица2[[#This Row],[Кол-во]]-F124","v":0},{"$f":"IF(Таблица2[[#This Row],[пастбище]]=L$1,IF(ISNA(MATCH(Таблица2[[#This Row],[Заказ]],INDEX('Исходные данные'!$1:$1048576,K$1,),)),H123+1,H123),H123)","v":73},{"$f":"IFERROR(INDEX(Таблица2[Заказ],MATCH(ROW(I123),Таблица2[0],))&\" | \"&INDEX(Таблица2[Артикул],MATCH(ROW(I123),Таблица2[0],)),\"|\")","v":" | "}]
[null,null,null,null,null,null,{"$f":"Таблица2[[#This Row],[Кол-во]]-F125","v":0},{"$f":"IF(Таблица2[[#This Row],[пастбище]]=L$1,IF(ISNA(MATCH(Таблица2[[#This Row],[Заказ]],INDEX('Исходные данные'!$1:$1048576,K$1,),)),H124+1,H124),H124)","v":74},{"$f":"IFERROR(INDEX(Таблица2[Заказ],MATCH(ROW(I124),Таблица2[0],))&\" | \"&INDEX(Таблица2[Артикул],MATCH(ROW(I124),Таблица2[0],)),\"|\")","v":" | "}]
[null,null,null,null,null,null,{"$f":"Таблица2[[#This Row],[Кол-во]]-F126","v":0},{"$f":"IF(Таблица2[[#This Row],[пастбище]]=L$1,IF(ISNA(MATCH(Таблица2[[#This Row],[Заказ]],INDEX('Исходные данные'!$1:$1048576,K$1,),)),H125+1,H125),H125)","v":75},{"$f":"IFERROR(INDEX(Таблица2[Заказ],MATCH(ROW(I125),Таблица2[0],))&\" | \"&INDEX(Таблица2[Артикул],MATCH(ROW(I125),Таблица2[0],)),\"|\")","v":" | "}]
[null,null,null,null,null,null,{"$f":"Таблица2[[#This Row],[Кол-во]]-F127","v":0},{"$f":"IF(Таблица2[[#This Row],[пастбище]]=L$1,IF(ISNA(MATCH(Таблица2[[#This Row],[Заказ]],INDEX('Исходные данные'!$1:$1048576,K$1,),)),H126+1,H126),H126)","v":76},{"$f":"IFERROR(INDEX(Таблица2[Заказ],MATCH(ROW(I126),Таблица2[0],))&\" | \"&INDEX(Таблица2[Артикул],MATCH(ROW(I126),Таблица2[0],)),\"|\")","v":" | "}]
[null,null,null,null,null,null,{"$f":"Таблица2[[#This Row],[Кол-во]]-F128","v":0},{"$f":"IF(Таблица2[[#This Row],[пастбище]]=L$1,IF(ISNA(MATCH(Таблица2[[#This Row],[Заказ]],INDEX('Исходные данные'!$1:$1048576,K$1,),)),H127+1,H127),H127)","v":77},{"$f":"IFERROR(INDEX(Таблица2[Заказ],MATCH(ROW(I127),Таблица2[0],))&\" | \"&INDEX(Таблица2[Артикул],MATCH(ROW(I127),Таблица2[0],)),\"|\")","v":" | "}]
[null,null,null,null,null,null,{"$f":"Таблица2[[#This Row],[Кол-во]]-F129","v":0},{"$f":"IF(Таблица2[[#This Row],[пастбище]]=L$1,IF(ISNA(MATCH(Таблица2[[#This Row],[Заказ]],INDEX('Исходные данные'!$1:$1048576,K$1,),)),H128+1,H128),H128)","v":78},{"$f":"IFERROR(INDEX(Таблица2[Заказ],MATCH(ROW(I128),Таблица2[0],))&\" | \"&INDEX(Таблица2[Артикул],MATCH(ROW(I128),Таблица2[0],)),\"|\")","v":" | "}]
[null,null,null,null,null,null,{"$f":"Таблица2[[#This Row],[Кол-во]]-F130","v":0},{"$f":"IF(Таблица2[[#This Row],[пастбище]]=L$1,IF(ISNA(MATCH(Таблица2[[#This Row],[Заказ]],INDEX('Исходные данные'!$1:$1048576,K$1,),)),H129+1,H129),H129)","v":79},{"$f":"IFERROR(INDEX(Таблица2[Заказ],MATCH(ROW(I129),Таблица2[0],))&\" | \"&INDEX(Таблица2[Артикул],MATCH(ROW(I129),Таблица2[0],)),\"|\")","v":" | "}]
[null,null,null,null,null,null,{"$f":"Таблица2[[#This Row],[Кол-во]]-F131","v":0},{"$f":"IF(Таблица2[[#This Row],[пастбище]]=L$1,IF(ISNA(MATCH(Таблица2[[#This Row],[Заказ]],INDEX('Исходные данные'!$1:$1048576,K$1,),)),H130+1,H130),H130)","v":80},{"$f":"IFERROR(INDEX(Таблица2[Заказ],MATCH(ROW(I130),Таблица2[0],))&\" | \"&INDEX(Таблица2[Артикул],MATCH(ROW(I130),Таблица2[0],)),\"|\")","v":" | "}]
[null,null,null,null,null,null,{"$f":"Таблица2[[#This Row],[Кол-во]]-F132","v":0},{"$f":"IF(Таблица2[[#This Row],[пастбище]]=L$1,IF(ISNA(MATCH(Таблица2[[#This Row],[Заказ]],INDEX('Исходные данные'!$1:$1048576,K$1,),)),H131+1,H131),H131)","v":81},{"$f":"IFERROR(INDEX(Таблица2[Заказ],MATCH(ROW(I131),Таблица2[0],))&\" | \"&INDEX(Таблица2[Артикул],MATCH(ROW(I131),Таблица2[0],)),\"|\")","v":" | "}]
[null,null,null,null,null,null,{"$f":"Таблица2[[#This Row],[Кол-во]]-F133","v":0},{"$f":"IF(Таблица2[[#This Row],[пастбище]]=L$1,IF(ISNA(MATCH(Таблица2[[#This Row],[Заказ]],INDEX('Исходные данные'!$1:$1048576,K$1,),)),H132+1,H132),H132)","v":82},{"$f":"IFERROR(INDEX(Таблица2[Заказ],MATCH(ROW(I132),Таблица2[0],))&\" | \"&INDEX(Таблица2[Артикул],MATCH(ROW(I132),Таблица2[0],)),\"|\")","v":" | "}]
[null,null,null,null,null,null,{"$f":"Таблица2[[#This Row],[Кол-во]]-F134","v":0},{"$f":"IF(Таблица2[[#This Row],[пастбище]]=L$1,IF(ISNA(MATCH(Таблица2[[#This Row],[Заказ]],INDEX('Исходные данные'!$1:$1048576,K$1,),)),H133+1,H133),H133)","v":83},{"$f":"IFERROR(INDEX(Таблица2[Заказ],MATCH(ROW(I133),Таблица2[0],))&\" | \"&INDEX(Таблица2[Артикул],MATCH(ROW(I133),Таблица2[0],)),\"|\")","v":" | "}]
[null,null,null,null,null,null,{"$f":"Таблица2[[#This Row],[Кол-во]]-F135","v":0},{"$f":"IF(Таблица2[[#This Row],[пастбище]]=L$1,IF(ISNA(MATCH(Таблица2[[#This Row],[Заказ]],INDEX('Исходные данные'!$1:$1048576,K$1,),)),H134+1,H134),H134)","v":84},{"$f":"IFERROR(INDEX(Таблица2[Заказ],MATCH(ROW(I134),Таблица2[0],))&\" | \"&INDEX(Таблица2[Артикул],MATCH(ROW(I134),Таблица2[0],)),\"|\")","v":" | "}]
[null,null,null,null,null,null,{"$f":"Таблица2[[#This Row],[Кол-во]]-F136","v":0},{"$f":"IF(Таблица2[[#This Row],[пастбище]]=L$1,IF(ISNA(MATCH(Таблица2[[#This Row],[Заказ]],INDEX('Исходные данные'!$1:$1048576,K$1,),)),H135+1,H135),H135)","v":85},{"$f":"IFERROR(INDEX(Таблица2[Заказ],MATCH(ROW(I135),Таблица2[0],))&\" | \"&INDEX(Таблица2[Артикул],MATCH(ROW(I135),Таблица2[0],)),\"|\")","v":" | "}]
[null,null,null,null,null,null,{"$f":"Таблица2[[#This Row],[Кол-во]]-F137","v":0},{"$f":"IF(Таблица2[[#This Row],[пастбище]]=L$1,IF(ISNA(MATCH(Таблица2[[#This Row],[Заказ]],INDEX('Исходные данные'!$1:$1048576,K$1,),)),H136+1,H136),H136)","v":86},{"$f":"IFERROR(INDEX(Таблица2[Заказ],MATCH(ROW(I136),Таблица2[0],))&\" | \"&INDEX(Таблица2[Артикул],MATCH(ROW(I136),Таблица2[0],)),\"|\")","v":" | "}]
[null,null,null,null,null,null,{"$f":"Таблица2[[#This Row],[Кол-во]]-F138","v":0},{"$f":"IF(Таблица2[[#This Row],[пастбище]]=L$1,IF(ISNA(MATCH(Таблица2[[#This Row],[Заказ]],INDEX('Исходные данные'!$1:$1048576,K$1,),)),H137+1,H137),H137)","v":87},{"$f":"IFERROR(INDEX(Таблица2[Заказ],MATCH(ROW(I137),Таблица2[0],))&\" | \"&INDEX(Таблица2[Артикул],MATCH(ROW(I137),Таблица2[0],)),\"|\")","v":" | "}]
[null,null,null,null,null,null,{"$f":"Таблица2[[#This Row],[Кол-во]]-F139","v":0},{"$f":"IF(Таблица2[[#This Row],[пастбище]]=L$1,IF(ISNA(MATCH(Таблица2[[#This Row],[Заказ]],INDEX('Исходные данные'!$1:$1048576,K$1,),)),H138+1,H138),H138)","v":88},{"$f":"IFERROR(INDEX(Таблица2[Заказ],MATCH(ROW(I138),Таблица2[0],))&\" | \"&INDEX(Таблица2[Артикул],MATCH(ROW(I138),Таблица2[0],)),\"|\")","v":" | "}]
[null,null,null,null,null,null,{"$f":"Таблица2[[#This Row],[Кол-во]]-F140","v":0},{"$f":"IF(Таблица2[[#This Row],[пастбище]]=L$1,IF(ISNA(MATCH(Таблица2[[#This Row],[Заказ]],INDEX('Исходные данные'!$1:$1048576,K$1,),)),H139+1,H139),H139)","v":89},{"$f":"IFERROR(INDEX(Таблица2[Заказ],MATCH(ROW(I139),Таблица2[0],))&\" | \"&INDEX(Таблица2[Артикул],MATCH(ROW(I139),Таблица2[0],)),\"|\")","v":" | "}]
[null,null,null,null,null,null,{"$f":"Таблица2[[#This Row],[Кол-во]]-F141","v":0},{"$f":"IF(Таблица2[[#This Row],[пастбище]]=L$1,IF(ISNA(MATCH(Таблица2[[#This Row],[Заказ]],INDEX('Исходные данные'!$1:$1048576,K$1,),)),H140+1,H140),H140)","v":90},{"$f":"IFERROR(INDEX(Таблица2[Заказ],MATCH(ROW(I140),Таблица2[0],))&\" | \"&INDEX(Таблица2[Артикул],MATCH(ROW(I140),Таблица2[0],)),\"|\")","v":" | "}]
[null,null,null,null,null,null,{"$f":"Таблица2[[#This Row],[Кол-во]]-F142","v":0},{"$f":"IF(Таблица2[[#This Row],[пастбище]]=L$1,IF(ISNA(MATCH(Таблица2[[#This Row],[Заказ]],INDEX('Исходные данные'!$1:$1048576,K$1,),)),H141+1,H141),H141)","v":91},{"$f":"IFERROR(INDEX(Таблица2[Заказ],MATCH(ROW(I141),Таблица2[0],))&\" | \"&INDEX(Таблица2[Артикул],MATCH(ROW(I141),Таблица2[0],)),\"|\")","v":" | "}]
[null,null,null,null,null,null,{"$f":"Таблица2[[#This Row],[Кол-во]]-F143","v":0},{"$f":"IF(Таблица2[[#This Row],[пастбище]]=L$1,IF(ISNA(MATCH(Таблица2[[#This Row],[Заказ]],INDEX('Исходные данные'!$1:$1048576,K$1,),)),H142+1,H142),H142)","v":92},{"$f":"IFERROR(INDEX(Таблица2[Заказ],MATCH(ROW(I142),Таблица2[0],))&\" | \"&INDEX(Таблица2[Артикул],MATCH(ROW(I142),Таблица2[0],)),\"|\")","v":" | "}]
[null,null,null,null,null,null,{"$f":"Таблица2[[#This Row],[Кол-во]]-F144","v":0},{"$f":"IF(Таблица2[[#This Row],[пастбище]]=L$1,IF(ISNA(MATCH(Таблица2[[#This Row],[Заказ]],INDEX('Исходные данные'!$1:$1048576,K$1,),)),H143+1,H143),H143)","v":93},{"$f":"IFERROR(INDEX(Таблица2[Заказ],MATCH(ROW(I143),Таблица2[0],))&\" | \"&INDEX(Таблица2[Артикул],MATCH(ROW(I143),Таблица2[0],)),\"|\")","v":" | "}]
[null,null,null,null,null,null,{"$f":"Таблица2[[#This Row],[Кол-во]]-F145","v":0},{"$f":"IF(Таблица2[[#This Row],[пастбище]]=L$1,IF(ISNA(MATCH(Таблица2[[#This Row],[Заказ]],INDEX('Исходные данные'!$1:$1048576,K$1,),)),H144+1,H144),H144)","v":94},{"$f":"IFERROR(INDEX(Таблица2[Заказ],MATCH(ROW(I144),Таблица2[0],))&\" | \"&INDEX(Таблица2[Артикул],MATCH(ROW(I144),Таблица2[0],)),\"|\")","v":" | "}]
[null,null,null,null,null,null,{"$f":"Таблица2[[#This Row],[Кол-во]]-F146","v":0},{"$f":"IF(Таблица2[[#This Row],[пастбище]]=L$1,IF(ISNA(MATCH(Таблица2[[#This Row],[Заказ]],INDEX('Исходные данные'!$1:$1048576,K$1,),)),H145+1,H145),H145)","v":95},{"$f":"IFERROR(INDEX(Таблица2[Заказ],MATCH(ROW(I145),Таблица2[0],))&\" | \"&INDEX(Таблица2[Артикул],MATCH(ROW(I145),Таблица2[0],)),\"|\")","v":" | "}]
[null,null,null,null,null,null,{"$f":"Таблица2[[#This Row],[Кол-во]]-F147","v":0},{"$f":"IF(Таблица2[[#This Row],[пастбище]]=L$1,IF(ISNA(MATCH(Таблица2[[#This Row],[Заказ]],INDEX('Исходные данные'!$1:$1048576,K$1,),)),H146+1,H146),H146)","v":96},{"$f":"IFERROR(INDEX(Таблица2[Заказ],MATCH(ROW(I146),Таблица2[0],))&\" | \"&INDEX(Таблица2[Артикул],MATCH(ROW(I146),Таблица2[0],)),\"|\")","v":" | "}]
[null,null,null,null,null,null,{"$f":"Таблица2[[#This Row],[Кол-во]]-F148","v":0},{"$f":"IF(Таблица2[[#This Row],[пастбище]]=L$1,IF(ISNA(MATCH(Таблица2[[#This Row],[Заказ]],INDEX('Исходные данные'!$1:$1048576,K$1,),)),H147+1,H147),H147)","v":97},{"$f":"IFERROR(INDEX(Таблица2[Заказ],MATCH(ROW(I147),Таблица2[0],))&\" | \"&INDEX(Таблица2[Артикул],MATCH(ROW(I147),Таблица2[0],)),\"|\")","v":" | "}]
[null,null,null,null,null,null,{"$f":"Таблица2[[#This Row],[Кол-во]]-F149","v":0},{"$f":"IF(Таблица2[[#This Row],[пастбище]]=L$1,IF(ISNA(MATCH(Таблица2[[#This Row],[Заказ]],INDEX('Исходные данные'!$1:$1048576,K$1,),)),H148+1,H148),H148)","v":98},{"$f":"IFERROR(INDEX(Таблица2[Заказ],MATCH(ROW(I148),Таблица2[0],))&\" | \"&INDEX(Таблица2[Артикул],MATCH(ROW(I148),Таблица2[0],)),\"|\")","v":" | "}]
[null,null,null,null,null,null,{"$f":"Таблица2[[#This Row],[Кол-во]]-F150","v":0},{"$f":"IF(Таблица2[[#This Row],[пастбище]]=L$1,IF(ISNA(MATCH(Таблица2[[#This Row],[Заказ]],INDEX('Исходные данные'!$1:$1048576,K$1,),)),H149+1,H149),H149)","v":99},{"$f":"IFERROR(INDEX(Таблица2[Заказ],MATCH(ROW(I149),Таблица2[0],))&\" | \"&INDEX(Таблица2[Артикул],MATCH(ROW(I149),Таблица2[0],)),\"|\")","v":" | "}]
[null,null,null,null,null,null,{"$f":"Таблица2[[#This Row],[Кол-во]]-F151","v":0},{"$f":"IF(Таблица2[[#This Row],[пастбище]]=L$1,IF(ISNA(MATCH(Таблица2[[#This Row],[Заказ]],INDEX('Исходные данные'!$1:$1048576,K$1,),)),H150+1,H150),H150)","v":100},{"$f":"IFERROR(INDEX(Таблица2[Заказ],MATCH(ROW(I150),Таблица2[0],))&\" | \"&INDEX(Таблица2[Артикул],MATCH(ROW(I150),Таблица2[0],)),\"|\")","v":" | "}]
[null,null,null,null,null,null,{"$f":"Таблица2[[#This Row],[Кол-во]]-F152","v":0},{"$f":"IF(Таблица2[[#This Row],[пастбище]]=L$1,IF(ISNA(MATCH(Таблица2[[#This Row],[Заказ]],INDEX('Исходные данные'!$1:$1048576,K$1,),)),H151+1,H151),H151)","v":101},{"$f":"IFERROR(INDEX(Таблица2[Заказ],MATCH(ROW(I151),Таблица2[0],))&\" | \"&INDEX(Таблица2[Артикул],MATCH(ROW(I151),Таблица2[0],)),\"|\")","v":" | "}]
[null,null,null,null,null,null,{"$f":"Таблица2[[#This Row],[Кол-во]]-F153","v":0},{"$f":"IF(Таблица2[[#This Row],[пастбище]]=L$1,IF(ISNA(MATCH(Таблица2[[#This Row],[Заказ]],INDEX('Исходные данные'!$1:$1048576,K$1,),)),H152+1,H152),H152)","v":102},{"$f":"IFERROR(INDEX(Таблица2[Заказ],MATCH(ROW(I152),Таблица2[0],))&\" | \"&INDEX(Таблица2[Артикул],MATCH(ROW(I152),Таблица2[0],)),\"|\")","v":" | "}]
[null,null,null,null,null,null,{"$f":"Таблица2[[#This Row],[Кол-во]]-F154","v":0},{"$f":"IF(Таблица2[[#This Row],[пастбище]]=L$1,IF(ISNA(MATCH(Таблица2[[#This Row],[Заказ]],INDEX('Исходные данные'!$1:$1048576,K$1,),)),H153+1,H153),H153)","v":103},{"$f":"IFERROR(INDEX(Таблица2[Заказ],MATCH(ROW(I153),Таблица2[0],))&\" | \"&INDEX(Таблица2[Артикул],MATCH(ROW(I153),Таблица2[0],)),\"|\")","v":" | "}]
[null,null,null,null,null,null,{"$f":"Таблица2[[#This Row],[Кол-во]]-F155","v":0},{"$f":"IF(Таблица2[[#This Row],[пастбище]]=L$1,IF(ISNA(MATCH(Таблица2[[#This Row],[Заказ]],INDEX('Исходные данные'!$1:$1048576,K$1,),)),H154+1,H154),H154)","v":104},{"$f":"IFERROR(INDEX(Таблица2[Заказ],MATCH(ROW(I154),Таблица2[0],))&\" | \"&INDEX(Таблица2[Артикул],MATCH(ROW(I154),Таблица2[0],)),\"|\")","v":" | "}]
[null,null,null,null,null,null,{"$f":"Таблица2[[#This Row],[Кол-во]]-F156","v":0},{"$f":"IF(Таблица2[[#This Row],[пастбище]]=L$1,IF(ISNA(MATCH(Таблица2[[#This Row],[Заказ]],INDEX('Исходные данные'!$1:$1048576,K$1,),)),H155+1,H155),H155)","v":105},{"$f":"IFERROR(INDEX(Таблица2[Заказ],MATCH(ROW(I155),Таблица2[0],))&\" | \"&INDEX(Таблица2[Артикул],MATCH(ROW(I155),Таблица2[0],)),\"|\")","v":" | "}]
[null,null,null,null,null,null,{"$f":"Таблица2[[#This Row],[Кол-во]]-F157","v":0},{"$f":"IF(Таблица2[[#This Row],[пастбище]]=L$1,IF(ISNA(MATCH(Таблица2[[#This Row],[Заказ]],INDEX('Исходные данные'!$1:$1048576,K$1,),)),H156+1,H156),H156)","v":106},{"$f":"IFERROR(INDEX(Таблица2[Заказ],MATCH(ROW(I156),Таблица2[0],))&\" | \"&INDEX(Таблица2[Артикул],MATCH(ROW(I156),Таблица2[0],)),\"|\")","v":" | "}]
[null,null,null,null,null,null,{"$f":"Таблица2[[#This Row],[Кол-во]]-F158","v":0},{"$f":"IF(Таблица2[[#This Row],[пастбище]]=L$1,IF(ISNA(MATCH(Таблица2[[#This Row],[Заказ]],INDEX('Исходные данные'!$1:$1048576,K$1,),)),H157+1,H157),H157)","v":107},{"$f":"IFERROR(INDEX(Таблица2[Заказ],MATCH(ROW(I157),Таблица2[0],))&\" | \"&INDEX(Таблица2[Артикул],MATCH(ROW(I157),Таблица2[0],)),\"|\")","v":" | "}]
[null,null,null,null,null,null,{"$f":"Таблица2[[#This Row],[Кол-во]]-F159","v":0},{"$f":"IF(Таблица2[[#This Row],[пастбище]]=L$1,IF(ISNA(MATCH(Таблица2[[#This Row],[Заказ]],INDEX('Исходные данные'!$1:$1048576,K$1,),)),H158+1,H158),H158)","v":108},{"$f":"IFERROR(INDEX(Таблица2[Заказ],MATCH(ROW(I158),Таблица2[0],))&\" | \"&INDEX(Таблица2[Артикул],MATCH(ROW(I158),Таблица2[0],)),\"|\")","v":" | "}]
[null,null,null,null,null,null,{"$f":"Таблица2[[#This Row],[Кол-во]]-F160","v":0},{"$f":"IF(Таблица2[[#This Row],[пастбище]]=L$1,IF(ISNA(MATCH(Таблица2[[#This Row],[Заказ]],INDEX('Исходные данные'!$1:$1048576,K$1,),)),H159+1,H159),H159)","v":109},{"$f":"IFERROR(INDEX(Таблица2[Заказ],MATCH(ROW(I159),Таблица2[0],))&\" | \"&INDEX(Таблица2[Артикул],MATCH(ROW(I159),Таблица2[0],)),\"|\")","v":" | "}]
[null,null,null,null,null,null,{"$f":"Таблица2[[#This Row],[Кол-во]]-F161","v":0},{"$f":"IF(Таблица2[[#This Row],[пастбище]]=L$1,IF(ISNA(MATCH(Таблица2[[#This Row],[Заказ]],INDEX('Исходные данные'!$1:$1048576,K$1,),)),H160+1,H160),H160)","v":110},{"$f":"IFERROR(INDEX(Таблица2[Заказ],MATCH(ROW(I160),Таблица2[0],))&\" | \"&INDEX(Таблица2[Артикул],MATCH(ROW(I160),Таблица2[0],)),\"|\")","v":" | "}]
[null,null,null,null,null,null,{"$f":"Таблица2[[#This Row],[Кол-во]]-F162","v":0},{"$f":"IF(Таблица2[[#This Row],[пастбище]]=L$1,IF(ISNA(MATCH(Таблица2[[#This Row],[Заказ]],INDEX('Исходные данные'!$1:$1048576,K$1,),)),H161+1,H161),H161)","v":111},{"$f":"IFERROR(INDEX(Таблица2[Заказ],MATCH(ROW(I161),Таблица2[0],))&\" | \"&INDEX(Таблица2[Артикул],MATCH(ROW(I161),Таблица2[0],)),\"|\")","v":" | "}]
[null,null,null,null,null,null,{"$f":"Таблица2[[#This Row],[Кол-во]]-F163","v":0},{"$f":"IF(Таблица2[[#This Row],[пастбище]]=L$1,IF(ISNA(MATCH(Таблица2[[#This Row],[Заказ]],INDEX('Исходные данные'!$1:$1048576,K$1,),)),H162+1,H162),H162)","v":112},{"$f":"IFERROR(INDEX(Таблица2[Заказ],MATCH(ROW(I162),Таблица2[0],))&\" | \"&INDEX(Таблица2[Артикул],MATCH(ROW(I162),Таблица2[0],)),\"|\")","v":" | "}]
[null,null,null,null,null,null,{"$f":"Таблица2[[#This Row],[Кол-во]]-F164","v":0},{"$f":"IF(Таблица2[[#This Row],[пастбище]]=L$1,IF(ISNA(MATCH(Таблица2[[#This Row],[Заказ]],INDEX('Исходные данные'!$1:$1048576,K$1,),)),H163+1,H163),H163)","v":113},{"$f":"IFERROR(INDEX(Таблица2[Заказ],MATCH(ROW(I163),Таблица2[0],))&\" | \"&INDEX(Таблица2[Артикул],MATCH(ROW(I163),Таблица2[0],)),\"|\")","v":" | "}]
[null,null,null,null,null,null,{"$f":"Таблица2[[#This Row],[Кол-во]]-F165","v":0},{"$f":"IF(Таблица2[[#This Row],[пастбище]]=L$1,IF(ISNA(MATCH(Таблица2[[#This Row],[Заказ]],INDEX('Исходные данные'!$1:$1048576,K$1,),)),H164+1,H164),H164)","v":114},{"$f":"IFERROR(INDEX(Таблица2[Заказ],MATCH(ROW(I164),Таблица2[0],))&\" | \"&INDEX(Таблица2[Артикул],MATCH(ROW(I164),Таблица2[0],)),\"|\")","v":" | "}]
[null,null,null,null,null,null,{"$f":"Таблица2[[#This Row],[Кол-во]]-F166","v":0},{"$f":"IF(Таблица2[[#This Row],[пастбище]]=L$1,IF(ISNA(MATCH(Таблица2[[#This Row],[Заказ]],INDEX('Исходные данные'!$1:$1048576,K$1,),)),H165+1,H165),H165)","v":115},{"$f":"IFERROR(INDEX(Таблица2[Заказ],MATCH(ROW(I165),Таблица2[0],))&\" | \"&INDEX(Таблица2[Артикул],MATCH(ROW(I165),Таблица2[0],)),\"|\")","v":" | "}]
[null,null,null,null,null,null,{"$f":"Таблица2[[#This Row],[Кол-во]]-F167","v":0},{"$f":"IF(Таблица2[[#This Row],[пастбище]]=L$1,IF(ISNA(MATCH(Таблица2[[#This Row],[Заказ]],INDEX('Исходные данные'!$1:$1048576,K$1,),)),H166+1,H166),H166)","v":116},{"$f":"IFERROR(INDEX(Таблица2[Заказ],MATCH(ROW(I166),Таблица2[0],))&\" | \"&INDEX(Таблица2[Артикул],MATCH(ROW(I166),Таблица2[0],)),\"|\")","v":" | "}]
[null,null,null,null,null,null,{"$f":"Таблица2[[#This Row],[Кол-во]]-F168","v":0},{"$f":"IF(Таблица2[[#This Row],[пастбище]]=L$1,IF(ISNA(MATCH(Таблица2[[#This Row],[Заказ]],INDEX('Исходные данные'!$1:$1048576,K$1,),)),H167+1,H167),H167)","v":117},{"$f":"IFERROR(INDEX(Таблица2[Заказ],MATCH(ROW(I167),Таблица2[0],))&\" | \"&INDEX(Таблица2[Артикул],MATCH(ROW(I167),Таблица2[0],)),\"|\")","v":" | "}]
[null,null,null,null,null,null,{"$f":"Таблица2[[#This Row],[Кол-во]]-F169","v":0},{"$f":"IF(Таблица2[[#This Row],[пастбище]]=L$1,IF(ISNA(MATCH(Таблица2[[#This Row],[Заказ]],INDEX('Исходные данные'!$1:$1048576,K$1,),)),H168+1,H168),H168)","v":118},{"$f":"IFERROR(INDEX(Таблица2[Заказ],MATCH(ROW(I168),Таблица2[0],))&\" | \"&INDEX(Таблица2[Артикул],MATCH(ROW(I168),Таблица2[0],)),\"|\")","v":" | "}]
[null,null,null,null,null,null,{"$f":"Таблица2[[#This Row],[Кол-во]]-F170","v":0},{"$f":"IF(Таблица2[[#This Row],[пастбище]]=L$1,IF(ISNA(MATCH(Таблица2[[#This Row],[Заказ]],INDEX('Исходные данные'!$1:$1048576,K$1,),)),H169+1,H169),H169)","v":119},{"$f":"IFERROR(INDEX(Таблица2[Заказ],MATCH(ROW(I169),Таблица2[0],))&\" | \"&INDEX(Таблица2[Артикул],MATCH(ROW(I169),Таблица2[0],)),\"|\")","v":" | "}]
[null,null,null,null,null,null,{"$f":"Таблица2[[#This Row],[Кол-во]]-F171","v":0},{"$f":"IF(Таблица2[[#This Row],[пастбище]]=L$1,IF(ISNA(MATCH(Таблица2[[#This Row],[Заказ]],INDEX('Исходные данные'!$1:$1048576,K$1,),)),H170+1,H170),H170)","v":120},{"$f":"IFERROR(INDEX(Таблица2[Заказ],MATCH(ROW(I170),Таблица2[0],))&\" | \"&INDEX(Таблица2[Артикул],MATCH(ROW(I170),Таблица2[0],)),\"|\")","v":" | "}]
[null,null,null,null,null,null,{"$f":"Таблица2[[#This Row],[Кол-во]]-F172","v":0},{"$f":"IF(Таблица2[[#This Row],[пастбище]]=L$1,IF(ISNA(MATCH(Таблица2[[#This Row],[Заказ]],INDEX('Исходные данные'!$1:$1048576,K$1,),)),H171+1,H171),H171)","v":121},{"$f":"IFERROR(INDEX(Таблица2[Заказ],MATCH(ROW(I171),Таблица2[0],))&\" | \"&INDEX(Таблица2[Артикул],MATCH(ROW(I171),Таблица2[0],)),\"|\")","v":" | "}]
[null,null,null,null,null,null,{"$f":"Таблица2[[#This Row],[Кол-во]]-F173","v":0},{"$f":"IF(Таблица2[[#This Row],[пастбище]]=L$1,IF(ISNA(MATCH(Таблица2[[#This Row],[Заказ]],INDEX('Исходные данные'!$1:$1048576,K$1,),)),H172+1,H172),H172)","v":122},{"$f":"IFERROR(INDEX(Таблица2[Заказ],MATCH(ROW(I172),Таблица2[0],))&\" | \"&INDEX(Таблица2[Артикул],MATCH(ROW(I172),Таблица2[0],)),\"|\")","v":" | "}]
[null,null,null,null,null,null,{"$f":"Таблица2[[#This Row],[Кол-во]]-F174","v":0},{"$f":"IF(Таблица2[[#This Row],[пастбище]]=L$1,IF(ISNA(MATCH(Таблица2[[#This Row],[Заказ]],INDEX('Исходные данные'!$1:$1048576,K$1,),)),H173+1,H173),H173)","v":123},{"$f":"IFERROR(INDEX(Таблица2[Заказ],MATCH(ROW(I173),Таблица2[0],))&\" | \"&INDEX(Таблица2[Артикул],MATCH(ROW(I173),Таблица2[0],)),\"|\")","v":" | "}]
[null,null,null,null,null,null,{"$f":"Таблица2[[#This Row],[Кол-во]]-F175","v":0},{"$f":"IF(Таблица2[[#This Row],[пастбище]]=L$1,IF(ISNA(MATCH(Таблица2[[#This Row],[Заказ]],INDEX('Исходные данные'!$1:$1048576,K$1,),)),H174+1,H174),H174)","v":124},{"$f":"IFERROR(INDEX(Таблица2[Заказ],MATCH(ROW(I174),Таблица2[0],))&\" | \"&INDEX(Таблица2[Артикул],MATCH(ROW(I174),Таблица2[0],)),\"|\")","v":" | "}]
[null,null,null,null,null,null,{"$f":"Таблица2[[#This Row],[Кол-во]]-F176","v":0},{"$f":"IF(Таблица2[[#This Row],[пастбище]]=L$1,IF(ISNA(MATCH(Таблица2[[#This Row],[Заказ]],INDEX('Исходные данные'!$1:$1048576,K$1,),)),H175+1,H175),H175)","v":125},{"$f":"IFERROR(INDEX(Таблица2[Заказ],MATCH(ROW(I175),Таблица2[0],))&\" | \"&INDEX(Таблица2[Артикул],MATCH(ROW(I175),Таблица2[0],)),\"|\")","v":" | "}]
[null,null,null,null,null,null,{"$f":"Таблица2[[#This Row],[Кол-во]]-F177","v":0},{"$f":"IF(Таблица2[[#This Row],[пастбище]]=L$1,IF(ISNA(MATCH(Таблица2[[#This Row],[Заказ]],INDEX('Исходные данные'!$1:$1048576,K$1,),)),H176+1,H176),H176)","v":126},{"$f":"IFERROR(INDEX(Таблица2[Заказ],MATCH(ROW(I176),Таблица2[0],))&\" | \"&INDEX(Таблица2[Артикул],MATCH(ROW(I176),Таблица2[0],)),\"|\")","v":" | "}]
[null,null,null,null,null,null,{"$f":"Таблица2[[#This Row],[Кол-во]]-F178","v":0},{"$f":"IF(Таблица2[[#This Row],[пастбище]]=L$1,IF(ISNA(MATCH(Таблица2[[#This Row],[Заказ]],INDEX('Исходные данные'!$1:$1048576,K$1,),)),H177+1,H177),H177)","v":127},{"$f":"IFERROR(INDEX(Таблица2[Заказ],MATCH(ROW(I177),Таблица2[0],))&\" | \"&INDEX(Таблица2[Артикул],MATCH(ROW(I177),Таблица2[0],)),\"|\")","v":" | "}]
[null,null,null,null,null,null,{"$f":"Таблица2[[#This Row],[Кол-во]]-F179","v":0},{"$f":"IF(Таблица2[[#This Row],[пастбище]]=L$1,IF(ISNA(MATCH(Таблица2[[#This Row],[Заказ]],INDEX('Исходные данные'!$1:$1048576,K$1,),)),H178+1,H178),H178)","v":128},{"$f":"IFERROR(INDEX(Таблица2[Заказ],MATCH(ROW(I178),Таблица2[0],))&\" | \"&INDEX(Таблица2[Артикул],MATCH(ROW(I178),Таблица2[0],)),\"|\")","v":" | "}]
[null,null,null,null,null,null,{"$f":"Таблица2[[#This Row],[Кол-во]]-F180","v":0},{"$f":"IF(Таблица2[[#This Row],[пастбище]]=L$1,IF(ISNA(MATCH(Таблица2[[#This Row],[Заказ]],INDEX('Исходные данные'!$1:$1048576,K$1,),)),H179+1,H179),H179)","v":129},{"$f":"IFERROR(INDEX(Таблица2[Заказ],MATCH(ROW(I179),Таблица2[0],))&\" | \"&INDEX(Таблица2[Артикул],MATCH(ROW(I179),Таблица2[0],)),\"|\")","v":" | "}]
[null,null,null,null,null,null,{"$f":"Таблица2[[#This Row],[Кол-во]]-F181","v":0},{"$f":"IF(Таблица2[[#This Row],[пастбище]]=L$1,IF(ISNA(MATCH(Таблица2[[#This Row],[Заказ]],INDEX('Исходные данные'!$1:$1048576,K$1,),)),H180+1,H180),H180)","v":130},{"$f":"IFERROR(INDEX(Таблица2[Заказ],MATCH(ROW(I180),Таблица2[0],))&\" | \"&INDEX(Таблица2[Артикул],MATCH(ROW(I180),Таблица2[0],)),\"|\")","v":" | "}]
[null,null,null,null,null,null,{"$f":"Таблица2[[#This Row],[Кол-во]]-F182","v":0},{"$f":"IF(Таблица2[[#This Row],[пастбище]]=L$1,IF(ISNA(MATCH(Таблица2[[#This Row],[Заказ]],INDEX('Исходные данные'!$1:$1048576,K$1,),)),H181+1,H181),H181)","v":131},{"$f":"IFERROR(INDEX(Таблица2[Заказ],MATCH(ROW(I181),Таблица2[0],))&\" | \"&INDEX(Таблица2[Артикул],MATCH(ROW(I181),Таблица2[0],)),\"|\")","v":" | "}]
[null,null,null,null,null,null,{"$f":"Таблица2[[#This Row],[Кол-во]]-F183","v":0},{"$f":"IF(Таблица2[[#This Row],[пастбище]]=L$1,IF(ISNA(MATCH(Таблица2[[#This Row],[Заказ]],INDEX('Исходные данные'!$1:$1048576,K$1,),)),H182+1,H182),H182)","v":132},{"$f":"IFERROR(INDEX(Таблица2[Заказ],MATCH(ROW(I182),Таблица2[0],))&\" | \"&INDEX(Таблица2[Артикул],MATCH(ROW(I182),Таблица2[0],)),\"|\")","v":" | "}]
[null,null,null,null,null,null,{"$f":"Таблица2[[#This Row],[Кол-во]]-F184","v":0},{"$f":"IF(Таблица2[[#This Row],[пастбище]]=L$1,IF(ISNA(MATCH(Таблица2[[#This Row],[Заказ]],INDEX('Исходные данные'!$1:$1048576,K$1,),)),H183+1,H183),H183)","v":133},{"$f":"IFERROR(INDEX(Таблица2[Заказ],MATCH(ROW(I183),Таблица2[0],))&\" | \"&INDEX(Таблица2[Артикул],MATCH(ROW(I183),Таблица2[0],)),\"|\")","v":" | "}]
[null,null,null,null,null,null,{"$f":"Таблица2[[#This Row],[Кол-во]]-F185","v":0},{"$f":"IF(Таблица2[[#This Row],[пастбище]]=L$1,IF(ISNA(MATCH(Таблица2[[#This Row],[Заказ]],INDEX('Исходные данные'!$1:$1048576,K$1,),)),H184+1,H184),H184)","v":134},{"$f":"IFERROR(INDEX(Таблица2[Заказ],MATCH(ROW(I184),Таблица2[0],))&\" | \"&INDEX(Таблица2[Артикул],MATCH(ROW(I184),Таблица2[0],)),\"|\")","v":" | "}]
[null,null,null,null,null,null,{"$f":"Таблица2[[#This Row],[Кол-во]]-F186","v":0},{"$f":"IF(Таблица2[[#This Row],[пастбище]]=L$1,IF(ISNA(MATCH(Таблица2[[#This Row],[Заказ]],INDEX('Исходные данные'!$1:$1048576,K$1,),)),H185+1,H185),H185)","v":135},{"$f":"IFERROR(INDEX(Таблица2[Заказ],MATCH(ROW(I185),Таблица2[0],))&\" | \"&INDEX(Таблица2[Артикул],MATCH(ROW(I185),Таблица2[0],)),\"|\")","v":" | "}]
[null,null,null,null,null,null,{"$f":"Таблица2[[#This Row],[Кол-во]]-F187","v":0},{"$f":"IF(Таблица2[[#This Row],[пастбище]]=L$1,IF(ISNA(MATCH(Таблица2[[#This Row],[Заказ]],INDEX('Исходные данные'!$1:$1048576,K$1,),)),H186+1,H186),H186)","v":136},{"$f":"IFERROR(INDEX(Таблица2[Заказ],MATCH(ROW(I186),Таблица2[0],))&\" | \"&INDEX(Таблица2[Артикул],MATCH(ROW(I186),Таблица2[0],)),\"|\")","v":" | "}]
[null,null,null,null,null,null,{"$f":"Таблица2[[#This Row],[Кол-во]]-F188","v":0},{"$f":"IF(Таблица2[[#This Row],[пастбище]]=L$1,IF(ISNA(MATCH(Таблица2[[#This Row],[Заказ]],INDEX('Исходные данные'!$1:$1048576,K$1,),)),H187+1,H187),H187)","v":137},{"$f":"IFERROR(INDEX(Таблица2[Заказ],MATCH(ROW(I187),Таблица2[0],))&\" | \"&INDEX(Таблица2[Артикул],MATCH(ROW(I187),Таблица2[0],)),\"|\")","v":" | "}]
[null,null,null,null,null,null,{"$f":"Таблица2[[#This Row],[Кол-во]]-F189","v":0},{"$f":"IF(Таблица2[[#This Row],[пастбище]]=L$1,IF(ISNA(MATCH(Таблица2[[#This Row],[Заказ]],INDEX('Исходные данные'!$1:$1048576,K$1,),)),H188+1,H188),H188)","v":138},{"$f":"IFERROR(INDEX(Таблица2[Заказ],MATCH(ROW(I188),Таблица2[0],))&\" | \"&INDEX(Таблица2[Артикул],MATCH(ROW(I188),Таблица2[0],)),\"|\")","v":" | "}]
[null,null,null,null,null,null,{"$f":"Таблица2[[#This Row],[Кол-во]]-F190","v":0},{"$f":"IF(Таблица2[[#This Row],[пастбище]]=L$1,IF(ISNA(MATCH(Таблица2[[#This Row],[Заказ]],INDEX('Исходные данные'!$1:$1048576,K$1,),)),H189+1,H189),H189)","v":139},{"$f":"IFERROR(INDEX(Таблица2[Заказ],MATCH(ROW(I189),Таблица2[0],))&\" | \"&INDEX(Таблица2[Артикул],MATCH(ROW(I189),Таблица2[0],)),\"|\")","v":" | "}]
[null,null,null,null,null,null,{"$f":"Таблица2[[#This Row],[Кол-во]]-F191","v":0},{"$f":"IF(Таблица2[[#This Row],[пастбище]]=L$1,IF(ISNA(MATCH(Таблица2[[#This Row],[Заказ]],INDEX('Исходные данные'!$1:$1048576,K$1,),)),H190+1,H190),H190)","v":140},{"$f":"IFERROR(INDEX(Таблица2[Заказ],MATCH(ROW(I190),Таблица2[0],))&\" | \"&INDEX(Таблица2[Артикул],MATCH(ROW(I190),Таблица2[0],)),\"|\")","v":" | "}]
[null,null,null,null,null,null,{"$f":"Таблица2[[#This Row],[Кол-во]]-F192","v":0},{"$f":"IF(Таблица2[[#This Row],[пастбище]]=L$1,IF(ISNA(MATCH(Таблица2[[#This Row],[Заказ]],INDEX('Исходные данные'!$1:$1048576,K$1,),)),H191+1,H191),H191)","v":141},{"$f":"IFERROR(INDEX(Таблица2[Заказ],MATCH(ROW(I191),Таблица2[0],))&\" | \"&INDEX(Таблица2[Артикул],MATCH(ROW(I191),Таблица2[0],)),\"|\")","v":" | "}]
[null,null,null,null,null,null,{"$f":"Таблица2[[#This Row],[Кол-во]]-F193","v":0},{"$f":"IF(Таблица2[[#This Row],[пастбище]]=L$1,IF(ISNA(MATCH(Таблица2[[#This Row],[Заказ]],INDEX('Исходные данные'!$1:$1048576,K$1,),)),H192+1,H192),H192)","v":142},{"$f":"IFERROR(INDEX(Таблица2[Заказ],MATCH(ROW(I192),Таблица2[0],))&\" | \"&INDEX(Таблица2[Артикул],MATCH(ROW(I192),Таблица2[0],)),\"|\")","v":" | "}]
[null,null,null,null,null,null,{"$f":"Таблица2[[#This Row],[Кол-во]]-F194","v":0},{"$f":"IF(Таблица2[[#This Row],[пастбище]]=L$1,IF(ISNA(MATCH(Таблица2[[#This Row],[Заказ]],INDEX('Исходные данные'!$1:$1048576,K$1,),)),H193+1,H193),H193)","v":143},{"$f":"IFERROR(INDEX(Таблица2[Заказ],MATCH(ROW(I193),Таблица2[0],))&\" | \"&INDEX(Таблица2[Артикул],MATCH(ROW(I193),Таблица2[0],)),\"|\")","v":" | "}]
[null,null,null,null,null,null,{"$f":"Таблица2[[#This Row],[Кол-во]]-F195","v":0},{"$f":"IF(Таблица2[[#This Row],[пастбище]]=L$1,IF(ISNA(MATCH(Таблица2[[#This Row],[Заказ]],INDEX('Исходные данные'!$1:$1048576,K$1,),)),H194+1,H194),H194)","v":144},{"$f":"IFERROR(INDEX(Таблица2[Заказ],MATCH(ROW(I194),Таблица2[0],))&\" | \"&INDEX(Таблица2[Артикул],MATCH(ROW(I194),Таблица2[0],)),\"|\")","v":" | "}]
[null,null,null,null,null,null,{"$f":"Таблица2[[#This Row],[Кол-во]]-F196","v":0},{"$f":"IF(Таблица2[[#This Row],[пастбище]]=L$1,IF(ISNA(MATCH(Таблица2[[#This Row],[Заказ]],INDEX('Исходные данные'!$1:$1048576,K$1,),)),H195+1,H195),H195)","v":145},{"$f":"IFERROR(INDEX(Таблица2[Заказ],MATCH(ROW(I195),Таблица2[0],))&\" | \"&INDEX(Таблица2[Артикул],MATCH(ROW(I195),Таблица2[0],)),\"|\")","v":" | "}]
[null,null,null,null,null,null,{"$f":"Таблица2[[#This Row],[Кол-во]]-F197","v":0},{"$f":"IF(Таблица2[[#This Row],[пастбище]]=L$1,IF(ISNA(MATCH(Таблица2[[#This Row],[Заказ]],INDEX('Исходные данные'!$1:$1048576,K$1,),)),H196+1,H196),H196)","v":146},{"$f":"IFERROR(INDEX(Таблица2[Заказ],MATCH(ROW(I196),Таблица2[0],))&\" | \"&INDEX(Таблица2[Артикул],MATCH(ROW(I196),Таблица2[0],)),\"|\")","v":" | "}]
[null,null,null,null,null,null,{"$f":"Таблица2[[#This Row],[Кол-во]]-F198","v":0},{"$f":"IF(Таблица2[[#This Row],[пастбище]]=L$1,IF(ISNA(MATCH(Таблица2[[#This Row],[Заказ]],INDEX('Исходные данные'!$1:$1048576,K$1,),)),H197+1,H197),H197)","v":147},{"$f":"IFERROR(INDEX(Таблица2[Заказ],MATCH(ROW(I197),Таблица2[0],))&\" | \"&INDEX(Таблица2[Артикул],MATCH(ROW(I197),Таблица2[0],)),\"|\")","v":" | "}]
[null,null,null,null,null,null,{"$f":"Таблица2[[#This Row],[Кол-во]]-F199","v":0},{"$f":"IF(Таблица2[[#This Row],[пастбище]]=L$1,IF(ISNA(MATCH(Таблица2[[#This Row],[Заказ]],INDEX('Исходные данные'!$1:$1048576,K$1,),)),H198+1,H198),H198)","v":148},{"$f":"IFERROR(INDEX(Таблица2[Заказ],MATCH(ROW(I198),Таблица2[0],))&\" | \"&INDEX(Таблица2[Артикул],MATCH(ROW(I198),Таблица2[0],)),\"|\")","v":" | "}]
[null,null,null,null,null,null,{"$f":"Таблица2[[#This Row],[Кол-во]]-F200","v":0},{"$f":"IF(Таблица2[[#This Row],[пастбище]]=L$1,IF(ISNA(MATCH(Таблица2[[#This Row],[Заказ]],INDEX('Исходные данные'!$1:$1048576,K$1,),)),H199+1,H199),H199)","v":149},{"$f":"IFERROR(INDEX(Таблица2[Заказ],MATCH(ROW(I199),Таблица2[0],))&\" | \"&INDEX(Таблица2[Артикул],MATCH(ROW(I199),Таблица2[0],)),\"|\")","v":" | "}]
[null,null,null,null,null,null,{"$f":"Таблица2[[#This Row],[Кол-во]]-F201","v":0},{"$f":"IF(Таблица2[[#This Row],[пастбище]]=L$1,IF(ISNA(MATCH(Таблица2[[#This Row],[Заказ]],INDEX('Исходные данные'!$1:$1048576,K$1,),)),H200+1,H200),H200)","v":150},{"$f":"IFERROR(INDEX(Таблица2[Заказ],MATCH(ROW(I200),Таблица2[0],))&\" | \"&INDEX(Таблица2[Артикул],MATCH(ROW(I200),Таблица2[0],)),\"|\")","v":" | "}]
[null,null,null,null,null,null,{"$f":"Таблица2[[#This Row],[Кол-во]]-F202","v":0},{"$f":"IF(Таблица2[[#This Row],[пастбище]]=L$1,IF(ISNA(MATCH(Таблица2[[#This Row],[Заказ]],INDEX('Исходные данные'!$1:$1048576,K$1,),)),H201+1,H201),H201)","v":151},{"$f":"IFERROR(INDEX(Таблица2[Заказ],MATCH(ROW(I201),Таблица2[0],))&\" | \"&INDEX(Таблица2[Артикул],MATCH(ROW(I201),Таблица2[0],)),\"|\")","v":" | "}]
[null,null,null,null,null,null,{"$f":"Таблица2[[#This Row],[Кол-во]]-F203","v":0},{"$f":"IF(Таблица2[[#This Row],[пастбище]]=L$1,IF(ISNA(MATCH(Таблица2[[#This Row],[Заказ]],INDEX('Исходные данные'!$1:$1048576,K$1,),)),H202+1,H202),H202)","v":152},{"$f":"IFERROR(INDEX(Таблица2[Заказ],MATCH(ROW(I202),Таблица2[0],))&\" | \"&INDEX(Таблица2[Артикул],MATCH(ROW(I202),Таблица2[0],)),\"|\")","v":" | "}]
[null,null,null,null,null,null,{"$f":"Таблица2[[#This Row],[Кол-во]]-F204","v":0},{"$f":"IF(Таблица2[[#This Row],[пастбище]]=L$1,IF(ISNA(MATCH(Таблица2[[#This Row],[Заказ]],INDEX('Исходные данные'!$1:$1048576,K$1,),)),H203+1,H203),H203)","v":153},{"$f":"IFERROR(INDEX(Таблица2[Заказ],MATCH(ROW(I203),Таблица2[0],))&\" | \"&INDEX(Таблица2[Артикул],MATCH(ROW(I203),Таблица2[0],)),\"|\")","v":" | "}]
[null,null,null,null,null,null,{"$f":"Таблица2[[#This Row],[Кол-во]]-F205","v":0},{"$f":"IF(Таблица2[[#This Row],[пастбище]]=L$1,IF(ISNA(MATCH(Таблица2[[#This Row],[Заказ]],INDEX('Исходные данные'!$1:$1048576,K$1,),)),H204+1,H204),H204)","v":154},{"$f":"IFERROR(INDEX(Таблица2[Заказ],MATCH(ROW(I204),Таблица2[0],))&\" | \"&INDEX(Таблица2[Артикул],MATCH(ROW(I204),Таблица2[0],)),\"|\")","v":" | "}]
[null,null,null,null,null,null,{"$f":"Таблица2[[#This Row],[Кол-во]]-F206","v":0},{"$f":"IF(Таблица2[[#This Row],[пастбище]]=L$1,IF(ISNA(MATCH(Таблица2[[#This Row],[Заказ]],INDEX('Исходные данные'!$1:$1048576,K$1,),)),H205+1,H205),H205)","v":155},{"$f":"IFERROR(INDEX(Таблица2[Заказ],MATCH(ROW(I205),Таблица2[0],))&\" | \"&INDEX(Таблица2[Артикул],MATCH(ROW(I205),Таблица2[0],)),\"|\")","v":" | "}]
[null,null,null,null,null,null,{"$f":"Таблица2[[#This Row],[Кол-во]]-F207","v":0},{"$f":"IF(Таблица2[[#This Row],[пастбище]]=L$1,IF(ISNA(MATCH(Таблица2[[#This Row],[Заказ]],INDEX('Исходные данные'!$1:$1048576,K$1,),)),H206+1,H206),H206)","v":156},{"$f":"IFERROR(INDEX(Таблица2[Заказ],MATCH(ROW(I206),Таблица2[0],))&\" | \"&INDEX(Таблица2[Артикул],MATCH(ROW(I206),Таблица2[0],)),\"|\")","v":" | "}]
[null,null,null,null,null,null,{"$f":"Таблица2[[#This Row],[Кол-во]]-F208","v":0},{"$f":"IF(Таблица2[[#This Row],[пастбище]]=L$1,IF(ISNA(MATCH(Таблица2[[#This Row],[Заказ]],INDEX('Исходные данные'!$1:$1048576,K$1,),)),H207+1,H207),H207)","v":157},{"$f":"IFERROR(INDEX(Таблица2[Заказ],MATCH(ROW(I207),Таблица2[0],))&\" | \"&INDEX(Таблица2[Артикул],MATCH(ROW(I207),Таблица2[0],)),\"|\")","v":" | "}]
[null,null,null,null,null,null,{"$f":"Таблица2[[#This Row],[Кол-во]]-F209","v":0},{"$f":"IF(Таблица2[[#This Row],[пастбище]]=L$1,IF(ISNA(MATCH(Таблица2[[#This Row],[Заказ]],INDEX('Исходные данные'!$1:$1048576,K$1,),)),H208+1,H208),H208)","v":158},{"$f":"IFERROR(INDEX(Таблица2[Заказ],MATCH(ROW(I208),Таблица2[0],))&\" | \"&INDEX(Таблица2[Артикул],MATCH(ROW(I208),Таблица2[0],)),\"|\")","v":" | "}]
[null,null,null,null,null,null,{"$f":"Таблица2[[#This Row],[Кол-во]]-F210","v":0},{"$f":"IF(Таблица2[[#This Row],[пастбище]]=L$1,IF(ISNA(MATCH(Таблица2[[#This Row],[Заказ]],INDEX('Исходные данные'!$1:$1048576,K$1,),)),H209+1,H209),H209)","v":159},{"$f":"IFERROR(INDEX(Таблица2[Заказ],MATCH(ROW(I209),Таблица2[0],))&\" | \"&INDEX(Таблица2[Артикул],MATCH(ROW(I209),Таблица2[0],)),\"|\")","v":" | "}]
[null,null,null,null,null,null,{"$f":"Таблица2[[#This Row],[Кол-во]]-F211","v":0},{"$f":"IF(Таблица2[[#This Row],[пастбище]]=L$1,IF(ISNA(MATCH(Таблица2[[#This Row],[Заказ]],INDEX('Исходные данные'!$1:$1048576,K$1,),)),H210+1,H210),H210)","v":160},{"$f":"IFERROR(INDEX(Таблица2[Заказ],MATCH(ROW(I210),Таблица2[0],))&\" | \"&INDEX(Таблица2[Артикул],MATCH(ROW(I210),Таблица2[0],)),\"|\")","v":" | "}]
[null,null,null,null,null,null,{"$f":"Таблица2[[#This Row],[Кол-во]]-F212","v":0},{"$f":"IF(Таблица2[[#This Row],[пастбище]]=L$1,IF(ISNA(MATCH(Таблица2[[#This Row],[Заказ]],INDEX('Исходные данные'!$1:$1048576,K$1,),)),H211+1,H211),H211)","v":161},{"$f":"IFERROR(INDEX(Таблица2[Заказ],MATCH(ROW(I211),Таблица2[0],))&\" | \"&INDEX(Таблица2[Артикул],MATCH(ROW(I211),Таблица2[0],)),\"|\")","v":" | "}]
[null,null,null,null,null,null,{"$f":"Таблица2[[#This Row],[Кол-во]]-F213","v":0},{"$f":"IF(Таблица2[[#This Row],[пастбище]]=L$1,IF(ISNA(MATCH(Таблица2[[#This Row],[Заказ]],INDEX('Исходные данные'!$1:$1048576,K$1,),)),H212+1,H212),H212)","v":162},{"$f":"IFERROR(INDEX(Таблица2[Заказ],MATCH(ROW(I212),Таблица2[0],))&\" | \"&INDEX(Таблица2[Артикул],MATCH(ROW(I212),Таблица2[0],)),\"|\")","v":" | "}]
[null,null,null,null,null,null,{"$f":"Таблица2[[#This Row],[Кол-во]]-F214","v":0},{"$f":"IF(Таблица2[[#This Row],[пастбище]]=L$1,IF(ISNA(MATCH(Таблица2[[#This Row],[Заказ]],INDEX('Исходные данные'!$1:$1048576,K$1,),)),H213+1,H213),H213)","v":163},{"$f":"IFERROR(INDEX(Таблица2[Заказ],MATCH(ROW(I213),Таблица2[0],))&\" | \"&INDEX(Таблица2[Артикул],MATCH(ROW(I213),Таблица2[0],)),\"|\")","v":" | "}]
[null,null,null,null,null,null,{"$f":"Таблица2[[#This Row],[Кол-во]]-F215","v":0},{"$f":"IF(Таблица2[[#This Row],[пастбище]]=L$1,IF(ISNA(MATCH(Таблица2[[#This Row],[Заказ]],INDEX('Исходные данные'!$1:$1048576,K$1,),)),H214+1,H214),H214)","v":164},{"$f":"IFERROR(INDEX(Таблица2[Заказ],MATCH(ROW(I214),Таблица2[0],))&\" | \"&INDEX(Таблица2[Артикул],MATCH(ROW(I214),Таблица2[0],)),\"|\")","v":" | "}]
[null,null,null,null,null,null,{"$f":"Таблица2[[#This Row],[Кол-во]]-F216","v":0},{"$f":"IF(Таблица2[[#This Row],[пастбище]]=L$1,IF(ISNA(MATCH(Таблица2[[#This Row],[Заказ]],INDEX('Исходные данные'!$1:$1048576,K$1,),)),H215+1,H215),H215)","v":165},{"$f":"IFERROR(INDEX(Таблица2[Заказ],MATCH(ROW(I215),Таблица2[0],))&\" | \"&INDEX(Таблица2[Артикул],MATCH(ROW(I215),Таблица2[0],)),\"|\")","v":" | "}]
[null,null,null,null,null,null,{"$f":"Таблица2[[#This Row],[Кол-во]]-F217","v":0},{"$f":"IF(Таблица2[[#This Row],[пастбище]]=L$1,IF(ISNA(MATCH(Таблица2[[#This Row],[Заказ]],INDEX('Исходные данные'!$1:$1048576,K$1,),)),H216+1,H216),H216)","v":166},{"$f":"IFERROR(INDEX(Таблица2[Заказ],MATCH(ROW(I216),Таблица2[0],))&\" | \"&INDEX(Таблица2[Артикул],MATCH(ROW(I216),Таблица2[0],)),\"|\")","v":" | "}]
[null,null,null,null,null,null,{"$f":"Таблица2[[#This Row],[Кол-во]]-F218","v":0},{"$f":"IF(Таблица2[[#This Row],[пастбище]]=L$1,IF(ISNA(MATCH(Таблица2[[#This Row],[Заказ]],INDEX('Исходные данные'!$1:$1048576,K$1,),)),H217+1,H217),H217)","v":167},{"$f":"IFERROR(INDEX(Таблица2[Заказ],MATCH(ROW(I217),Таблица2[0],))&\" | \"&INDEX(Таблица2[Артикул],MATCH(ROW(I217),Таблица2[0],)),\"|\")","v":" | "}]
[null,null,null,null,null,null,{"$f":"Таблица2[[#This Row],[Кол-во]]-F219","v":0},{"$f":"IF(Таблица2[[#This Row],[пастбище]]=L$1,IF(ISNA(MATCH(Таблица2[[#This Row],[Заказ]],INDEX('Исходные данные'!$1:$1048576,K$1,),)),H218+1,H218),H218)","v":168},{"$f":"IFERROR(INDEX(Таблица2[Заказ],MATCH(ROW(I218),Таблица2[0],))&\" | \"&INDEX(Таблица2[Артикул],MATCH(ROW(I218),Таблица2[0],)),\"|\")","v":" | "}]
[null,null,null,null,null,null,{"$f":"Таблица2[[#This Row],[Кол-во]]-F220","v":0},{"$f":"IF(Таблица2[[#This Row],[пастбище]]=L$1,IF(ISNA(MATCH(Таблица2[[#This Row],[Заказ]],INDEX('Исходные данные'!$1:$1048576,K$1,),)),H219+1,H219),H219)","v":169},{"$f":"IFERROR(INDEX(Таблица2[Заказ],MATCH(ROW(I219),Таблица2[0],))&\" | \"&INDEX(Таблица2[Артикул],MATCH(ROW(I219),Таблица2[0],)),\"|\")","v":" | "}]
[null,null,null,null,null,null,{"$f":"Таблица2[[#This Row],[Кол-во]]-F221","v":0},{"$f":"IF(Таблица2[[#This Row],[пастбище]]=L$1,IF(ISNA(MATCH(Таблица2[[#This Row],[Заказ]],INDEX('Исходные данные'!$1:$1048576,K$1,),)),H220+1,H220),H220)","v":170},{"$f":"IFERROR(INDEX(Таблица2[Заказ],MATCH(ROW(I220),Таблица2[0],))&\" | \"&INDEX(Таблица2[Артикул],MATCH(ROW(I220),Таблица2[0],)),\"|\")","v":" | "}]
[null,null,null,null,null,null,{"$f":"Таблица2[[#This Row],[Кол-во]]-F222","v":0},{"$f":"IF(Таблица2[[#This Row],[пастбище]]=L$1,IF(ISNA(MATCH(Таблица2[[#This Row],[Заказ]],INDEX('Исходные данные'!$1:$1048576,K$1,),)),H221+1,H221),H221)","v":171},{"$f":"IFERROR(INDEX(Таблица2[Заказ],MATCH(ROW(I221),Таблица2[0],))&\" | \"&INDEX(Таблица2[Артикул],MATCH(ROW(I221),Таблица2[0],)),\"|\")","v":" | "}]
[null,null,null,null,null,null,{"$f":"Таблица2[[#This Row],[Кол-во]]-F223","v":0},{"$f":"IF(Таблица2[[#This Row],[пастбище]]=L$1,IF(ISNA(MATCH(Таблица2[[#This Row],[Заказ]],INDEX('Исходные данные'!$1:$1048576,K$1,),)),H222+1,H222),H222)","v":172},{"$f":"IFERROR(INDEX(Таблица2[Заказ],MATCH(ROW(I222),Таблица2[0],))&\" | \"&INDEX(Таблица2[Артикул],MATCH(ROW(I222),Таблица2[0],)),\"|\")","v":" | "}]
[null,null,null,null,null,null,{"$f":"Таблица2[[#This Row],[Кол-во]]-F224","v":0},{"$f":"IF(Таблица2[[#This Row],[пастбище]]=L$1,IF(ISNA(MATCH(Таблица2[[#This Row],[Заказ]],INDEX('Исходные данные'!$1:$1048576,K$1,),)),H223+1,H223),H223)","v":173},{"$f":"IFERROR(INDEX(Таблица2[Заказ],MATCH(ROW(I223),Таблица2[0],))&\" | \"&INDEX(Таблица2[Артикул],MATCH(ROW(I223),Таблица2[0],)),\"|\")","v":" | "}]
[null,null,null,null,null,null,{"$f":"Таблица2[[#This Row],[Кол-во]]-F225","v":0},{"$f":"IF(Таблица2[[#This Row],[пастбище]]=L$1,IF(ISNA(MATCH(Таблица2[[#This Row],[Заказ]],INDEX('Исходные данные'!$1:$1048576,K$1,),)),H224+1,H224),H224)","v":174},{"$f":"IFERROR(INDEX(Таблица2[Заказ],MATCH(ROW(I224),Таблица2[0],))&\" | \"&INDEX(Таблица2[Артикул],MATCH(ROW(I224),Таблица2[0],)),\"|\")","v":" | "}]
[null,null,null,null,null,null,{"$f":"Таблица2[[#This Row],[Кол-во]]-F226","v":0},{"$f":"IF(Таблица2[[#This Row],[пастбище]]=L$1,IF(ISNA(MATCH(Таблица2[[#This Row],[Заказ]],INDEX('Исходные данные'!$1:$1048576,K$1,),)),H225+1,H225),H225)","v":175},{"$f":"IFERROR(INDEX(Таблица2[Заказ],MATCH(ROW(I225),Таблица2[0],))&\" | \"&INDEX(Таблица2[Артикул],MATCH(ROW(I225),Таблица2[0],)),\"|\")","v":" | "}]
[null,null,null,null,null,null,{"$f":"Таблица2[[#This Row],[Кол-во]]-F227","v":0},{"$f":"IF(Таблица2[[#This Row],[пастбище]]=L$1,IF(ISNA(MATCH(Таблица2[[#This Row],[Заказ]],INDEX('Исходные данные'!$1:$1048576,K$1,),)),H226+1,H226),H226)","v":176},{"$f":"IFERROR(INDEX(Таблица2[Заказ],MATCH(ROW(I226),Таблица2[0],))&\" | \"&INDEX(Таблица2[Артикул],MATCH(ROW(I226),Таблица2[0],)),\"|\")","v":" | "}]
[null,null,null,null,null,null,{"$f":"Таблица2[[#This Row],[Кол-во]]-F228","v":0},{"$f":"IF(Таблица2[[#This Row],[пастбище]]=L$1,IF(ISNA(MATCH(Таблица2[[#This Row],[Заказ]],INDEX('Исходные данные'!$1:$1048576,K$1,),)),H227+1,H227),H227)","v":177},{"$f":"IFERROR(INDEX(Таблица2[Заказ],MATCH(ROW(I227),Таблица2[0],))&\" | \"&INDEX(Таблица2[Артикул],MATCH(ROW(I227),Таблица2[0],)),\"|\")","v":" | "}]
[null,null,null,null,null,null,{"$f":"Таблица2[[#This Row],[Кол-во]]-F229","v":0},{"$f":"IF(Таблица2[[#This Row],[пастбище]]=L$1,IF(ISNA(MATCH(Таблица2[[#This Row],[Заказ]],INDEX('Исходные данные'!$1:$1048576,K$1,),)),H228+1,H228),H228)","v":178},{"$f":"IFERROR(INDEX(Таблица2[Заказ],MATCH(ROW(I228),Таблица2[0],))&\" | \"&INDEX(Таблица2[Артикул],MATCH(ROW(I228),Таблица2[0],)),\"|\")","v":" | "}]
[null,null,null,null,null,null,{"$f":"Таблица2[[#This Row],[Кол-во]]-F230","v":0},{"$f":"IF(Таблица2[[#This Row],[пастбище]]=L$1,IF(ISNA(MATCH(Таблица2[[#This Row],[Заказ]],INDEX('Исходные данные'!$1:$1048576,K$1,),)),H229+1,H229),H229)","v":179},{"$f":"IFERROR(INDEX(Таблица2[Заказ],MATCH(ROW(I229),Таблица2[0],))&\" | \"&INDEX(Таблица2[Артикул],MATCH(ROW(I229),Таблица2[0],)),\"|\")","v":" | "}]
[null,null,null,null,null,null,{"$f":"Таблица2[[#This Row],[Кол-во]]-F231","v":0},{"$f":"IF(Таблица2[[#This Row],[пастбище]]=L$1,IF(ISNA(MATCH(Таблица2[[#This Row],[Заказ]],INDEX('Исходные данные'!$1:$1048576,K$1,),)),H230+1,H230),H230)","v":180},{"$f":"IFERROR(INDEX(Таблица2[Заказ],MATCH(ROW(I230),Таблица2[0],))&\" | \"&INDEX(Таблица2[Артикул],MATCH(ROW(I230),Таблица2[0],)),\"|\")","v":" | "}]
[null,null,null,null,null,null,{"$f":"Таблица2[[#This Row],[Кол-во]]-F232","v":0},{"$f":"IF(Таблица2[[#This Row],[пастбище]]=L$1,IF(ISNA(MATCH(Таблица2[[#This Row],[Заказ]],INDEX('Исходные данные'!$1:$1048576,K$1,),)),H231+1,H231),H231)","v":181},{"$f":"IFERROR(INDEX(Таблица2[Заказ],MATCH(ROW(I231),Таблица2[0],))&\" | \"&INDEX(Таблица2[Артикул],MATCH(ROW(I231),Таблица2[0],)),\"|\")","v":" | "}]
[null,null,null,null,null,null,{"$f":"Таблица2[[#This Row],[Кол-во]]-F233","v":0},{"$f":"IF(Таблица2[[#This Row],[пастбище]]=L$1,IF(ISNA(MATCH(Таблица2[[#This Row],[Заказ]],INDEX('Исходные данные'!$1:$1048576,K$1,),)),H232+1,H232),H232)","v":182},{"$f":"IFERROR(INDEX(Таблица2[Заказ],MATCH(ROW(I232),Таблица2[0],))&\" | \"&INDEX(Таблица2[Артикул],MATCH(ROW(I232),Таблица2[0],)),\"|\")","v":" | "}]
[null,null,null,null,null,null,{"$f":"Таблица2[[#This Row],[Кол-во]]-F234","v":0},{"$f":"IF(Таблица2[[#This Row],[пастбище]]=L$1,IF(ISNA(MATCH(Таблица2[[#This Row],[Заказ]],INDEX('Исходные данные'!$1:$1048576,K$1,),)),H233+1,H233),H233)","v":183},{"$f":"IFERROR(INDEX(Таблица2[Заказ],MATCH(ROW(I233),Таблица2[0],))&\" | \"&INDEX(Таблица2[Артикул],MATCH(ROW(I233),Таблица2[0],)),\"|\")","v":" | "}]
[null,null,null,null,null,null,{"$f":"Таблица2[[#This Row],[Кол-во]]-F235","v":0},{"$f":"IF(Таблица2[[#This Row],[пастбище]]=L$1,IF(ISNA(MATCH(Таблица2[[#This Row],[Заказ]],INDEX('Исходные данные'!$1:$1048576,K$1,),)),H234+1,H234),H234)","v":184},{"$f":"IFERROR(INDEX(Таблица2[Заказ],MATCH(ROW(I234),Таблица2[0],))&\" | \"&INDEX(Таблица2[Артикул],MATCH(ROW(I234),Таблица2[0],)),\"|\")","v":" | "}]
[null,null,null,null,null,null,{"$f":"Таблица2[[#This Row],[Кол-во]]-F236","v":0},{"$f":"IF(Таблица2[[#This Row],[пастбище]]=L$1,IF(ISNA(MATCH(Таблица2[[#This Row],[Заказ]],INDEX('Исходные данные'!$1:$1048576,K$1,),)),H235+1,H235),H235)","v":185},{"$f":"IFERROR(INDEX(Таблица2[Заказ],MATCH(ROW(I235),Таблица2[0],))&\" | \"&INDEX(Таблица2[Артикул],MATCH(ROW(I235),Таблица2[0],)),\"|\")","v":" | "}]
[null,null,null,null,null,null,{"$f":"Таблица2[[#This Row],[Кол-во]]-F237","v":0},{"$f":"IF(Таблица2[[#This Row],[пастбище]]=L$1,IF(ISNA(MATCH(Таблица2[[#This Row],[Заказ]],INDEX('Исходные данные'!$1:$1048576,K$1,),)),H236+1,H236),H236)","v":186},{"$f":"IFERROR(INDEX(Таблица2[Заказ],MATCH(ROW(I236),Таблица2[0],))&\" | \"&INDEX(Таблица2[Артикул],MATCH(ROW(I236),Таблица2[0],)),\"|\")","v":" | "}]
[null,null,null,null,null,null,{"$f":"Таблица2[[#This Row],[Кол-во]]-F238","v":0},{"$f":"IF(Таблица2[[#This Row],[пастбище]]=L$1,IF(ISNA(MATCH(Таблица2[[#This Row],[Заказ]],INDEX('Исходные данные'!$1:$1048576,K$1,),)),H237+1,H237),H237)","v":187},{"$f":"IFERROR(INDEX(Таблица2[Заказ],MATCH(ROW(I237),Таблица2[0],))&\" | \"&INDEX(Таблица2[Артикул],MATCH(ROW(I237),Таблица2[0],)),\"|\")","v":" | "}]
[null,null,null,null,null,null,{"$f":"Таблица2[[#This Row],[Кол-во]]-F239","v":0},{"$f":"IF(Таблица2[[#This Row],[пастбище]]=L$1,IF(ISNA(MATCH(Таблица2[[#This Row],[Заказ]],INDEX('Исходные данные'!$1:$1048576,K$1,),)),H238+1,H238),H238)","v":188},{"$f":"IFERROR(INDEX(Таблица2[Заказ],MATCH(ROW(I238),Таблица2[0],))&\" | \"&INDEX(Таблица2[Артикул],MATCH(ROW(I238),Таблица2[0],)),\"|\")","v":" | "}]
[null,null,null,null,null,null,{"$f":"Таблица2[[#This Row],[Кол-во]]-F240","v":0},{"$f":"IF(Таблица2[[#This Row],[пастбище]]=L$1,IF(ISNA(MATCH(Таблица2[[#This Row],[Заказ]],INDEX('Исходные данные'!$1:$1048576,K$1,),)),H239+1,H239),H239)","v":189},{"$f":"IFERROR(INDEX(Таблица2[Заказ],MATCH(ROW(I239),Таблица2[0],))&\" | \"&INDEX(Таблица2[Артикул],MATCH(ROW(I239),Таблица2[0],)),\"|\")","v":"|"}]
[null,null,null,null,null,null,{"$f":"Таблица2[[#This Row],[Кол-во]]-F241","v":0},{"$f":"IF(Таблица2[[#This Row],[пастбище]]=L$1,IF(ISNA(MATCH(Таблица2[[#This Row],[Заказ]],INDEX('Исходные данные'!$1:$1048576,K$1,),)),H240+1,H240),H240)","v":190},{"$f":"IFERROR(INDEX(Таблица2[Заказ],MATCH(ROW(I240),Таблица2[0],))&\" | \"&INDEX(Таблица2[Артикул],MATCH(ROW(I240),Таблица2[0],)),\"|\")","v":"|"}]
[null,null,null,null,null,null,{"$f":"Таблица2[[#This Row],[Кол-во]]-F242","v":0},{"$f":"IF(Таблица2[[#This Row],[пастбище]]=L$1,IF(ISNA(MATCH(Таблица2[[#This Row],[Заказ]],INDEX('Исходные данные'!$1:$1048576,K$1,),)),H241+1,H241),H241)","v":191},{"$f":"IFERROR(INDEX(Таблица2[Заказ],MATCH(ROW(I241),Таблица2[0],))&\" | \"&INDEX(Таблица2[Артикул],MATCH(ROW(I241),Таблица2[0],)),\"|\")","v":"|"}]
[null,null,null,null,null,null,{"$f":"Таблица2[[#This Row],[Кол-во]]-F243","v":0},{"$f":"IF(Таблица2[[#This Row],[пастбище]]=L$1,IF(ISNA(MATCH(Таблица2[[#This Row],[Заказ]],INDEX('Исходные данные'!$1:$1048576,K$1,),)),H242+1,H242),H242)","v":192},{"$f":"IFERROR(INDEX(Таблица2[Заказ],MATCH(ROW(I242),Таблица2[0],))&\" | \"&INDEX(Таблица2[Артикул],MATCH(ROW(I242),Таблица2[0],)),\"|\")","v":"|"}]
[null,null,null,null,null,null,{"$f":"Таблица2[[#This Row],[Кол-во]]-F244","v":0},{"$f":"IF(Таблица2[[#This Row],[пастбище]]=L$1,IF(ISNA(MATCH(Таблица2[[#This Row],[Заказ]],INDEX('Исходные данные'!$1:$1048576,K$1,),)),H243+1,H243),H243)","v":193},{"$f":"IFERROR(INDEX(Таблица2[Заказ],MATCH(ROW(I243),Таблица2[0],))&\" | \"&INDEX(Таблица2[Артикул],MATCH(ROW(I243),Таблица2[0],)),\"|\")","v":"|"}]
[null,null,null,null,null,null,{"$f":"Таблица2[[#This Row],[Кол-во]]-F245","v":0},{"$f":"IF(Таблица2[[#This Row],[пастбище]]=L$1,IF(ISNA(MATCH(Таблица2[[#This Row],[Заказ]],INDEX('Исходные данные'!$1:$1048576,K$1,),)),H244+1,H244),H244)","v":194},{"$f":"IFERROR(INDEX(Таблица2[Заказ],MATCH(ROW(I244),Таблица2[0],))&\" | \"&INDEX(Таблица2[Артикул],MATCH(ROW(I244),Таблица2[0],)),\"|\")","v":"|"}]
[null,null,null,null,null,null,{"$f":"Таблица2[[#This Row],[Кол-во]]-F246","v":0},{"$f":"IF(Таблица2[[#This Row],[пастбище]]=L$1,IF(ISNA(MATCH(Таблица2[[#This Row],[Заказ]],INDEX('Исходные данные'!$1:$1048576,K$1,),)),H245+1,H245),H245)","v":195},{"$f":"IFERROR(INDEX(Таблица2[Заказ],MATCH(ROW(I245),Таблица2[0],))&\" | \"&INDEX(Таблица2[Артикул],MATCH(ROW(I245),Таблица2[0],)),\"|\")","v":"|"}]
[null,null,null,null,null,null,{"$f":"Таблица2[[#This Row],[Кол-во]]-F247","v":0},{"$f":"IF(Таблица2[[#This Row],[пастбище]]=L$1,IF(ISNA(MATCH(Таблица2[[#This Row],[Заказ]],INDEX('Исходные данные'!$1:$1048576,K$1,),)),H246+1,H246),H246)","v":196},{"$f":"IFERROR(INDEX(Таблица2[Заказ],MATCH(ROW(I246),Таблица2[0],))&\" | \"&INDEX(Таблица2[Артикул],MATCH(ROW(I246),Таблица2[0],)),\"|\")","v":"|"}]
[null,null,null,null,null,null,{"$f":"Таблица2[[#This Row],[Кол-во]]-F248","v":0},{"$f":"IF(Таблица2[[#This Row],[пастбище]]=L$1,IF(ISNA(MATCH(Таблица2[[#This Row],[Заказ]],INDEX('Исходные данные'!$1:$1048576,K$1,),)),H247+1,H247),H247)","v":197},{"$f":"IFERROR(INDEX(Таблица2[Заказ],MATCH(ROW(I247),Таблица2[0],))&\" | \"&INDEX(Таблица2[Артикул],MATCH(ROW(I247),Таблица2[0],)),\"|\")","v":"|"}]
[null,null,null,null,null,null,{"$f":"Таблица2[[#This Row],[Кол-во]]-F249","v":0},{"$f":"IF(Таблица2[[#This Row],[пастбище]]=L$1,IF(ISNA(MATCH(Таблица2[[#This Row],[Заказ]],INDEX('Исходные данные'!$1:$1048576,K$1,),)),H248+1,H248),H248)","v":198},{"$f":"IFERROR(INDEX(Таблица2[Заказ],MATCH(ROW(I248),Таблица2[0],))&\" | \"&INDEX(Таблица2[Артикул],MATCH(ROW(I248),Таблица2[0],)),\"|\")","v":"|"}]
[null,null,null,null,null,null,{"$f":"Таблица2[[#This Row],[Кол-во]]-F250","v":0},{"$f":"IF(Таблица2[[#This Row],[пастбище]]=L$1,IF(ISNA(MATCH(Таблица2[[#This Row],[Заказ]],INDEX('Исходные данные'!$1:$1048576,K$1,),)),H249+1,H249),H249)","v":199},{"$f":"IFERROR(INDEX(Таблица2[Заказ],MATCH(ROW(I249),Таблица2[0],))&\" | \"&INDEX(Таблица2[Артикул],MATCH(ROW(I249),Таблица2[0],)),\"|\")","v":"|"}]
[null,null,null,null,null,null,{"$f":"Таблица2[[#This Row],[Кол-во]]-F251","v":0},{"$f":"IF(Таблица2[[#This Row],[пастбище]]=L$1,IF(ISNA(MATCH(Таблица2[[#This Row],[Заказ]],INDEX('Исходные данные'!$1:$1048576,K$1,),)),H250+1,H250),H250)","v":200},{"$f":"IFERROR(INDEX(Таблица2[Заказ],MATCH(ROW(I250),Таблица2[0],))&\" | \"&INDEX(Таблица2[Артикул],MATCH(ROW(I250),Таблица2[0],)),\"|\")","v":"|"}]
[null,null,null,null,null,null,{"$f":"Таблица2[[#This Row],[Кол-во]]-F252","v":0},{"$f":"IF(Таблица2[[#This Row],[пастбище]]=L$1,IF(ISNA(MATCH(Таблица2[[#This Row],[Заказ]],INDEX('Исходные данные'!$1:$1048576,K$1,),)),H251+1,H251),H251)","v":201},{"$f":"IFERROR(INDEX(Таблица2[Заказ],MATCH(ROW(I251),Таблица2[0],))&\" | \"&INDEX(Таблица2[Артикул],MATCH(ROW(I251),Таблица2[0],)),\"|\")","v":"|"}]
[null,null,null,null,null,null,{"$f":"Таблица2[[#This Row],[Кол-во]]-F253","v":0},{"$f":"IF(Таблица2[[#This Row],[пастбище]]=L$1,IF(ISNA(MATCH(Таблица2[[#This Row],[Заказ]],INDEX('Исходные данные'!$1:$1048576,K$1,),)),H252+1,H252),H252)","v":202},{"$f":"IFERROR(INDEX(Таблица2[Заказ],MATCH(ROW(I252),Таблица2[0],))&\" | \"&INDEX(Таблица2[Артикул],MATCH(ROW(I252),Таблица2[0],)),\"|\")","v":"|"}]
[null,null,null,null,null,null,{"$f":"Таблица2[[#This Row],[Кол-во]]-F254","v":0},{"$f":"IF(Таблица2[[#This Row],[пастбище]]=L$1,IF(ISNA(MATCH(Таблица2[[#This Row],[Заказ]],INDEX('Исходные данные'!$1:$1048576,K$1,),)),H253+1,H253),H253)","v":203},{"$f":"IFERROR(INDEX(Таблица2[Заказ],MATCH(ROW(I253),Таблица2[0],))&\" | \"&INDEX(Таблица2[Артикул],MATCH(ROW(I253),Таблица2[0],)),\"|\")","v":"|"}]
[null,null,null,null,null,null,{"$f":"Таблица2[[#This Row],[Кол-во]]-F255","v":0},{"$f":"IF(Таблица2[[#This Row],[пастбище]]=L$1,IF(ISNA(MATCH(Таблица2[[#This Row],[Заказ]],INDEX('Исходные данные'!$1:$1048576,K$1,),)),H254+1,H254),H254)","v":204},{"$f":"IFERROR(INDEX(Таблица2[Заказ],MATCH(ROW(I254),Таблица2[0],))&\" | \"&INDEX(Таблица2[Артикул],MATCH(ROW(I254),Таблица2[0],)),\"|\")","v":"|"}]
[null,null,null,null,null,null,{"$f":"Таблица2[[#This Row],[Кол-во]]-F256","v":0},{"$f":"IF(Таблица2[[#This Row],[пастбище]]=L$1,IF(ISNA(MATCH(Таблица2[[#This Row],[Заказ]],INDEX('Исходные данные'!$1:$1048576,K$1,),)),H255+1,H255),H255)","v":205},{"$f":"IFERROR(INDEX(Таблица2[Заказ],MATCH(ROW(I255),Таблица2[0],))&\" | \"&INDEX(Таблица2[Артикул],MATCH(ROW(I255),Таблица2[0],)),\"|\")","v":"|"}]
[null,null,null,null,null,null,{"$f":"Таблица2[[#This Row],[Кол-во]]-F257","v":0},{"$f":"IF(Таблица2[[#This Row],[пастбище]]=L$1,IF(ISNA(MATCH(Таблица2[[#This Row],[Заказ]],INDEX('Исходные данные'!$1:$1048576,K$1,),)),H256+1,H256),H256)","v":206},{"$f":"IFERROR(INDEX(Таблица2[Заказ],MATCH(ROW(I256),Таблица2[0],))&\" | \"&INDEX(Таблица2[Артикул],MATCH(ROW(I256),Таблица2[0],)),\"|\")","v":"|"}]
[null,null,null,null,null,null,{"$f":"Таблица2[[#This Row],[Кол-во]]-F258","v":0},{"$f":"IF(Таблица2[[#This Row],[пастбище]]=L$1,IF(ISNA(MATCH(Таблица2[[#This Row],[Заказ]],INDEX('Исходные данные'!$1:$1048576,K$1,),)),H257+1,H257),H257)","v":207},{"$f":"IFERROR(INDEX(Таблица2[Заказ],MATCH(ROW(I257),Таблица2[0],))&\" | \"&INDEX(Таблица2[Артикул],MATCH(ROW(I257),Таблица2[0],)),\"|\")","v":"|"}]
[null,null,null,null,null,null,{"$f":"Таблица2[[#This Row],[Кол-во]]-F259","v":0},{"$f":"IF(Таблица2[[#This Row],[пастбище]]=L$1,IF(ISNA(MATCH(Таблица2[[#This Row],[Заказ]],INDEX('Исходные данные'!$1:$1048576,K$1,),)),H258+1,H258),H258)","v":208},{"$f":"IFERROR(INDEX(Таблица2[Заказ],MATCH(ROW(I258),Таблица2[0],))&\" | \"&INDEX(Таблица2[Артикул],MATCH(ROW(I258),Таблица2[0],)),\"|\")","v":"|"}]
[null,null,null,null,null,null,{"$f":"Таблица2[[#This Row],[Кол-во]]-F260","v":0},{"$f":"IF(Таблица2[[#This Row],[пастбище]]=L$1,IF(ISNA(MATCH(Таблица2[[#This Row],[Заказ]],INDEX('Исходные данные'!$1:$1048576,K$1,),)),H259+1,H259),H259)","v":209},{"$f":"IFERROR(INDEX(Таблица2[Заказ],MATCH(ROW(I259),Таблица2[0],))&\" | \"&INDEX(Таблица2[Артикул],MATCH(ROW(I259),Таблица2[0],)),\"|\")","v":"|"}]
[null,null,null,null,null,null,{"$f":"Таблица2[[#This Row],[Кол-во]]-F261","v":0},{"$f":"IF(Таблица2[[#This Row],[пастбище]]=L$1,IF(ISNA(MATCH(Таблица2[[#This Row],[Заказ]],INDEX('Исходные данные'!$1:$1048576,K$1,),)),H260+1,H260),H260)","v":210},{"$f":"IFERROR(INDEX(Таблица2[Заказ],MATCH(ROW(I260),Таблица2[0],))&\" | \"&INDEX(Таблица2[Артикул],MATCH(ROW(I260),Таблица2[0],)),\"|\")","v":"|"}]
[null,null,null,null,null,null,{"$f":"Таблица2[[#This Row],[Кол-во]]-F262","v":0},{"$f":"IF(Таблица2[[#This Row],[пастбище]]=L$1,IF(ISNA(MATCH(Таблица2[[#This Row],[Заказ]],INDEX('Исходные данные'!$1:$1048576,K$1,),)),H261+1,H261),H261)","v":211},{"$f":"IFERROR(INDEX(Таблица2[Заказ],MATCH(ROW(I261),Таблица2[0],))&\" | \"&INDEX(Таблица2[Артикул],MATCH(ROW(I261),Таблица2[0],)),\"|\")","v":"|"}]
[null,null,null,null,null,null,{"$f":"Таблица2[[#This Row],[Кол-во]]-F263","v":0},{"$f":"IF(Таблица2[[#This Row],[пастбище]]=L$1,IF(ISNA(MATCH(Таблица2[[#This Row],[Заказ]],INDEX('Исходные данные'!$1:$1048576,K$1,),)),H262+1,H262),H262)","v":212},{"$f":"IFERROR(INDEX(Таблица2[Заказ],MATCH(ROW(I262),Таблица2[0],))&\" | \"&INDEX(Таблица2[Артикул],MATCH(ROW(I262),Таблица2[0],)),\"|\")","v":"|"}]
[null,null,null,null,null,null,{"$f":"Таблица2[[#This Row],[Кол-во]]-F264","v":0},{"$f":"IF(Таблица2[[#This Row],[пастбище]]=L$1,IF(ISNA(MATCH(Таблица2[[#This Row],[Заказ]],INDEX('Исходные данные'!$1:$1048576,K$1,),)),H263+1,H263),H263)","v":213},{"$f":"IFERROR(INDEX(Таблица2[Заказ],MATCH(ROW(I263),Таблица2[0],))&\" | \"&INDEX(Таблица2[Артикул],MATCH(ROW(I263),Таблица2[0],)),\"|\")","v":"|"}]
[null,null,null,null,null,null,{"$f":"Таблица2[[#This Row],[Кол-во]]-F265","v":0},{"$f":"IF(Таблица2[[#This Row],[пастбище]]=L$1,IF(ISNA(MATCH(Таблица2[[#This Row],[Заказ]],INDEX('Исходные данные'!$1:$1048576,K$1,),)),H264+1,H264),H264)","v":214},{"$f":"IFERROR(INDEX(Таблица2[Заказ],MATCH(ROW(I264),Таблица2[0],))&\" | \"&INDEX(Таблица2[Артикул],MATCH(ROW(I264),Таблица2[0],)),\"|\")","v":"|"}]
[null,null,null,null,null,null,{"$f":"Таблица2[[#This Row],[Кол-во]]-F266","v":0},{"$f":"IF(Таблица2[[#This Row],[пастбище]]=L$1,IF(ISNA(MATCH(Таблица2[[#This Row],[Заказ]],INDEX('Исходные данные'!$1:$1048576,K$1,),)),H265+1,H265),H265)","v":215},{"$f":"IFERROR(INDEX(Таблица2[Заказ],MATCH(ROW(I265),Таблица2[0],))&\" | \"&INDEX(Таблица2[Артикул],MATCH(ROW(I265),Таблица2[0],)),\"|\")","v":"|"}]
[null,null,null,null,null,null,{"$f":"Таблица2[[#This Row],[Кол-во]]-F267","v":0},{"$f":"IF(Таблица2[[#This Row],[пастбище]]=L$1,IF(ISNA(MATCH(Таблица2[[#This Row],[Заказ]],INDEX('Исходные данные'!$1:$1048576,K$1,),)),H266+1,H266),H266)","v":216},{"$f":"IFERROR(INDEX(Таблица2[Заказ],MATCH(ROW(I266),Таблица2[0],))&\" | \"&INDEX(Таблица2[Артикул],MATCH(ROW(I266),Таблица2[0],)),\"|\")","v":"|"}]
[null,null,null,null,null,null,{"$f":"Таблица2[[#This Row],[Кол-во]]-F268","v":0},{"$f":"IF(Таблица2[[#This Row],[пастбище]]=L$1,IF(ISNA(MATCH(Таблица2[[#This Row],[Заказ]],INDEX('Исходные данные'!$1:$1048576,K$1,),)),H267+1,H267),H267)","v":217},{"$f":"IFERROR(INDEX(Таблица2[Заказ],MATCH(ROW(I267),Таблица2[0],))&\" | \"&INDEX(Таблица2[Артикул],MATCH(ROW(I267),Таблица2[0],)),\"|\")","v":"|"}]
[null,null,null,null,null,null,{"$f":"Таблица2[[#This Row],[Кол-во]]-F269","v":0},{"$f":"IF(Таблица2[[#This Row],[пастбище]]=L$1,IF(ISNA(MATCH(Таблица2[[#This Row],[Заказ]],INDEX('Исходные данные'!$1:$1048576,K$1,),)),H268+1,H268),H268)","v":218},{"$f":"IFERROR(INDEX(Таблица2[Заказ],MATCH(ROW(I268),Таблица2[0],))&\" | \"&INDEX(Таблица2[Артикул],MATCH(ROW(I268),Таблица2[0],)),\"|\")","v":"|"}]
[null,null,null,null,null,null,{"$f":"Таблица2[[#This Row],[Кол-во]]-F270","v":0},{"$f":"IF(Таблица2[[#This Row],[пастбище]]=L$1,IF(ISNA(MATCH(Таблица2[[#This Row],[Заказ]],INDEX('Исходные данные'!$1:$1048576,K$1,),)),H269+1,H269),H269)","v":219},{"$f":"IFERROR(INDEX(Таблица2[Заказ],MATCH(ROW(I269),Таблица2[0],))&\" | \"&INDEX(Таблица2[Артикул],MATCH(ROW(I269),Таблица2[0],)),\"|\")","v":"|"}]
[null,null,null,null,null,null,{"$f":"Таблица2[[#This Row],[Кол-во]]-F271","v":0},{"$f":"IF(Таблица2[[#This Row],[пастбище]]=L$1,IF(ISNA(MATCH(Таблица2[[#This Row],[Заказ]],INDEX('Исходные данные'!$1:$1048576,K$1,),)),H270+1,H270),H270)","v":220},{"$f":"IFERROR(INDEX(Таблица2[Заказ],MATCH(ROW(I270),Таблица2[0],))&\" | \"&INDEX(Таблица2[Артикул],MATCH(ROW(I270),Таблица2[0],)),\"|\")","v":"|"}]
[null,null,null,null,null,null,{"$f":"Таблица2[[#This Row],[Кол-во]]-F272","v":0},{"$f":"IF(Таблица2[[#This Row],[пастбище]]=L$1,IF(ISNA(MATCH(Таблица2[[#This Row],[Заказ]],INDEX('Исходные данные'!$1:$1048576,K$1,),)),H271+1,H271),H271)","v":221},{"$f":"IFERROR(INDEX(Таблица2[Заказ],MATCH(ROW(I271),Таблица2[0],))&\" | \"&INDEX(Таблица2[Артикул],MATCH(ROW(I271),Таблица2[0],)),\"|\")","v":"|"}]
[null,null,null,null,null,null,{"$f":"Таблица2[[#This Row],[Кол-во]]-F273","v":0},{"$f":"IF(Таблица2[[#This Row],[пастбище]]=L$1,IF(ISNA(MATCH(Таблица2[[#This Row],[Заказ]],INDEX('Исходные данные'!$1:$1048576,K$1,),)),H272+1,H272),H272)","v":222},{"$f":"IFERROR(INDEX(Таблица2[Заказ],MATCH(ROW(I272),Таблица2[0],))&\" | \"&INDEX(Таблица2[Артикул],MATCH(ROW(I272),Таблица2[0],)),\"|\")","v":"|"}]
[null,null,null,null,null,null,{"$f":"Таблица2[[#This Row],[Кол-во]]-F274","v":0},{"$f":"IF(Таблица2[[#This Row],[пастбище]]=L$1,IF(ISNA(MATCH(Таблица2[[#This Row],[Заказ]],INDEX('Исходные данные'!$1:$1048576,K$1,),)),H273+1,H273),H273)","v":223},{"$f":"IFERROR(INDEX(Таблица2[Заказ],MATCH(ROW(I273),Таблица2[0],))&\" | \"&INDEX(Таблица2[Артикул],MATCH(ROW(I273),Таблица2[0],)),\"|\")","v":"|"}]
[null,null,null,null,null,null,{"$f":"Таблица2[[#This Row],[Кол-во]]-F275","v":0},{"$f":"IF(Таблица2[[#This Row],[пастбище]]=L$1,IF(ISNA(MATCH(Таблица2[[#This Row],[Заказ]],INDEX('Исходные данные'!$1:$1048576,K$1,),)),H274+1,H274),H274)","v":224},{"$f":"IFERROR(INDEX(Таблица2[Заказ],MATCH(ROW(I274),Таблица2[0],))&\" | \"&INDEX(Таблица2[Артикул],MATCH(ROW(I274),Таблица2[0],)),\"|\")","v":"|"}]
[null,null,null,null,null,null,{"$f":"Таблица2[[#This Row],[Кол-во]]-F276","v":0},{"$f":"IF(Таблица2[[#This Row],[пастбище]]=L$1,IF(ISNA(MATCH(Таблица2[[#This Row],[Заказ]],INDEX('Исходные данные'!$1:$1048576,K$1,),)),H275+1,H275),H275)","v":225},{"$f":"IFERROR(INDEX(Таблица2[Заказ],MATCH(ROW(I275),Таблица2[0],))&\" | \"&INDEX(Таблица2[Артикул],MATCH(ROW(I275),Таблица2[0],)),\"|\")","v":"|"}]
[null,null,null,null,null,null,{"$f":"Таблица2[[#This Row],[Кол-во]]-F277","v":0},{"$f":"IF(Таблица2[[#This Row],[пастбище]]=L$1,IF(ISNA(MATCH(Таблица2[[#This Row],[Заказ]],INDEX('Исходные данные'!$1:$1048576,K$1,),)),H276+1,H276),H276)","v":226},{"$f":"IFERROR(INDEX(Таблица2[Заказ],MATCH(ROW(I276),Таблица2[0],))&\" | \"&INDEX(Таблица2[Артикул],MATCH(ROW(I276),Таблица2[0],)),\"|\")","v":"|"}]
[null,null,null,null,null,null,{"$f":"Таблица2[[#This Row],[Кол-во]]-F278","v":0},{"$f":"IF(Таблица2[[#This Row],[пастбище]]=L$1,IF(ISNA(MATCH(Таблица2[[#This Row],[Заказ]],INDEX('Исходные данные'!$1:$1048576,K$1,),)),H277+1,H277),H277)","v":227},{"$f":"IFERROR(INDEX(Таблица2[Заказ],MATCH(ROW(I277),Таблица2[0],))&\" | \"&INDEX(Таблица2[Артикул],MATCH(ROW(I277),Таблица2[0],)),\"|\")","v":"|"}]
[null,null,null,null,null,null,{"$f":"Таблица2[[#This Row],[Кол-во]]-F279","v":0},{"$f":"IF(Таблица2[[#This Row],[пастбище]]=L$1,IF(ISNA(MATCH(Таблица2[[#This Row],[Заказ]],INDEX('Исходные данные'!$1:$1048576,K$1,),)),H278+1,H278),H278)","v":228},{"$f":"IFERROR(INDEX(Таблица2[Заказ],MATCH(ROW(I278),Таблица2[0],))&\" | \"&INDEX(Таблица2[Артикул],MATCH(ROW(I278),Таблица2[0],)),\"|\")","v":"|"}]
[null,null,null,null,null,null,{"$f":"Таблица2[[#This Row],[Кол-во]]-F280","v":0},{"$f":"IF(Таблица2[[#This Row],[пастбище]]=L$1,IF(ISNA(MATCH(Таблица2[[#This Row],[Заказ]],INDEX('Исходные данные'!$1:$1048576,K$1,),)),H279+1,H279),H279)","v":229},{"$f":"IFERROR(INDEX(Таблица2[Заказ],MATCH(ROW(I279),Таблица2[0],))&\" | \"&INDEX(Таблица2[Артикул],MATCH(ROW(I279),Таблица2[0],)),\"|\")","v":"|"}]
[null,null,null,null,null,null,{"$f":"Таблица2[[#This Row],[Кол-во]]-F281","v":0},{"$f":"IF(Таблица2[[#This Row],[пастбище]]=L$1,IF(ISNA(MATCH(Таблица2[[#This Row],[Заказ]],INDEX('Исходные данные'!$1:$1048576,K$1,),)),H280+1,H280),H280)","v":230},{"$f":"IFERROR(INDEX(Таблица2[Заказ],MATCH(ROW(I280),Таблица2[0],))&\" | \"&INDEX(Таблица2[Артикул],MATCH(ROW(I280),Таблица2[0],)),\"|\")","v":"|"}]
[null,null,null,null,null,null,{"$f":"Таблица2[[#This Row],[Кол-во]]-F282","v":0},{"$f":"IF(Таблица2[[#This Row],[пастбище]]=L$1,IF(ISNA(MATCH(Таблица2[[#This Row],[Заказ]],INDEX('Исходные данные'!$1:$1048576,K$1,),)),H281+1,H281),H281)","v":231},{"$f":"IFERROR(INDEX(Таблица2[Заказ],MATCH(ROW(I281),Таблица2[0],))&\" | \"&INDEX(Таблица2[Артикул],MATCH(ROW(I281),Таблица2[0],)),\"|\")","v":"|"}]
[null,null,null,null,null,null,{"$f":"Таблица2[[#This Row],[Кол-во]]-F283","v":0},{"$f":"IF(Таблица2[[#This Row],[пастбище]]=L$1,IF(ISNA(MATCH(Таблица2[[#This Row],[Заказ]],INDEX('Исходные данные'!$1:$1048576,K$1,),)),H282+1,H282),H282)","v":232},{"$f":"IFERROR(INDEX(Таблица2[Заказ],MATCH(ROW(I282),Таблица2[0],))&\" | \"&INDEX(Таблица2[Артикул],MATCH(ROW(I282),Таблица2[0],)),\"|\")","v":"|"}]
[null,null,null,null,null,null,{"$f":"Таблица2[[#This Row],[Кол-во]]-F284","v":0},{"$f":"IF(Таблица2[[#This Row],[пастбище]]=L$1,IF(ISNA(MATCH(Таблица2[[#This Row],[Заказ]],INDEX('Исходные данные'!$1:$1048576,K$1,),)),H283+1,H283),H283)","v":233},{"$f":"IFERROR(INDEX(Таблица2[Заказ],MATCH(ROW(I283),Таблица2[0],))&\" | \"&INDEX(Таблица2[Артикул],MATCH(ROW(I283),Таблица2[0],)),\"|\")","v":"|"}]
[null,null,null,null,null,null,{"$f":"Таблица2[[#This Row],[Кол-во]]-F285","v":0},{"$f":"IF(Таблица2[[#This Row],[пастбище]]=L$1,IF(ISNA(MATCH(Таблица2[[#This Row],[Заказ]],INDEX('Исходные данные'!$1:$1048576,K$1,),)),H284+1,H284),H284)","v":234},{"$f":"IFERROR(INDEX(Таблица2[Заказ],MATCH(ROW(I284),Таблица2[0],))&\" | \"&INDEX(Таблица2[Артикул],MATCH(ROW(I284),Таблица2[0],)),\"|\")","v":"|"}]
[null,null,null,null,null,null,{"$f":"Таблица2[[#This Row],[Кол-во]]-F286","v":0},{"$f":"IF(Таблица2[[#This Row],[пастбище]]=L$1,IF(ISNA(MATCH(Таблица2[[#This Row],[Заказ]],INDEX('Исходные данные'!$1:$1048576,K$1,),)),H285+1,H285),H285)","v":235},{"$f":"IFERROR(INDEX(Таблица2[Заказ],MATCH(ROW(I285),Таблица2[0],))&\" | \"&INDEX(Таблица2[Артикул],MATCH(ROW(I285),Таблица2[0],)),\"|\")","v":"|"}]
[null,null,null,null,null,null,{"$f":"Таблица2[[#This Row],[Кол-во]]-F287","v":0},{"$f":"IF(Таблица2[[#This Row],[пастбище]]=L$1,IF(ISNA(MATCH(Таблица2[[#This Row],[Заказ]],INDEX('Исходные данные'!$1:$1048576,K$1,),)),H286+1,H286),H286)","v":236},{"$f":"IFERROR(INDEX(Таблица2[Заказ],MATCH(ROW(I286),Таблица2[0],))&\" | \"&INDEX(Таблица2[Артикул],MATCH(ROW(I286),Таблица2[0],)),\"|\")","v":"|"}]
[null,null,null,null,null,null,{"$f":"Таблица2[[#This Row],[Кол-во]]-F288","v":0},{"$f":"IF(Таблица2[[#This Row],[пастбище]]=L$1,IF(ISNA(MATCH(Таблица2[[#This Row],[Заказ]],INDEX('Исходные данные'!$1:$1048576,K$1,),)),H287+1,H287),H287)","v":237},{"$f":"IFERROR(INDEX(Таблица2[Заказ],MATCH(ROW(I287),Таблица2[0],))&\" | \"&INDEX(Таблица2[Артикул],MATCH(ROW(I287),Таблица2[0],)),\"|\")","v":"|"}]
[null,null,null,null,null,null,{"$f":"Таблица2[[#This Row],[Кол-во]]-F289","v":0},{"$f":"IF(Таблица2[[#This Row],[пастбище]]=L$1,IF(ISNA(MATCH(Таблица2[[#This Row],[Заказ]],INDEX('Исходные данные'!$1:$1048576,K$1,),)),H288+1,H288),H288)","v":238},{"$f":"IFERROR(INDEX(Таблица2[Заказ],MATCH(ROW(I288),Таблица2[0],))&\" | \"&INDEX(Таблица2[Артикул],MATCH(ROW(I288),Таблица2[0],)),\"|\")","v":"|"}]
[null,null,null,null,null,null,{"$f":"Таблица2[[#This Row],[Кол-во]]-F290","v":0}]
[null,null,null,null,null,null,{"$f":"Таблица2[[#This Row],[Кол-во]]-F291","v":0},{"$f":"IF(Таблица2[[#This Row],[пастбище]]=L$1,IF(ISNA(MATCH(Таблица2[[#This Row],[Заказ]],INDEX('Исходные данные'!$1:$1048576,K$1,),)),H290+1,H290),H290)","v":1},{"$f":"IFERROR(INDEX(Таблица2[Заказ],MATCH(ROW(I290),Таблица2[0],))&\" | \"&INDEX(Таблица2[Артикул],MATCH(ROW(I290),Таблица2[0],)),\"|\")","v":"|"}]
[null,null,null,null,null,null,{"$f":"Таблица2[[#This Row],[Кол-во]]-F292","v":0},{"$f":"IF(Таблица2[[#This Row],[пастбище]]=L$1,IF(ISNA(MATCH(Таблица2[[#This Row],[Заказ]],INDEX('Исходные данные'!$1:$1048576,K$1,),)),H291+1,H291),H291)","v":2},{"$f":"IFERROR(INDEX(Таблица2[Заказ],MATCH(ROW(I291),Таблица2[0],))&\" | \"&INDEX(Таблица2[Артикул],MATCH(ROW(I291),Таблица2[0],)),\"|\")","v":"|"}]
[null,null,null,null,null,null,{"$f":"Таблица2[[#This Row],[Кол-во]]-F293","v":0},{"$f":"IF(Таблица2[[#This Row],[пастбище]]=L$1,IF(ISNA(MATCH(Таблица2[[#This Row],[Заказ]],INDEX('Исходные данные'!$1:$1048576,K$1,),)),H292+1,H292),H292)","v":3},{"$f":"IFERROR(INDEX(Таблица2[Заказ],MATCH(ROW(I292),Таблица2[0],))&\" | \"&INDEX(Таблица2[Артикул],MATCH(ROW(I292),Таблица2[0],)),\"|\")","v":"|"}]
[null,null,null,null,null,null,{"$f":"Таблица2[[#This Row],[Кол-во]]-F294","v":0},{"$f":"IF(Таблица2[[#This Row],[пастбище]]=L$1,IF(ISNA(MATCH(Таблица2[[#This Row],[Заказ]],INDEX('Исходные данные'!$1:$1048576,K$1,),)),H293+1,H293),H293)","v":4},{"$f":"IFERROR(INDEX(Таблица2[Заказ],MATCH(ROW(I293),Таблица2[0],))&\" | \"&INDEX(Таблица2[Артикул],MATCH(ROW(I293),Таблица2[0],)),\"|\")","v":"|"}]
[null,null,null,null,null,null,{"$f":"Таблица2[[#This Row],[Кол-во]]-F295","v":0},{"$f":"IF(Таблица2[[#This Row],[пастбище]]=L$1,IF(ISNA(MATCH(Таблица2[[#This Row],[Заказ]],INDEX('Исходные данные'!$1:$1048576,K$1,),)),H294+1,H294),H294)","v":5},{"$f":"IFERROR(INDEX(Таблица2[Заказ],MATCH(ROW(I294),Таблица2[0],))&\" | \"&INDEX(Таблица2[Артикул],MATCH(ROW(I294),Таблица2[0],)),\"|\")","v":"|"}]
[null,null,null,null,null,null,{"$f":"Таблица2[[#This Row],[Кол-во]]-F296","v":0},{"$f":"IF(Таблица2[[#This Row],[пастбище]]=L$1,IF(ISNA(MATCH(Таблица2[[#This Row],[Заказ]],INDEX('Исходные данные'!$1:$1048576,K$1,),)),H295+1,H295),H295)","v":6},{"$f":"IFERROR(INDEX(Таблица2[Заказ],MATCH(ROW(I295),Таблица2[0],))&\" | \"&INDEX(Таблица2[Артикул],MATCH(ROW(I295),Таблица2[0],)),\"|\")","v":"|"}]
[null,null,null,null,null,null,{"$f":"Таблица2[[#This Row],[Кол-во]]-F297","v":0},{"$f":"IF(Таблица2[[#This Row],[пастбище]]=L$1,IF(ISNA(MATCH(Таблица2[[#This Row],[Заказ]],INDEX('Исходные данные'!$1:$1048576,K$1,),)),H296+1,H296),H296)","v":7},{"$f":"IFERROR(INDEX(Таблица2[Заказ],MATCH(ROW(I296),Таблица2[0],))&\" | \"&INDEX(Таблица2[Артикул],MATCH(ROW(I296),Таблица2[0],)),\"|\")","v":"|"}]
[null,null,null,null,null,null,{"$f":"Таблица2[[#This Row],[Кол-во]]-F298","v":0},{"$f":"IF(Таблица2[[#This Row],[пастбище]]=L$1,IF(ISNA(MATCH(Таблица2[[#This Row],[Заказ]],INDEX('Исходные данные'!$1:$1048576,K$1,),)),H297+1,H297),H297)","v":8},{"$f":"IFERROR(INDEX(Таблица2[Заказ],MATCH(ROW(I297),Таблица2[0],))&\" | \"&INDEX(Таблица2[Артикул],MATCH(ROW(I297),Таблица2[0],)),\"|\")","v":"|"}]
[null,null,null,null,null,null,{"$f":"Таблица2[[#This Row],[Кол-во]]-F299","v":0},{"$f":"IF(Таблица2[[#This Row],[пастбище]]=L$1,IF(ISNA(MATCH(Таблица2[[#This Row],[Заказ]],INDEX('Исходные данные'!$1:$1048576,K$1,),)),H298+1,H298),H298)","v":9},{"$f":"IFERROR(INDEX(Таблица2[Заказ],MATCH(ROW(I298),Таблица2[0],))&\" | \"&INDEX(Таблица2[Артикул],MATCH(ROW(I298),Таблица2[0],)),\"|\")","v":"|"}]
[null,null,null,null,null,null,{"$f":"Таблица2[[#This Row],[Кол-во]]-F300","v":0},{"$f":"IF(Таблица2[[#This Row],[пастбище]]=L$1,IF(ISNA(MATCH(Таблица2[[#This Row],[Заказ]],INDEX('Исходные данные'!$1:$1048576,K$1,),)),H299+1,H299),H299)","v":10},{"$f":"IFERROR(INDEX(Таблица2[Заказ],MATCH(ROW(I299),Таблица2[0],))&\" | \"&INDEX(Таблица2[Артикул],MATCH(ROW(I299),Таблица2[0],)),\"|\")","v":"|"}]

{"sheet":"Расчётные сроки окончания","index":3,"n_rows":8,"n_cols":25,"rows_kept":8,"cut":false,"hidden":false,"merged":[]}
["Текущая дата:"]
[{"$f":"TODAY()+8/24","v":"2024-08-06T08:00:00"}]
["Линия","Отдых, мин","Сон, мин","Осталось, д:ч:м","Планируемая дата окончания текущего заказа, д:ч:м","Линия","Отдых, мин","Сон, мин","2 заказ, общее время, д:ч:м.","Планируемая дата окончания на 2 заказ, д:ч:м","Линия","Отдых, мин","Сон, мин","3 заказ, общее время, дн.","Планируемая дата окончания на 3 заказ, д:ч:м","Линия","Отдых, мин","Сон, мин","4 заказ, общее время, дн.","Планируемая дата окончания на 4 заказ, д:ч:м","Линия","Отдых, мин","Сон, мин","5 заказ, общее время, дн.","Планируемая дата окончания на 5 заказ, д:ч:м"]
[{"$f":"'Исходные данные'!C3","v":"1"},{"$f":"'Исходные данные'!A3/60/24","v":"04:00:00"},{"$f":"'Исходные данные'!B3/60/24","v":"08:00:00"},{"$f":"'Исходные данные'!I3/60/24","v":"02:40:00"},{"$f":"Сейчас+D4+C4+B4","v":"2024-08-06T22:40:00"},"1.01/1",{"$f":"'Исходные данные'!J3/60/24","v":"00:00:00"},{"$f":"'Исходные данные'!K3/60/24","v":"00:00:00"},{"$f":"'Исходные данные'!R3/60/24","v":"03:00:00"},{"$f":"E4+G4+I4+H4","v":"2024-08-07T01:40:00"},"1.01/1",{"$f":"'Исходные данные'!S3/60/24","v":"00:00:00"},{"$f":"'Исходные данные'!T3/60/24","v":"00:00:00"},{"$f":"'Исходные данные'!AA3/60/24","v":"03:00:00"},{"$f":"J4+L4+N4+M4","v":"2024-08-07T04:40:00"},"1.01/1",{"$f":"'Исходные данные'!AB3/60/24","v":"04:00:00"},{"$f":"'Исходные данные'!AC3/60/24","v":"08:00:00"},{"$f":"'Исходные данные'!AJ3/60/24","v":"01:00:00"},{"$f":"O4+Q4+S4+R4","v":"2024-08-07T17:40:00"},"1.01/1",{"$f":"'Исходные данные'!AK3/60/24","v":"00:00:00"},{"$f":"'Исходные данные'!AL3/60/24","v":"00:00:00"},{"$f":"'Исходные данные'!AS3/60/24","v":"03:00:00"},{"$f":"T4+V4+X4+W4","v":"2024-08-07T20:40:00"}]
[{"$f":"'Исходные данные'!C4","v":"2"},{"$f":"'Исходные данные'!A4/60/24","v":"00:00:00"},{"$f":"'Исходные данные'!B4/60/24","v":"00:00:00"},{"$f":"'Исходные данные'!I4/60/24","v":"03:20:00"},"2024-08-06T11:20:00","1.01/2",{"$f":"'Исходные данные'!J4/60/24","v":"04:00:00"},{"$f":"'Исходные данные'!K4/60/24","v":"08:00:00"},{"$f":"'Исходные данные'!R4/60/24","v":"04:10:00"},"2024-08-07T03:30:00","1.01/2",{"$f":"'Исходные данные'!S4/60/24","v":"00:00:00"},{"$f":"'Исходные данные'!T4/60/24","v":"00:00:00"},{"$f":"'Исходные данные'!AA4/60/24","v":"03:45:00"},"2024-08-07T07:15:00","1.01/2",{"$f":"'Исходные данные'!AB4/60/24","v":"00:00:00"},{"$f":"'Исходные данные'!AC4/60/24","v":"00:00:00"},{"$f":"'Исходные данные'!AJ4/60/24","v":"04:10:00"},"2024-08-07T11:25:00","1.01/2",{"$f":"'Исходные данные'!AK4/60/24","v":"04:00:00"},{"$f":"'Исходные данные'!AL4/60/24","v":"08:00:00"},{"$f":"'Исходные данные'!AS4/60/24","v":"04:10:00"},"2024-08-08T03:35:00"]
[{"$f":"'Исходные данные'!C5","v":"3"},{"$f":"'Исходные данные'!A5/60/24","v":"00:00:00"},{"$f":"'Исходные данные'!B5/60/24","v":"00:00:00"},{"$f":"'Исходные данные'!I5/60/24","v":"05:00:00"},"2024-08-06T13:00:00","1.02/1",{"$f":"'Исходные данные'!J5/60/24","v":"00:00:00"},{"$f":"'Исходные данные'!K5/60/24","v":"00:00:00"},{"$f":"'Исходные данные'!R5/60/24","v":"01:40:00"},"2024-08-06T14:40:00","1.02/1",{"$f":"'Исходные данные'!S5/60/24","v":"04:00:00"},{"$f":"'Исходные данные'!T5/60/24","v":"08:00:00"},{"$f":"'Исходные данные'!AA5/60/24","v":"06:40:00"},"2024-08-07T09:20:00","1.02/1",{"$f":"'Исходные данные'!AB5/60/24","v":"00:00:00"},{"$f":"'Исходные данные'!AC5/60/24","v":"00:00:00"},{"$f":"'Исходные данные'!AJ5/60/24","v":"06:40:00"},"2024-08-07T16:00:00","1.02/1",{"$f":"'Исходные данные'!AK5/60/24","v":"00:00:00"},{"$f":"'Исходные данные'!AL5/60/24","v":"00:00:00"},{"$f":"'Исходные данные'!AS5/60/24","v":"06:40:00"},"2024-08-07T22:40:00"]
[{"$f":"'Исходные данные'!C6","v":"4"},{"$f":"'Исходные данные'!A6/60/24","v":"00:00:00"},{"$f":"'Исходные данные'!B6/60/24","v":"00:00:00"},{"$f":"'Исходные данные'!I6/60/24","v":"00:50:00"},"2024-08-06T08:50:00","1.02/2",{"$f":"'Исходные данные'!J6/60/24","v":"00:00:00"},{"$f":"'Исходные данные'!K6/60/24","v":"00:00:00"},{"$f":"'Исходные данные'!R6/60/24","v":"15:00:00"},"2024-08-06T23:50:00","1.02/2",{"$f":"'Исходные данные'!S6/60/24","v":"00:00:00"},{"$f":"'Исходные данные'!T6/60/24","v":"00:00:00"},{"$f":"'Исходные данные'!AA6/60/24","v":"05:00:00"},"2024-08-07T04:50:00","1.02/2",{"$f":"'Исходные данные'!AB6/60/24","v":"04:00:00"},{"$f":"'Исходные данные'!AC6/60/24","v":"08:00:00"},{"$f":"'Исходные данные'!AJ6/60/24","v":"15:00:00"},"2024-08-08T07:50:00","1.02/2",{"$f":"'Исходные данные'!AK6/60/24","v":"00:00:00"},{"$f":"'Исходные данные'!AL6/60/24","v":"00:00:00"},{"$f":"'Исходные данные'!AS6/60/24","v":"15:00:00"},"2024-08-08T22:50:00"]
[{"$f":"'Исходные данные'!C7","v":"5"},{"$f":"'Исходные данные'!A7/60/24","v":"00:00:00"},{"$f":"'Исходные данные'!B7/60/24","v":"00:00:00"},{"$f":"'Исходные данные'!I7/60/24","v":"02:40:00"},"2024-08-06T10:40:00","1.03/1",{"$f":"'Исходные данные'!J7/60/24","v":"04:00:00"},{"$f":"'Исходные данные'!K7/60/24","v":"08:00:00"},{"$f":"'Исходные данные'!R7/60/24","v":"02:10:00"},"2024-08-07T00:50:00","1.03/1",{"$f":"'Исходные данные'!S7/60/24","v":"00:00:00"},{"$f":"'Исходные данные'!T7/60/24","v":"00:00:00"},{"$f":"'Исходные данные'!AA7/60/24","v":"02:40:00"},"2024-08-07T03:30:00","1.03/1",{"$f":"'Исходные данные'!AB7/60/24","v":"00:00:00"},{"$f":"'Исходные данные'!AC7/60/24","v":"00:00:00"},{"$f":"'Исходные данные'!AJ7/60/24","v":"02:40:00"},"2024-08-07T06:10:00","1.03/1",{"$f":"'Исходные данные'!AK7/60/24","v":"04:00:00"},{"$f":"'Исходные данные'!AL7/60/24","v":"08:00:00"},{"$f":"'Исходные данные'!AS7/60/24","v":"02:40:00"},"2024-08-07T20:50:00"]

{"sheet":"Инструменты и нормы упаковки","index":4,"n_rows":5,"n_cols":5,"rows_kept":5,"cut":false,"hidden":false,"merged":[]}
["корова",500,null,"трава",3000]
["лошадь",20,null,"морковь",1000]
["кролик",5,null,"брюква",500]
["баран",2,null,"капуста",100]
["козёл",10,null,"картофель",800]